Body Name,Body,Service Label,Service Code,CIPFA Detailed Expenditure Type,CIPFA Detailed Expenditure Code,Date,Transaction Number,Net Amount,Supplier Name,,,,,,,,,,Oct
Nottinghamshire County Council,1111/1001,Surplus or Deficit from Trading Undertak,TRADING,Premises Related,BJA,16/10/2012,9-10001,662.33,Biffa Waste Services Ltd,,,,,,,,,,
Nottinghamshire County Council,1111/1001,Surplus or Deficit from Trading Undertak,TRADING,Premises Related,BJA,16/10/2012,9-10001,705.13,Biffa Waste Services Ltd,,,,,,,,,,
Nottinghamshire County Council,1111/1001,Surplus or Deficit from Trading Undertak,TRADING,Supplies & Services,DDA,02/10/2012,9-10001,3002.71,R.H.Ritchings Ltd,,,,,,,,,,
Nottinghamshire County Council,1111/1001,Surplus or Deficit from Trading Undertak,TRADING,Supplies & Services,DDA,02/10/2012,9-10001,1828.2,R.H.Ritchings Ltd,,,,,,,,,,
Nottinghamshire County Council,1111/1001,Surplus or Deficit from Trading Undertak,TRADING,Supplies & Services,DDA,11/10/2012,9-10001,740.4,R.H.Ritchings Ltd,,,,,,,,,,
Nottinghamshire County Council,1111/1001,Surplus or Deficit from Trading Undertak,TRADING,Supplies & Services,DDA,11/10/2012,9-10001,1388.66,Allen Glenold Ltd,,,,,,,,,,
Nottinghamshire County Council,1111/1001,Surplus or Deficit from Trading Undertak,TRADING,Supplies & Services,DDA,11/10/2012,9-10001,904,Grosvenor House Papers Ltd,,,,,,,,,,
Nottinghamshire County Council,1111/1001,Surplus or Deficit from Trading Undertak,TRADING,Supplies & Services,DDA,15/10/2012,9-10001,4200,Grosvenor House Papers Ltd,,,,,,,,,,
Nottinghamshire County Council,1111/1001,Surplus or Deficit from Trading Undertak,TRADING,Supplies & Services,DDA,11/10/2012,9-10001,710,Premier Paper Group Ltd,,,,,,,,,,
Nottinghamshire County Council,1111/1001,Surplus or Deficit from Trading Undertak,TRADING,Supplies & Services,DDA,11/10/2012,9-10001,843.98,Premier Paper Group Ltd,,,,,,,,,,
Nottinghamshire County Council,1111/1001,Surplus or Deficit from Trading Undertak,TRADING,Supplies & Services,DDA,17/10/2012,9-10001,844,Premier Paper Group Ltd,,,,,,,,,,
Nottinghamshire County Council,1111/1001,Surplus or Deficit from Trading Undertak,TRADING,Supplies & Services,DDA,17/10/2012,9-10001,1806.5,Talk Paper,,,,,,,,,,
Nottinghamshire County Council,1111/1001,Surplus or Deficit from Trading Undertak,TRADING,Supplies & Services,DDA,17/10/2012,9-10001,1404.1,Talk Paper,,,,,,,,,,
Nottinghamshire County Council,1111/1001,Surplus or Deficit from Trading Undertak,TRADING,Supplies & Services,DDA,26/10/2012,9-10001,1572.3,Talk Paper,,,,,,,,,,
Nottinghamshire County Council,1111/1001,Surplus or Deficit from Trading Undertak,TRADING,Supplies & Services,DDA,26/10/2012,9-10001,985.4,Talk Paper,,,,,,,,,,
Nottinghamshire County Council,1111/1001,Surplus or Deficit from Trading Undertak,TRADING,Supplies & Services,DDA,05/10/2012,9-10001,6119.04,Georgia-Pacific Gb Ltd,,,,,,,,,,
Nottinghamshire County Council,1111/1001,Surplus or Deficit from Trading Undertak,TRADING,Supplies & Services,DDA,11/10/2012,9-10001,592.2,Georgia-Pacific Gb Ltd,,,,,,,,,,
Nottinghamshire County Council,1111/1001,Surplus or Deficit from Trading Undertak,TRADING,Supplies & Services,DDA,15/10/2012,9-10001,4861.12,Georgia-Pacific Gb Ltd,,,,,,,,,,
Nottinghamshire County Council,1111/1001,Surplus or Deficit from Trading Undertak,TRADING,Supplies & Services,DDA,19/10/2012,9-10001,6419.52,Georgia-Pacific Gb Ltd,,,,,,,,,,
Nottinghamshire County Council,1111/1001,Surplus or Deficit from Trading Undertak,TRADING,Supplies & Services,DDA,26/10/2012,9-10001,4626.51,Georgia-Pacific Gb Ltd,,,,,,,,,,
Nottinghamshire County Council,1111/1001,Surplus or Deficit from Trading Undertak,TRADING,Supplies & Services,DDA,30/10/2012,9-10001,5217.12,Georgia-Pacific Gb Ltd,,,,,,,,,,
Nottinghamshire County Council,1111/1001,Surplus or Deficit from Trading Undertak,TRADING,Supplies & Services,DDA,03/10/2012,9-10001,742.43,Hamelin Paperbrands Ltd,,,,,,,,,,
Nottinghamshire County Council,1111/1001,Surplus or Deficit from Trading Undertak,TRADING,Supplies & Services,DDA,11/10/2012,9-10001,890.24,Hamelin Paperbrands Ltd,,,,,,,,,,
Nottinghamshire County Council,1111/1001,Surplus or Deficit from Trading Undertak,TRADING,Supplies & Services,DDA,11/10/2012,9-10001,1119.36,Hamelin Paperbrands Ltd,,,,,,,,,,
Nottinghamshire County Council,1111/1001,Surplus or Deficit from Trading Undertak,TRADING,Supplies & Services,DDA,23/10/2012,9-10001,654.68,Hamelin Paperbrands Ltd,,,,,,,,,,
Nottinghamshire County Council,1111/1001,Surplus or Deficit from Trading Undertak,TRADING,Supplies & Services,DDA,23/10/2012,9-10001,569.1,Hamelin Paperbrands Ltd,,,,,,,,,,
Nottinghamshire County Council,1111/1001,Surplus or Deficit from Trading Undertak,TRADING,Supplies & Services,DDA,23/10/2012,9-10001,667.2,Hamelin Paperbrands Ltd,,,,,,,,,,
Nottinghamshire County Council,1111/1001,Surplus or Deficit from Trading Undertak,TRADING,Supplies & Services,DDA,23/10/2012,9-10001,1497.49,Hamelin Paperbrands Ltd,,,,,,,,,,
Nottinghamshire County Council,1111/1001,Surplus or Deficit from Trading Undertak,TRADING,Supplies & Services,DDA,30/10/2012,9-10001,2211.84,Higher Kings Mill Ltd,,,,,,,,,,
Nottinghamshire County Council,1111/1001,Surplus or Deficit from Trading Undertak,TRADING,Supplies & Services,DDA,02/10/2012,9-10001,514.5,Xerox Office Supplies,,,,,,,,,,
Nottinghamshire County Council,1111/1001,Surplus or Deficit from Trading Undertak,TRADING,Supplies & Services,DDA,26/10/2012,9-10001,892,Xerox Office Supplies,,,,,,,,,,
Nottinghamshire County Council,1111/1001,Surplus or Deficit from Trading Undertak,TRADING,Supplies & Services,DDA,11/10/2012,9-10001,535.2,Heritage Envelopes Ltd,,,,,,,,,,
Nottinghamshire County Council,1111/1001,Surplus or Deficit from Trading Undertak,TRADING,Supplies & Services,DDA,26/10/2012,9-10001,590.4,Heritage Envelopes Ltd,,,,,,,,,,
Nottinghamshire County Council,1111/1001,Surplus or Deficit from Trading Undertak,TRADING,Supplies & Services,DDA,30/10/2012,9-10001,604.52,Heritage Envelopes Ltd,,,,,,,,,,
Nottinghamshire County Council,1111/1001,Surplus or Deficit from Trading Undertak,TRADING,Supplies & Services,DDA,15/10/2012,9-10001,500.4,Kimberley Clark European Services Ltd,,,,,,,,,,
Nottinghamshire County Council,1111/1001,Surplus or Deficit from Trading Undertak,TRADING,Supplies & Services,DDA,26/10/2012,9-10001,1055.4,Kimberley Clark European Services Ltd,,,,,,,,,,
Nottinghamshire County Council,1111/1001,Surplus or Deficit from Trading Undertak,TRADING,Supplies & Services,DDA,30/10/2012,9-10001,549.48,Kimberley Clark European Services Ltd,,,,,,,,,,
Nottinghamshire County Council,1111/1001,Surplus or Deficit from Trading Undertak,TRADING,Supplies & Services,DDA,15/10/2012,9-10001,688,Flip File Ltd,,,,,,,,,,
Nottinghamshire County Council,1111/1001,Surplus or Deficit from Trading Undertak,TRADING,Supplies & Services,DDA,15/10/2012,9-10001,570,Flip File Ltd,,,,,,,,,,
Nottinghamshire County Council,1111/1001,Surplus or Deficit from Trading Undertak,TRADING,Supplies & Services,DDA,15/10/2012,9-10001,1201,Flip File Ltd,,,,,,,,,,
Nottinghamshire County Council,1111/1001,Surplus or Deficit from Trading Undertak,TRADING,Supplies & Services,DDA,09/10/2012,9-10001,1196.38,Bostik Ltd,,,,,,,,,,
Nottinghamshire County Council,1111/1001,Surplus or Deficit from Trading Undertak,TRADING,Supplies & Services,DDA,15/10/2012,9-10001,543,Edding Uk Ltd,,,,,,,,,,
Nottinghamshire County Council,1111/1001,Surplus or Deficit from Trading Undertak,TRADING,Supplies & Services,DDA,11/10/2012,9-10001,606.46,Henkel Loctite Adhesives Ltd,,,,,,,,,,
Nottinghamshire County Council,1111/1001,Surplus or Deficit from Trading Undertak,TRADING,Supplies & Services,DDA,11/10/2012,9-10001,1720.2,Henkel Loctite Adhesives Ltd,,,,,,,,,,
Nottinghamshire County Council,1111/1001,Surplus or Deficit from Trading Undertak,TRADING,Supplies & Services,DDA,30/10/2012,9-10001,907.2,Henkel Loctite Adhesives Ltd,,,,,,,,,,
Nottinghamshire County Council,1111/1001,Surplus or Deficit from Trading Undertak,TRADING,Supplies & Services,DDA,10/10/2012,9-10001,502.13,Acco-Rexel Ltd,,,,,,,,,,
Nottinghamshire County Council,1111/1001,Surplus or Deficit from Trading Undertak,TRADING,Supplies & Services,DDA,11/10/2012,9-10001,899.96,Acco-Rexel Ltd,,,,,,,,,,
Nottinghamshire County Council,1111/1001,Surplus or Deficit from Trading Undertak,TRADING,Supplies & Services,DDA,17/10/2012,9-10001,1299.99,Acco-Rexel Ltd,,,,,,,,,,
Nottinghamshire County Council,1111/1001,Surplus or Deficit from Trading Undertak,TRADING,Supplies & Services,DDA,02/10/2012,9-10001,819.7,Newell Rubbermaid,,,,,,,,,,
Nottinghamshire County Council,1111/1001,Surplus or Deficit from Trading Undertak,TRADING,Supplies & Services,DDA,11/10/2012,9-10001,517.65,Newell Rubbermaid,,,,,,,,,,
Nottinghamshire County Council,1111/1001,Surplus or Deficit from Trading Undertak,TRADING,Supplies & Services,DDA,11/10/2012,9-10001,1526.4,Kb Packaging,,,,,,,,,,
Nottinghamshire County Council,1111/1001,Surplus or Deficit from Trading Undertak,TRADING,Supplies & Services,DDA,15/10/2012,9-10001,705.61,Avery Dennison Office Products Uk Ltd,,,,,,,,,,
Nottinghamshire County Council,1111/1001,Surplus or Deficit from Trading Undertak,TRADING,Supplies & Services,DDA,30/10/2012,9-10001,558,Avery Dennison Office Products Uk Ltd,,,,,,,,,,
Nottinghamshire County Council,1111/1001,Surplus or Deficit from Trading Undertak,TRADING,Supplies & Services,DDA,30/10/2012,9-10001,1064.97,Avery Dennison Office Products Uk Ltd,,,,,,,,,,
Nottinghamshire County Council,1111/1001,Surplus or Deficit from Trading Undertak,TRADING,Supplies & Services,DDA,05/10/2012,9-10001,1979,Eastpoint,,,,,,,,,,
Nottinghamshire County Council,1111/1001,Surplus or Deficit from Trading Undertak,TRADING,Supplies & Services,DDA,05/10/2012,9-10001,559.87,Eastpoint,,,,,,,,,,
Nottinghamshire County Council,1111/1001,Surplus or Deficit from Trading Undertak,TRADING,Supplies & Services,DDA,11/10/2012,9-10001,858.62,Eastpoint,,,,,,,,,,
Nottinghamshire County Council,1111/1001,Surplus or Deficit from Trading Undertak,TRADING,Supplies & Services,DDA,15/10/2012,9-10001,1059.14,Eastpoint,,,,,,,,,,
Nottinghamshire County Council,1111/1001,Surplus or Deficit from Trading Undertak,TRADING,Supplies & Services,DDA,15/10/2012,9-10001,950.4,Eastpoint,,,,,,,,,,
Nottinghamshire County Council,1111/1001,Surplus or Deficit from Trading Undertak,TRADING,Supplies & Services,DDA,19/10/2012,9-10001,556.88,Eastpoint,,,,,,,,,,
Nottinghamshire County Council,1111/1001,Surplus or Deficit from Trading Undertak,TRADING,Supplies & Services,DDA,11/10/2012,9-10001,1887.8,C & F Office Supplies Ltd,,,,,,,,,,
Nottinghamshire County Council,1111/1001,Surplus or Deficit from Trading Undertak,TRADING,Supplies & Services,DAA,10/10/2012,9-10001,576,Patterson Medical Ltd,,,,,,,,,,
Nottinghamshire County Council,1111/1001,Surplus or Deficit from Trading Undertak,TRADING,Supplies & Services,DAA,02/10/2012,9-10001,1054.17,Shermond,,,,,,,,,,
Nottinghamshire County Council,1111/1001,Surplus or Deficit from Trading Undertak,TRADING,Supplies & Services,DAA,11/10/2012,9-10001,1865.64,Shermond,,,,,,,,,,
Nottinghamshire County Council,1111/1001,Surplus or Deficit from Trading Undertak,TRADING,Supplies & Services,DAA,23/10/2012,9-10001,865.39,Shermond,,,,,,,,,,
Nottinghamshire County Council,1111/1001,Surplus or Deficit from Trading Undertak,TRADING,Supplies & Services,DAA,30/10/2012,9-10001,655.4,Shermond,,,,,,,,,,
Nottinghamshire County Council,1111/1001,Surplus or Deficit from Trading Undertak,TRADING,Supplies & Services,DAA,11/10/2012,9-10001,594.4,Wallace Cameron & Co Ltd,,,,,,,,,,
Nottinghamshire County Council,1111/1001,Surplus or Deficit from Trading Undertak,TRADING,Supplies & Services,DAA,11/10/2012,9-10001,520,Reliance Medical Ltd,,,,,,,,,,
Nottinghamshire County Council,1111/1001,Surplus or Deficit from Trading Undertak,TRADING,Supplies & Services,DFA,16/10/2012,9-10001,1252.58,Iris Ticketing Ltd,,,,,,,,,,
Nottinghamshire County Council,1111/1001,Surplus or Deficit from Trading Undertak,TRADING,Supplies & Services,DAA,11/10/2012,9-10001,1692.8,Vivid Laminating Technologies Ltd,,,,,,,,,,
Nottinghamshire County Council,1111/1001,Surplus or Deficit from Trading Undertak,TRADING,Supplies & Services,DAA,15/10/2012,9-10001,1147.5,Vivid Laminating Technologies Ltd,,,,,,,,,,
Nottinghamshire County Council,1111/1001,Surplus or Deficit from Trading Undertak,TRADING,Supplies & Services,DAA,19/10/2012,9-10001,600.9,Vivid Laminating Technologies Ltd,,,,,,,,,,
Nottinghamshire County Council,1111/1001,Surplus or Deficit from Trading Undertak,TRADING,Supplies & Services,DAA,23/10/2012,9-10001,783.78,Insight,,,,,,,,,,
Nottinghamshire County Council,1111/1001,Surplus or Deficit from Trading Undertak,TRADING,Supplies & Services,DAA,02/10/2012,9-10001,931.96,Qc Supplies Ltd,,,,,,,,,,
Nottinghamshire County Council,1111/1001,Surplus or Deficit from Trading Undertak,TRADING,Supplies & Services,DAA,11/10/2012,9-10001,768.16,Qc Supplies Ltd,,,,,,,,,,
Nottinghamshire County Council,1111/1001,Surplus or Deficit from Trading Undertak,TRADING,Supplies & Services,DAA,11/10/2012,9-10001,3697.6,Qc Supplies Ltd,,,,,,,,,,
Nottinghamshire County Council,1111/1001,Surplus or Deficit from Trading Undertak,TRADING,Supplies & Services,DAA,15/10/2012,9-10001,500.27,Qc Supplies Ltd,,,,,,,,,,
Nottinghamshire County Council,1111/1001,Surplus or Deficit from Trading Undertak,TRADING,Supplies & Services,DAA,23/10/2012,9-10001,1159.35,Qc Supplies Ltd,,,,,,,,,,
Nottinghamshire County Council,1111/1001,Surplus or Deficit from Trading Undertak,TRADING,Supplies & Services,DAA,26/10/2012,9-10001,541.83,Qc Supplies Ltd,,,,,,,,,,
Nottinghamshire County Council,1111/1001,Surplus or Deficit from Trading Undertak,TRADING,Supplies & Services,DAA,05/10/2012,9-10001,790.41,Datapac,,,,,,,,,,
Nottinghamshire County Council,1111/1001,Surplus or Deficit from Trading Undertak,TRADING,Supplies & Services,DAA,11/10/2012,9-10001,728.3,Datapac,,,,,,,,,,
Nottinghamshire County Council,1111/1001,Surplus or Deficit from Trading Undertak,TRADING,Supplies & Services,DAA,17/10/2012,9-10001,878.6,Jessop Of Leicester,,,,,,,,,,
Nottinghamshire County Council,1111/1001,Surplus or Deficit from Trading Undertak,TRADING,Supplies & Services,DAA,30/10/2012,9-10001,620,Telescene Ltd,,,,,,,,,,
Nottinghamshire County Council,1111/1001,Surplus or Deficit from Trading Undertak,TRADING,Premises Related,BJA,03/10/2012,9-10001,1619.1,R Scott & Sons Ltd,,,,,,,,,,
Nottinghamshire County Council,1111/1001,Surplus or Deficit from Trading Undertak,TRADING,Premises Related,BJA,17/10/2012,9-10001,1799,R Scott & Sons Ltd,,,,,,,,,,
Nottinghamshire County Council,1111/1001,Surplus or Deficit from Trading Undertak,TRADING,Premises Related,BJA,17/10/2012,9-10001,1079.76,R Scott & Sons Ltd,,,,,,,,,,
Nottinghamshire County Council,1111/1001,Surplus or Deficit from Trading Undertak,TRADING,Premises Related,BJA,26/10/2012,9-10001,1065,R Scott & Sons Ltd,,,,,,,,,,
Nottinghamshire County Council,1111/1001,Surplus or Deficit from Trading Undertak,TRADING,Premises Related,BJA,26/10/2012,9-10001,2115.6,R Scott & Sons Ltd,,,,,,,,,,
Nottinghamshire County Council,1111/1001,Surplus or Deficit from Trading Undertak,TRADING,Premises Related,BJA,05/10/2012,9-10001,2802.6,Wybone Ltd,,,,,,,,,,
Nottinghamshire County Council,1111/1001,Surplus or Deficit from Trading Undertak,TRADING,Premises Related,BJA,03/10/2012,9-10001,5696.04,Premiere Products,,,,,,,,,,
Nottinghamshire County Council,1111/1001,Surplus or Deficit from Trading Undertak,TRADING,Premises Related,BJA,03/10/2012,9-10001,2505.02,Premiere Products,,,,,,,,,,
Nottinghamshire County Council,1111/1001,Surplus or Deficit from Trading Undertak,TRADING,Premises Related,BJA,17/10/2012,9-10001,610,Premiere Products,,,,,,,,,,
Nottinghamshire County Council,1111/1001,Surplus or Deficit from Trading Undertak,TRADING,Premises Related,BJA,17/10/2012,9-10001,1743.76,Premiere Products,,,,,,,,,,
Nottinghamshire County Council,1111/1001,Surplus or Deficit from Trading Undertak,TRADING,Premises Related,BJA,17/10/2012,9-10001,3545.91,Premiere Products,,,,,,,,,,
Nottinghamshire County Council,1111/1001,Surplus or Deficit from Trading Undertak,TRADING,Premises Related,BJA,26/10/2012,9-10001,4373.06,Premiere Products,,,,,,,,,,
Nottinghamshire County Council,1111/1001,Surplus or Deficit from Trading Undertak,TRADING,Premises Related,BJA,26/10/2012,9-10001,2962.38,Premiere Products,,,,,,,,,,
Nottinghamshire County Council,1111/1001,Surplus or Deficit from Trading Undertak,TRADING,Premises Related,BJA,05/10/2012,9-10001,1710.85,Johnson Diversey,,,,,,,,,,
Nottinghamshire County Council,1111/1001,Surplus or Deficit from Trading Undertak,TRADING,Premises Related,BJA,17/10/2012,9-10001,1689.09,Johnson Diversey,,,,,,,,,,
Nottinghamshire County Council,1111/1001,Surplus or Deficit from Trading Undertak,TRADING,Premises Related,BJA,26/10/2012,9-10001,814.31,Johnson Diversey,,,,,,,,,,
Nottinghamshire County Council,1111/1001,Surplus or Deficit from Trading Undertak,TRADING,Premises Related,BJA,23/10/2012,9-10001,864.8,Denis Rawlins Ltd,,,,,,,,,,
Nottinghamshire County Council,1111/1001,Surplus or Deficit from Trading Undertak,TRADING,Premises Related,BJA,02/10/2012,9-10001,665.58,Scot Young Research,,,,,,,,,,
Nottinghamshire County Council,1111/1001,Surplus or Deficit from Trading Undertak,TRADING,Premises Related,BJA,26/10/2012,9-10001,844.55,Midland Wiper Manufacturing Co Ltd,,,,,,,,,,
Nottinghamshire County Council,1111/1001,Surplus or Deficit from Trading Undertak,TRADING,Premises Related,BJA,02/10/2012,9-10001,642.5,Evans Vanodine International Ltd,,,,,,,,,,
Nottinghamshire County Council,1111/1001,Surplus or Deficit from Trading Undertak,TRADING,Premises Related,BJA,11/10/2012,9-10001,694.79,Evans Vanodine International Ltd,,,,,,,,,,
Nottinghamshire County Council,1111/1001,Surplus or Deficit from Trading Undertak,TRADING,Premises Related,BJA,23/10/2012,9-10001,755.4,Evans Vanodine International Ltd,,,,,,,,,,
Nottinghamshire County Council,1111/1001,Surplus or Deficit from Trading Undertak,TRADING,Premises Related,BJA,17/10/2012,9-10001,817.88,Addis Housewares Ltd,,,,,,,,,,
Nottinghamshire County Council,1111/1001,Surplus or Deficit from Trading Undertak,TRADING,Premises Related,BJA,26/10/2012,9-10001,710.22,Addis Housewares Ltd,,,,,,,,,,
Nottinghamshire County Council,1111/1001,Surplus or Deficit from Trading Undertak,TRADING,Premises Related,BJA,02/10/2012,9-10001,500.2,Freudenberg Household Products Lp,,,,,,,,,,
Nottinghamshire County Council,1111/1001,Surplus or Deficit from Trading Undertak,TRADING,Premises Related,BJA,15/10/2012,9-10001,685.99,Freudenberg Household Products Lp,,,,,,,,,,
Nottinghamshire County Council,1111/1001,Surplus or Deficit from Trading Undertak,TRADING,Premises Related,BJA,26/10/2012,9-10001,522.7,Freudenberg Household Products Lp,,,,,,,,,,
Nottinghamshire County Council,1111/1001,Surplus or Deficit from Trading Undertak,TRADING,Premises Related,BJA,26/10/2012,9-10001,964.5,Candor Services,,,,,,,,,,
Nottinghamshire County Council,1111/1001,Surplus or Deficit from Trading Undertak,TRADING,Premises Related,BJA,03/10/2012,9-10001,3919.89,Polystar Plastics Ltd,,,,,,,,,,
Nottinghamshire County Council,1111/1001,Surplus or Deficit from Trading Undertak,TRADING,Premises Related,BJA,03/10/2012,9-10001,2796.64,Polystar Plastics Ltd,,,,,,,,,,
Nottinghamshire County Council,1111/1001,Surplus or Deficit from Trading Undertak,TRADING,Premises Related,BJA,15/10/2012,9-10001,1375.5,Leafield Environmental Ltd,,,,,,,,,,
Nottinghamshire County Council,1111/1001,Surplus or Deficit from Trading Undertak,TRADING,Premises Related,BJA,17/10/2012,9-10001,1834,Leafield Environmental Ltd,,,,,,,,,,
Nottinghamshire County Council,1111/1001,Surplus or Deficit from Trading Undertak,TRADING,Premises Related,BJA,23/10/2012,9-10001,1251.6,Leafield Environmental Ltd,,,,,,,,,,
Nottinghamshire County Council,1111/1001,Surplus or Deficit from Trading Undertak,TRADING,Premises Related,BJA,11/10/2012,9-10001,1478.4,Bunzl Cleaning & Hygiene Supplies,,,,,,,,,,
Nottinghamshire County Council,1111/1001,Surplus or Deficit from Trading Undertak,TRADING,Premises Related,BJA,11/10/2012,9-10001,1052.8,Bunzl Cleaning & Hygiene Supplies,,,,,,,,,,
Nottinghamshire County Council,1111/1001,Surplus or Deficit from Trading Undertak,TRADING,Premises Related,BJA,19/10/2012,9-10001,691.96,Bunzl Cleaning & Hygiene Supplies,,,,,,,,,,
Nottinghamshire County Council,1111/1001,Surplus or Deficit from Trading Undertak,TRADING,Premises Related,BJA,26/10/2012,9-10001,1033,Bunzl Cleaning & Hygiene Supplies,,,,,,,,,,
Nottinghamshire County Council,1111/1001,Surplus or Deficit from Trading Undertak,TRADING,Premises Related,BJA,26/10/2012,9-10001,1260.55,Bunzl Cleaning & Hygiene Supplies,,,,,,,,,,
Nottinghamshire County Council,1111/1001,Surplus or Deficit from Trading Undertak,TRADING,Premises Related,BJA,11/10/2012,9-10001,709.6,Ecover (Uk) Ltd,,,,,,,,,,
Nottinghamshire County Council,1111/1001,Surplus or Deficit from Trading Undertak,TRADING,Premises Related,BJA,26/10/2012,9-10001,764.76,Ecover (Uk) Ltd,,,,,,,,,,
Nottinghamshire County Council,1111/1001,Surplus or Deficit from Trading Undertak,TRADING,Premises Related,BJA,19/10/2012,9-10001,881.4,Cromwell Polythene Ltd,,,,,,,,,,
Nottinghamshire County Council,1111/1001,Surplus or Deficit from Trading Undertak,TRADING,Supplies & Services,DAA,11/10/2012,9-10001,527.04,Dudson Bros Ltd,,,,,,,,,,
Nottinghamshire County Council,1111/1001,Surplus or Deficit from Trading Undertak,TRADING,Supplies & Services,DBA,26/10/2012,9-10001,500.7,North West Tea Service Ltd,,,,,,,,,,
Nottinghamshire County Council,1111/1001,Surplus or Deficit from Trading Undertak,TRADING,Supplies & Services,DAA,15/10/2012,9-10001,548.94,Dualit Ltd,,,,,,,,,,
Nottinghamshire County Council,1111/1001,Surplus or Deficit from Trading Undertak,TRADING,Supplies & Services,DAA,10/10/2012,9-10001,651.51,Gopak Ltd,,,,,,,,,,
Nottinghamshire County Council,1111/1001,Surplus or Deficit from Trading Undertak,TRADING,Supplies & Services,DAA,15/10/2012,9-10001,1080.6,Gopak Ltd,,,,,,,,,,
Nottinghamshire County Council,1111/1001,Surplus or Deficit from Trading Undertak,TRADING,Supplies & Services,DAA,11/10/2012,9-10001,664,Gratnells Ltd,,,,,,,,,,
Nottinghamshire County Council,1111/1001,Surplus or Deficit from Trading Undertak,TRADING,Supplies & Services,DAA,30/10/2012,9-10001,700.24,Gratnells Ltd,,,,,,,,,,
Nottinghamshire County Council,1111/1001,Surplus or Deficit from Trading Undertak,TRADING,Supplies & Services,DAA,10/10/2012,9-10001,816,Efm (Chesterfield) Ltd,,,,,,,,,,
Nottinghamshire County Council,1111/1001,Surplus or Deficit from Trading Undertak,TRADING,Supplies & Services,DAA,10/10/2012,9-10001,822,Efm (Chesterfield) Ltd,,,,,,,,,,
Nottinghamshire County Council,1111/1001,Surplus or Deficit from Trading Undertak,TRADING,Supplies & Services,DAA,15/10/2012,9-10001,702.2,Efm (Chesterfield) Ltd,,,,,,,,,,
Nottinghamshire County Council,1111/1001,Surplus or Deficit from Trading Undertak,TRADING,Supplies & Services,DAA,15/10/2012,9-10001,1087.2,Efm (Chesterfield) Ltd,,,,,,,,,,
Nottinghamshire County Council,1111/1001,Surplus or Deficit from Trading Undertak,TRADING,Supplies & Services,DAA,17/10/2012,9-10001,1194.6,Efm (Chesterfield) Ltd,,,,,,,,,,
Nottinghamshire County Council,1111/1001,Surplus or Deficit from Trading Undertak,TRADING,Supplies & Services,DAA,19/10/2012,9-10001,609,Efm (Chesterfield) Ltd,,,,,,,,,,
Nottinghamshire County Council,1111/1001,Surplus or Deficit from Trading Undertak,TRADING,Supplies & Services,DAA,23/10/2012,9-10001,2582.1,Efm (Chesterfield) Ltd,,,,,,,,,,
Nottinghamshire County Council,1111/1001,Surplus or Deficit from Trading Undertak,TRADING,Supplies & Services,DAA,23/10/2012,9-10001,2400,Efm (Chesterfield) Ltd,,,,,,,,,,
Nottinghamshire County Council,1111/1001,Surplus or Deficit from Trading Undertak,TRADING,Supplies & Services,DAA,10/10/2012,9-10001,1354.18,Monarch Computer Furniture,,,,,,,,,,
Nottinghamshire County Council,1111/1001,Surplus or Deficit from Trading Undertak,TRADING,Supplies & Services,DAA,10/10/2012,9-10001,992.88,Monarch Computer Furniture,,,,,,,,,,
Nottinghamshire County Council,1111/1001,Surplus or Deficit from Trading Undertak,TRADING,Supplies & Services,DAA,11/10/2012,9-10001,2053.88,Monarch Computer Furniture,,,,,,,,,,
Nottinghamshire County Council,1111/1001,Surplus or Deficit from Trading Undertak,TRADING,Supplies & Services,DAA,11/10/2012,9-10001,652.94,Monarch Computer Furniture,,,,,,,,,,
Nottinghamshire County Council,1111/1001,Surplus or Deficit from Trading Undertak,TRADING,Supplies & Services,DAA,15/10/2012,9-10001,681.9,Monarch Computer Furniture,,,,,,,,,,
Nottinghamshire County Council,1111/1001,Surplus or Deficit from Trading Undertak,TRADING,Supplies & Services,DAA,17/10/2012,9-10001,557.85,Monarch Computer Furniture,,,,,,,,,,
Nottinghamshire County Council,1111/1001,Surplus or Deficit from Trading Undertak,TRADING,Supplies & Services,DAA,17/10/2012,9-10001,715.22,Monarch Computer Furniture,,,,,,,,,,
Nottinghamshire County Council,1111/1001,Surplus or Deficit from Trading Undertak,TRADING,Supplies & Services,DAA,17/10/2012,9-10001,564.86,Monarch Computer Furniture,,,,,,,,,,
Nottinghamshire County Council,1111/1001,Surplus or Deficit from Trading Undertak,TRADING,Supplies & Services,DAA,19/10/2012,9-10001,1103.13,Monarch Computer Furniture,,,,,,,,,,
Nottinghamshire County Council,1111/1001,Surplus or Deficit from Trading Undertak,TRADING,Supplies & Services,DAA,23/10/2012,9-10001,500.78,Monarch Computer Furniture,,,,,,,,,,
Nottinghamshire County Council,1111/1001,Surplus or Deficit from Trading Undertak,TRADING,Supplies & Services,DAA,26/10/2012,9-10001,2359.66,Monarch Computer Furniture,,,,,,,,,,
Nottinghamshire County Council,1111/1001,Surplus or Deficit from Trading Undertak,TRADING,Supplies & Services,DAA,15/10/2012,9-10001,980.2,Garran Lockers Ltd,,,,,,,,,,
Nottinghamshire County Council,1111/1001,Surplus or Deficit from Trading Undertak,TRADING,Supplies & Services,DAA,19/10/2012,9-10001,636.98,Advanced Moulds Ltd,,,,,,,,,,
Nottinghamshire County Council,1111/1001,Surplus or Deficit from Trading Undertak,TRADING,Supplies & Services,DAA,11/10/2012,9-10001,686.53,Aquila Business Products,,,,,,,,,,
Nottinghamshire County Council,1111/1001,Surplus or Deficit from Trading Undertak,TRADING,Supplies & Services,DAA,09/10/2012,9-10001,548,Office Innovations,,,,,,,,,,
Nottinghamshire County Council,1111/1001,Surplus or Deficit from Trading Undertak,TRADING,Supplies & Services,DAA,10/10/2012,9-10001,1247.08,Office Innovations,,,,,,,,,,
Nottinghamshire County Council,1111/1001,Surplus or Deficit from Trading Undertak,TRADING,Supplies & Services,DAA,11/10/2012,9-10001,710,Office Innovations,,,,,,,,,,
Nottinghamshire County Council,1111/1001,Surplus or Deficit from Trading Undertak,TRADING,Supplies & Services,DAA,15/10/2012,9-10001,602.08,Office Innovations,,,,,,,,,,
Nottinghamshire County Council,1111/1001,Surplus or Deficit from Trading Undertak,TRADING,Supplies & Services,DAA,26/10/2012,9-10001,936,Office Innovations,,,,,,,,,,
Nottinghamshire County Council,1111/1001,Surplus or Deficit from Trading Undertak,TRADING,Supplies & Services,DAA,11/10/2012,9-10001,562.5,Principal Furniture,,,,,,,,,,
Nottinghamshire County Council,1111/1001,Surplus or Deficit from Trading Undertak,TRADING,Supplies & Services,DAA,26/10/2012,9-10001,621.6,"Triumph, Tbs (South Wales) Ltd",,,,,,,,,,
Nottinghamshire County Council,1111/1001,Surplus or Deficit from Trading Undertak,TRADING,Supplies & Services,DAA,17/10/2012,9-10001,644.76,Marmax Products Ltd,,,,,,,,,,
Nottinghamshire County Council,1111/1001,Surplus or Deficit from Trading Undertak,TRADING,Supplies & Services,DAA,30/10/2012,9-10001,839.85,Kit For Kids Ltd,,,,,,,,,,
Nottinghamshire County Council,1111/1001,Surplus or Deficit from Trading Undertak,TRADING,Supplies & Services,DAA,09/10/2012,9-10001,5359.68,Hille Education Products Ltd,,,,,,,,,,
Nottinghamshire County Council,1111/1001,Surplus or Deficit from Trading Undertak,TRADING,Supplies & Services,DAA,09/10/2012,9-10001,558.3,Hille Education Products Ltd,,,,,,,,,,
Nottinghamshire County Council,1111/1001,Surplus or Deficit from Trading Undertak,TRADING,Supplies & Services,DAA,10/10/2012,9-10001,595.52,Hille Education Products Ltd,,,,,,,,,,
Nottinghamshire County Council,1111/1001,Surplus or Deficit from Trading Undertak,TRADING,Supplies & Services,DAA,17/10/2012,9-10001,1116.6,Hille Education Products Ltd,,,,,,,,,,
Nottinghamshire County Council,1111/1001,Surplus or Deficit from Trading Undertak,TRADING,Supplies & Services,DAA,15/10/2012,9-10001,557.4,Hille Seating Ltd,,,,,,,,,,
Nottinghamshire County Council,1111/1001,Surplus or Deficit from Trading Undertak,TRADING,Supplies & Services,DAA,17/10/2012,9-10001,1855.5,Hille Seating Ltd,,,,,,,,,,
Nottinghamshire County Council,1111/1001,Surplus or Deficit from Trading Undertak,TRADING,Supplies & Services,DAA,11/10/2012,9-10001,883.2,William Sinclair Horticulture Ltd,,,,,,,,,,
Nottinghamshire County Council,1111/1001,Surplus or Deficit from Trading Undertak,TRADING,Supplies & Services,DAA,30/10/2012,9-10001,662.4,William Sinclair Horticulture Ltd,,,,,,,,,,
Nottinghamshire County Council,1111/1001,Surplus or Deficit from Trading Undertak,TRADING,Supplies & Services,DAA,23/10/2012,9-10001,505.54,Commotion Technology Supplies,,,,,,,,,,
Nottinghamshire County Council,1111/1001,Surplus or Deficit from Trading Undertak,TRADING,Supplies & Services,DAA,11/10/2012,9-10001,506.8,E A Combs Ltd,,,,,,,,,,
Nottinghamshire County Council,1111/1001,Surplus or Deficit from Trading Undertak,TRADING,Supplies & Services,DDA,19/10/2012,9-10001,588.45,Newclay Products Ltd,,,,,,,,,,
Nottinghamshire County Council,1111/1001,Surplus or Deficit from Trading Undertak,TRADING,Supplies & Services,DDA,03/10/2012,9-10001,660.8,Brian Clegg (Educational Products) Ltd,,,,,,,,,,
Nottinghamshire County Council,1111/1001,Surplus or Deficit from Trading Undertak,TRADING,Supplies & Services,DDA,09/10/2012,9-10001,838.98,Brian Clegg (Educational Products) Ltd,,,,,,,,,,
Nottinghamshire County Council,1111/1001,Surplus or Deficit from Trading Undertak,TRADING,Supplies & Services,DDA,19/10/2012,9-10001,545.43,Bright Ideas Marketing Ltd,,,,,,,,,,
Nottinghamshire County Council,1111/1001,Surplus or Deficit from Trading Undertak,TRADING,Supplies & Services,DDA,19/10/2012,9-10001,1143.91,Valentine Clays,,,,,,,,,,
Nottinghamshire County Council,1111/1001,Surplus or Deficit from Trading Undertak,TRADING,Supplies & Services,DDA,11/10/2012,9-10001,596.5,Creativity International Ltd,,,,,,,,,,
Nottinghamshire County Council,1111/1001,Surplus or Deficit from Trading Undertak,TRADING,Supplies & Services,DDA,11/10/2012,9-10001,618.15,Creativity International Ltd,,,,,,,,,,
Nottinghamshire County Council,1111/1001,Surplus or Deficit from Trading Undertak,TRADING,Supplies & Services,DDA,19/10/2012,9-10001,596.39,Creativity International Ltd,,,,,,,,,,
Nottinghamshire County Council,1111/1001,Surplus or Deficit from Trading Undertak,TRADING,Supplies & Services,DDA,23/10/2012,9-10001,559.31,Creativity International Ltd,,,,,,,,,,
Nottinghamshire County Council,1111/1001,Surplus or Deficit from Trading Undertak,TRADING,Supplies & Services,DDA,23/10/2012,9-10001,546.36,Creativity International Ltd,,,,,,,,,,
Nottinghamshire County Council,1111/1001,Surplus or Deficit from Trading Undertak,TRADING,Supplies & Services,DDA,26/10/2012,9-10001,724.99,Creativity International Ltd,,,,,,,,,,
Nottinghamshire County Council,1111/1001,Surplus or Deficit from Trading Undertak,TRADING,Supplies & Services,DDA,26/10/2012,9-10001,605.2,E V Naish Ltd,,,,,,,,,,
Nottinghamshire County Council,1111/1001,Surplus or Deficit from Trading Undertak,TRADING,Supplies & Services,DDA,05/10/2012,9-10001,1068.91,Slater Harrison & Co Ltd,,,,,,,,,,
Nottinghamshire County Council,1111/1001,Surplus or Deficit from Trading Undertak,TRADING,Supplies & Services,DDA,09/10/2012,9-10001,615.1,Slater Harrison & Co Ltd,,,,,,,,,,
Nottinghamshire County Council,1111/1001,Surplus or Deficit from Trading Undertak,TRADING,Supplies & Services,DDA,09/10/2012,9-10001,594.1,Slater Harrison & Co Ltd,,,,,,,,,,
Nottinghamshire County Council,1111/1001,Surplus or Deficit from Trading Undertak,TRADING,Supplies & Services,DDA,26/10/2012,9-10001,630.9,Slater Harrison & Co Ltd,,,,,,,,,,
Nottinghamshire County Council,1111/1001,Surplus or Deficit from Trading Undertak,TRADING,Supplies & Services,DDA,26/10/2012,9-10001,546.61,Slater Harrison & Co Ltd,,,,,,,,,,
Nottinghamshire County Council,1111/1001,Surplus or Deficit from Trading Undertak,TRADING,Supplies & Services,DDA,30/10/2012,9-10001,646.9,Slater Harrison & Co Ltd,,,,,,,,,,
Nottinghamshire County Council,1111/1001,Surplus or Deficit from Trading Undertak,TRADING,Supplies & Services,DFA,25/10/2012,9-10001,800,Frama Uk Ltd,,,,,,,,,,
Nottinghamshire County Council,1111/1001,Surplus or Deficit from Trading Undertak,TRADING,Employee Related,AAA,05/10/2012,9-10001,783.36,Frontline Recruitment Ltd,,,,,,,,,,
Nottinghamshire County Council,1111/1001,Surplus or Deficit from Trading Undertak,TRADING,Employee Related,AAA,25/10/2012,9-10001,783.36,Frontline Recruitment Ltd,,,,,,,,,,
Nottinghamshire County Council,1111/1001,Surplus or Deficit from Trading Undertak,TRADING,Employee Related,AAA,25/10/2012,9-10001,1512.79,Frontline Recruitment Ltd,,,,,,,,,,
Nottinghamshire County Council,1111/1001,Surplus or Deficit from Trading Undertak,TRADING,Employee Related,AAA,25/10/2012,9-10001,1212.98,Frontline Recruitment Ltd,,,,,,,,,,
Nottinghamshire County Council,1111/1001,Children and Young People,CYP,Employee Related,ABA,06.11.2012,11-16728,1300,Oxford Brookes University,,,,,,,,,,
Nottinghamshire County Council,1111/1001,Children and Young People,CYP,Employee Related,ABA,08.11.2012,11-16739,617.74,University Of Nottingham,,,,,,,,,,
Nottinghamshire County Council,1111/1001,Children and Young People,CYP,Employee Related,ABA,09.11.2012,11-16650,600,Coniston Associates Ltd,,,,,,,,,,
Nottinghamshire County Council,1111/1001,Children and Young People,CYP,Employee Related,ABA,16.11.2012,11-14449,798,Capita Business Services Ltd,,,,,,,,,,
Nottinghamshire County Council,1111/1001,Children and Young People,CYP,Employee Related,ABA,29.11.2012,11-16720,700,Props North East,,,,,,,,,,
Nottinghamshire County Council,1111/1001,Children and Young People,CYP,Premises Related,BAA,19.11.2012,11-15238,10000,Alderman Pounder Infant School,,,,,,,,,,
Nottinghamshire County Council,1111/1001,Children and Young People,CYP,Premises Related,BAA,20.11.2012,11-17040,685,Corbett Office Solutions,,,,,,,,,,
Nottinghamshire County Council,1111/1001,Children and Young People,CYP,Premises Related,BAA,29.11.2012,11-16544,550,Drainage 2000 Ltd,,,,,,,,,,
Nottinghamshire County Council,1111/1001,Children and Young People,CYP,Premises Related,BAA,30.11.2012,11-16609,625,Sb Security Systems Ltd,,,,,,,,,,
Nottinghamshire County Council,1111/1001,Children and Young People,CYP,Premises Related,BAA,30.11.2012,11-17420,1364.28,Kone Plc,,,,,,,,,,
Nottinghamshire County Council,1111/1001,Children and Young People,CYP,Premises Related,BDA,02.11.2012,11-16636,3080,Redgate School,,,,,,,,,,
Nottinghamshire County Council,1111/1001,Children and Young People,CYP,Premises Related,BDA,05.11.2012,11-10401,9926,Making It! Enterprises Ltd,,,,,,,,,,
Nottinghamshire County Council,1111/1001,Children and Young People,CYP,Premises Related,BDA,06.11.2012,11-13762,1459.71,Cedar Housing Nottingham,,,,,,,,,,
Nottinghamshire County Council,1111/1001,Children and Young People,CYP,Premises Related,BDA,08.11.2012,11-16824,7824.03,Norsaca Society Office,,,,,,,,,,
Nottinghamshire County Council,1111/1001,Children and Young People,CYP,Premises Related,BDA,09.11.2012,11-16689,9431.76,Gedling Borough Council,,,,,,,,,,
Nottinghamshire County Council,1111/1001,Children and Young People,CYP,Premises Related,BDA,15.11.2012,11-16913,500,Blackburn House,,,,,,,,,,
Nottinghamshire County Council,1111/1001,Children and Young People,CYP,Premises Related,BDA,16.11.2012,11-10295,1099.99,Nottingham City Council,,,,,,,,,,
Nottinghamshire County Council,1111/1001,Children and Young People,CYP,Premises Related,BDA,16.11.2012,11-16820,86760,Rushcliffe Borough Council,,,,,,,,,,
Nottinghamshire County Council,1111/1001,Children and Young People,CYP,Premises Related,BDA,19.11.2012,11-14892,732.45,Montague Consulting Ltd,,,,,,,,,,
Nottinghamshire County Council,1111/1001,Children and Young People,CYP,Premises Related,BDA,19.11.2012,11-15229,750,Barnsley Premier Leisure,,,,,,,,,,
Nottinghamshire County Council,1111/1001,Children and Young People,CYP,Premises Related,BDA,19.11.2012,11-16923,832.6,Notts Enterprises Ltd,,,,,,,,,,
Nottinghamshire County Council,1111/1001,Children and Young People,CYP,Premises Related,BDA,19.11.2012,11-16962,537.5,Notts Enterprises Ltd,,,,,,,,,,
Nottinghamshire County Council,1111/1001,Children and Young People,CYP,Premises Related,BDA,20.11.2012,11-15481,600,Richard Bonington Primary School,,,,,,,,,,
Nottinghamshire County Council,1111/1001,Children and Young People,CYP,Premises Related,BDA,21.11.2012,11-17157,5383.26,Barnsley Premier Leisure,,,,,,,,,,
Nottinghamshire County Council,1111/1001,Children and Young People,CYP,Premises Related,BDA,26.11.2012,11-17279,1200,Ashlea Special School,,,,,,,,,,
Nottinghamshire County Council,1111/1001,Children and Young People,CYP,Premises Related,BDA,27.11.2012,11-16278,7449.17,The Nottm Belfry,,,,,,,,,,
Nottinghamshire County Council,1111/1001,Children and Young People,CYP,Premises Related,BDA,27.11.2012,11-17200,772,Notts County Cricket Club,,,,,,,,,,
Nottinghamshire County Council,1111/1001,Children and Young People,CYP,Premises Related,BDA,27.11.2012,11-17281,612,North Notts Create Ltd,,,,,,,,,,
Nottinghamshire County Council,1111/1001,Children and Young People,CYP,Premises Related,BDA,27.11.2012,11-17328,5383.26,Barnsley Premier Leisure,,,,,,,,,,
Nottinghamshire County Council,1111/1001,Children and Young People,CYP,Premises Related,BDA,28.11.2012,11-17342,2188.8,Mansfield Dist Leisure Trust c/o Se,,,,,,,,,,
Nottinghamshire County Council,1111/1001,Children and Young People,CYP,Premises Related,BDA,29.11.2012,11-17230,800,Derrymount School,,,,,,,,,,
Nottinghamshire County Council,1111/1001,Children and Young People,CYP,Premises Related,BDA,30.11.2012,11-16759,2815,Newark Orchard School,,,,,,,,,,
Nottinghamshire County Council,1111/1001,Children and Young People,CYP,Premises Related,BDA,30.11.2012,11-17177,9701.76,Gedling Borough Council,,,,,,,,,,
Nottinghamshire County Council,1111/1001,Children and Young People,CYP,Premises Related,BDA,30.11.2012,11-17234,1405,Newark Orchard School,,,,,,,,,,
Nottinghamshire County Council,1111/1001,Children and Young People,CYP,Premises Related,BDA,30.11.2012,11-17421,10378.58,The Derbyshire Hotel,,,,,,,,,,
Nottinghamshire County Council,1111/1001,Children and Young People,CYP,Premises Related,BFA,09.11.2012,11-14220,1809.24,Severn Trent Water Ltd-Miscellaneou,,,,,,,,,,
Nottinghamshire County Council,1111/1001,Children and Young People,CYP,Premises Related,BFA,14.11.2012,11-14884,1618.9,Severn Trent Water Ltd,,,,,,,,,,
Nottinghamshire County Council,1111/1001,Children and Young People,CYP,Premises Related,BFA,15.11.2012,11-14108,5388.24,Severn Trent Water Ltd,,,,,,,,,,
Nottinghamshire County Council,1111/1001,Children and Young People,CYP,Premises Related,BFA,16.11.2012,11-14885,1932.51,Severn Trent Water Ltd,,,,,,,,,,
Nottinghamshire County Council,1111/1001,Children and Young People,CYP,Premises Related,BFA,20.11.2012,11-15136,1489.53,Severn Trent Water Ltd,,,,,,,,,,
Nottinghamshire County Council,1111/1001,Children and Young People,CYP,Premises Related,BFA,21.11.2012,11-15133,2935.87,Severn Trent Water Ltd,,,,,,,,,,
Nottinghamshire County Council,1111/1001,Children and Young People,CYP,Premises Related,BFA,21.11.2012,11-15135,525.67,Severn Trent Water Ltd,,,,,,,,,,
Nottinghamshire County Council,1111/1001,Children and Young People,CYP,Premises Related,BFA,26.11.2012,11-16107,4468.75,Severn Trent Water Ltd,,,,,,,,,,
Nottinghamshire County Council,1111/1001,Children and Young People,CYP,Premises Related,BFA,26.11.2012,11-16150,1915.27,Severn Trent Water Ltd,,,,,,,,,,
Nottinghamshire County Council,1111/1001,Children and Young People,CYP,Premises Related,BFA,30.11.2012,11-15451,422.47,Adsm Ltd,,,,,,,,,,
Nottinghamshire County Council,1111/1001,Children and Young People,CYP,Premises Related,BFA,30.11.2012,11-16159,707.11,Severn Trent Water Ltd,,,,,,,,,,
Nottinghamshire County Council,1111/1001,Children and Young People,CYP,Premises Related,BFA,30.11.2012,11-16567,510.94,Severn Trent Water Ltd,,,,,,,,,,
Nottinghamshire County Council,1111/1001,Children and Young People,CYP,Premises Related,BJA,05.11.2012,11-10400,1972,Making It! Enterprises Ltd,,,,,,,,,,
Nottinghamshire County Council,1111/1001,Children and Young People,CYP,Premises Related,BJA,29.11.2012,11-16545,1033.2,Gedling Borough Council,,,,,,,,,,
Nottinghamshire County Council,1111/1001,Children and Young People,CYP,Transport Related,CCA,01.11.2012,11-10210,2324,Marriotts Travel,,,,,,,,,,
Nottinghamshire County Council,1111/1001,Children and Young People,CYP,Transport Related,CCA,01.11.2012,11-10211,2481.09,Marriotts Travel,,,,,,,,,,
Nottinghamshire County Council,1111/1001,Children and Young People,CYP,Transport Related,CCA,01.11.2012,11-10220,1858.27,Midfield Travel,,,,,,,,,,
Nottinghamshire County Council,1111/1001,Children and Young People,CYP,Transport Related,CCA,01.11.2012,11-10221,1955,K & S Coaches,,,,,,,,,,
Nottinghamshire County Council,1111/1001,Children and Young People,CYP,Transport Related,CCA,01.11.2012,11-10222,2259,K & S Coaches,,,,,,,,,,
Nottinghamshire County Council,1111/1001,Children and Young People,CYP,Transport Related,CCA,01.11.2012,11-10226,3357.38,Kettlewell Retford Ltd,,,,,,,,,,
Nottinghamshire County Council,1111/1001,Children and Young People,CYP,Transport Related,CCA,01.11.2012,11-10228,2210,Kettlewell Retford Ltd,,,,,,,,,,
Nottinghamshire County Council,1111/1001,Children and Young People,CYP,Transport Related,CCA,02.11.2012,11-10024,2820.51,Rotherham Metropolitan Borough Coun,,,,,,,,,,
Nottinghamshire County Council,1111/1001,Children and Young People,CYP,Transport Related,CCA,02.11.2012,11-10068,1900,First Class,,,,,,,,,,
Nottinghamshire County Council,1111/1001,Children and Young People,CYP,Transport Related,CCA,05.11.2012,11-10311,2312,Taxicover Uk Ltd,,,,,,,,,,
Nottinghamshire County Council,1111/1001,Children and Young People,CYP,Transport Related,CCA,05.11.2012,11-10312,2856,Taxicover Uk Ltd,,,,,,,,,,
Nottinghamshire County Council,1111/1001,Children and Young People,CYP,Transport Related,CCA,05.11.2012,11-10313,3024,Taxicover Uk Ltd,,,,,,,,,,
Nottinghamshire County Council,1111/1001,Children and Young People,CYP,Transport Related,CCA,05.11.2012,11-10314,2346,Taxicover Uk Ltd,,,,,,,,,,
Nottinghamshire County Council,1111/1001,Children and Young People,CYP,Transport Related,CCA,05.11.2012,11-10315,2560,Taxicover Uk Ltd,,,,,,,,,,
Nottinghamshire County Council,1111/1001,Children and Young People,CYP,Transport Related,CCA,05.11.2012,11-10316,2058,Taxicover Uk Ltd,,,,,,,,,,
Nottinghamshire County Council,1111/1001,Children and Young People,CYP,Transport Related,CCA,05.11.2012,11-10317,2952,Taxicover Uk Ltd,,,,,,,,,,
Nottinghamshire County Council,1111/1001,Children and Young People,CYP,Transport Related,CCA,05.11.2012,11-10318,2952,Taxicover Uk Ltd,,,,,,,,,,
Nottinghamshire County Council,1111/1001,Children and Young People,CYP,Transport Related,CCA,05.11.2012,11-10319,3276,Taxicover Uk Ltd,,,,,,,,,,
Nottinghamshire County Council,1111/1001,Children and Young People,CYP,Transport Related,CCA,05.11.2012,11-10320,2448,Taxicover Uk Ltd,,,,,,,,,,
Nottinghamshire County Council,1111/1001,Children and Young People,CYP,Transport Related,CCA,05.11.2012,11-10321,2664,Taxicover Uk Ltd,,,,,,,,,,
Nottinghamshire County Council,1111/1001,Children and Young People,CYP,Transport Related,CCA,05.11.2012,11-10322,1502.5,Taxicover Uk Ltd,,,,,,,,,,
Nottinghamshire County Council,1111/1001,Children and Young People,CYP,Transport Related,CCA,05.11.2012,11-10323,2346,Taxicover Uk Ltd,,,,,,,,,,
Nottinghamshire County Council,1111/1001,Children and Young People,CYP,Transport Related,CCA,05.11.2012,11-10324,3281,Taxicover Uk Ltd,,,,,,,,,,
Nottinghamshire County Council,1111/1001,Children and Young People,CYP,Transport Related,CCA,05.11.2012,11-10325,2958,Taxicover Uk Ltd,,,,,,,,,,
Nottinghamshire County Council,1111/1001,Children and Young People,CYP,Transport Related,CCA,05.11.2012,11-10326,2278,Taxicover Uk Ltd,,,,,,,,,,
Nottinghamshire County Council,1111/1001,Children and Young People,CYP,Transport Related,CCA,05.11.2012,11-10327,560,Southside Cars,,,,,,,,,,
Nottinghamshire County Council,1111/1001,Children and Young People,CYP,Transport Related,CCA,05.11.2012,11-10328,841.5,Southside Cars,,,,,,,,,,
Nottinghamshire County Council,1111/1001,Children and Young People,CYP,Transport Related,CCA,05.11.2012,11-10329,1699.5,Southside Cars,,,,,,,,,,
Nottinghamshire County Council,1111/1001,Children and Young People,CYP,Transport Related,CCA,05.11.2012,11-10330,1294,Southside Cars,,,,,,,,,,
Nottinghamshire County Council,1111/1001,Children and Young People,CYP,Transport Related,CCA,05.11.2012,11-10331,770,Southside Cars,,,,,,,,,,
Nottinghamshire County Council,1111/1001,Children and Young People,CYP,Transport Related,CCA,05.11.2012,11-10332,2133.76,Southside Cars,,,,,,,,,,
Nottinghamshire County Council,1111/1001,Children and Young People,CYP,Transport Related,CCA,05.11.2012,11-10333,1955,Martins Travel,,,,,,,,,,
Nottinghamshire County Council,1111/1001,Children and Young People,CYP,Transport Related,CCA,05.11.2012,11-10334,2540,Martins Travel,,,,,,,,,,
Nottinghamshire County Council,1111/1001,Children and Young People,CYP,Transport Related,CCA,05.11.2012,11-10335,558,Alpha Cars,,,,,,,,,,
Nottinghamshire County Council,1111/1001,Children and Young People,CYP,Transport Related,CCA,05.11.2012,11-10336,1612.8,Arrow Specialised Transport Ltd,,,,,,,,,,
Nottinghamshire County Council,1111/1001,Children and Young People,CYP,Transport Related,CCA,05.11.2012,11-10337,1683,Arrow Specialised Transport Ltd,,,,,,,,,,
Nottinghamshire County Council,1111/1001,Children and Young People,CYP,Transport Related,CCA,05.11.2012,11-10338,1710,Arrow Specialised Transport Ltd,,,,,,,,,,
Nottinghamshire County Council,1111/1001,Children and Young People,CYP,Transport Related,CCA,05.11.2012,11-10339,1656,Arrow Specialised Transport Ltd,,,,,,,,,,
Nottinghamshire County Council,1111/1001,Children and Young People,CYP,Transport Related,CCA,05.11.2012,11-10340,1368,Arrow Specialised Transport Ltd,,,,,,,,,,
Nottinghamshire County Council,1111/1001,Children and Young People,CYP,Transport Related,CCA,05.11.2012,11-10341,1791,Arrow Specialised Transport Ltd,,,,,,,,,,
Nottinghamshire County Council,1111/1001,Children and Young People,CYP,Transport Related,CCA,05.11.2012,11-10342,1879.6,Arrow Specialised Transport Ltd,,,,,,,,,,
Nottinghamshire County Council,1111/1001,Children and Young People,CYP,Transport Related,CCA,05.11.2012,11-10343,1401.6,Arrow Specialised Transport Ltd,,,,,,,,,,
Nottinghamshire County Council,1111/1001,Children and Young People,CYP,Transport Related,CCA,05.11.2012,11-10344,1713.6,Arrow Specialised Transport Ltd,,,,,,,,,,
Nottinghamshire County Council,1111/1001,Children and Young People,CYP,Transport Related,CCA,05.11.2012,11-10345,1230,Arrow Specialised Transport Ltd,,,,,,,,,,
Nottinghamshire County Council,1111/1001,Children and Young People,CYP,Transport Related,CCA,05.11.2012,11-10346,3260,Arrow Specialised Transport Ltd,,,,,,,,,,
Nottinghamshire County Council,1111/1001,Children and Young People,CYP,Transport Related,CCA,05.11.2012,11-10347,681.6,Arrow Specialised Transport Ltd,,,,,,,,,,
Nottinghamshire County Council,1111/1001,Children and Young People,CYP,Transport Related,CCA,05.11.2012,11-10348,1480,Arrow Specialised Transport Ltd,,,,,,,,,,
Nottinghamshire County Council,1111/1001,Children and Young People,CYP,Transport Related,CCA,05.11.2012,11-10349,1377,Arrow Specialised Transport Ltd,,,,,,,,,,
Nottinghamshire County Council,1111/1001,Children and Young People,CYP,Transport Related,CCA,05.11.2012,11-10350,535.5,Arrow Specialised Transport Ltd,,,,,,,,,,
Nottinghamshire County Council,1111/1001,Children and Young People,CYP,Transport Related,CCA,05.11.2012,11-10351,375,Fozcabs Newark Taxis,,,,,,,,,,
Nottinghamshire County Council,1111/1001,Children and Young People,CYP,Transport Related,CCA,05.11.2012,11-10352,691,Fozcabs Newark Taxis,,,,,,,,,,
Nottinghamshire County Council,1111/1001,Children and Young People,CYP,Transport Related,CCA,05.11.2012,11-10353,1620,Fozcabs Newark Taxis,,,,,,,,,,
Nottinghamshire County Council,1111/1001,Children and Young People,CYP,Transport Related,CCA,05.11.2012,11-10354,834.38,Fozcabs Newark Taxis,,,,,,,,,,
Nottinghamshire County Council,1111/1001,Children and Young People,CYP,Transport Related,CCA,05.11.2012,11-10355,510,Fozcabs Newark Taxis,,,,,,,,,,
Nottinghamshire County Council,1111/1001,Children and Young People,CYP,Transport Related,CCA,05.11.2012,11-10356,2125,Horizon Travel,,,,,,,,,,
Nottinghamshire County Council,1111/1001,Children and Young People,CYP,Transport Related,CCA,05.11.2012,11-10357,1405.9,Horizon Travel,,,,,,,,,,
Nottinghamshire County Council,1111/1001,Children and Young People,CYP,Transport Related,CCA,05.11.2012,11-10358,1602,Horizon Travel,,,,,,,,,,
Nottinghamshire County Council,1111/1001,Children and Young People,CYP,Transport Related,CCA,05.11.2012,11-10359,884,Horizon Travel,,,,,,,,,,
Nottinghamshire County Council,1111/1001,Children and Young People,CYP,Transport Related,CCA,05.11.2012,11-10360,715.2,Oasis Taxis Mansfield Ltd,,,,,,,,,,
Nottinghamshire County Council,1111/1001,Children and Young People,CYP,Transport Related,CCA,05.11.2012,11-10361,1175.04,Oasis Taxis Mansfield Ltd,,,,,,,,,,
Nottinghamshire County Council,1111/1001,Children and Young People,CYP,Transport Related,CCA,05.11.2012,11-10362,1856.72,Oasis Taxis Mansfield Ltd,,,,,,,,,,
Nottinghamshire County Council,1111/1001,Children and Young People,CYP,Transport Related,CCA,05.11.2012,11-10364,1908,Vallances Coaches,,,,,,,,,,
Nottinghamshire County Council,1111/1001,Children and Young People,CYP,Transport Related,CCA,05.11.2012,11-10365,2214,Vallances Coaches,,,,,,,,,,
Nottinghamshire County Council,1111/1001,Children and Young People,CYP,Transport Related,CCA,05.11.2012,11-10367,727.2,P & P Taxis,,,,,,,,,,
Nottinghamshire County Council,1111/1001,Children and Young People,CYP,Transport Related,CCA,05.11.2012,11-10368,1800,P & P Taxis,,,,,,,,,,
Nottinghamshire County Council,1111/1001,Children and Young People,CYP,Transport Related,CCA,06.11.2012,11-13611,817.8,Taxicover Uk Ltd,,,,,,,,,,
Nottinghamshire County Council,1111/1001,Children and Young People,CYP,Transport Related,CCA,06.11.2012,11-13612,10186.4,Taxicover Uk Ltd,,,,,,,,,,
Nottinghamshire County Council,1111/1001,Children and Young People,CYP,Transport Related,CCA,06.11.2012,11-13613,772.5,Southside Cars,,,,,,,,,,
Nottinghamshire County Council,1111/1001,Children and Young People,CYP,Transport Related,CCA,06.11.2012,11-13614,720,A C Taxis,,,,,,,,,,
Nottinghamshire County Council,1111/1001,Children and Young People,CYP,Transport Related,CCA,06.11.2012,11-13618,2750.4,All Wayz Travel,,,,,,,,,,
Nottinghamshire County Council,1111/1001,Children and Young People,CYP,Transport Related,CCA,06.11.2012,11-13619,1200,Cabline Uk Ltd,,,,,,,,,,
Nottinghamshire County Council,1111/1001,Children and Young People,CYP,Transport Related,CCA,06.11.2012,11-13620,1360,Cabline Uk Ltd,,,,,,,,,,
Nottinghamshire County Council,1111/1001,Children and Young People,CYP,Transport Related,CCA,06.11.2012,11-13621,1020,Cabline Uk Ltd,,,,,,,,,,
Nottinghamshire County Council,1111/1001,Children and Young People,CYP,Transport Related,CCA,06.11.2012,11-13622,1360,Cabline Uk Ltd,,,,,,,,,,
Nottinghamshire County Council,1111/1001,Children and Young People,CYP,Transport Related,CCA,06.11.2012,11-13623,840,CBC Taxis Ltd,,,,,,,,,,
Nottinghamshire County Council,1111/1001,Children and Young People,CYP,Transport Related,CCA,06.11.2012,11-13624,630,CBC Taxis Ltd,,,,,,,,,,
Nottinghamshire County Council,1111/1001,Children and Young People,CYP,Transport Related,CCA,06.11.2012,11-13625,1018.8,CBC Taxis Ltd,,,,,,,,,,
Nottinghamshire County Council,1111/1001,Children and Young People,CYP,Transport Related,CCA,06.11.2012,11-13627,1846.5,Arrow Specialised Transport Ltd,,,,,,,,,,
Nottinghamshire County Council,1111/1001,Children and Young People,CYP,Transport Related,CCA,06.11.2012,11-13628,1532.8,Arrow Specialised Transport Ltd,,,,,,,,,,
Nottinghamshire County Council,1111/1001,Children and Young People,CYP,Transport Related,CCA,06.11.2012,11-13629,1897.27,Arrow Specialised Transport Ltd,,,,,,,,,,
Nottinghamshire County Council,1111/1001,Children and Young People,CYP,Transport Related,CCA,06.11.2012,11-13630,1602,Arrow Specialised Transport Ltd,,,,,,,,,,
Nottinghamshire County Council,1111/1001,Children and Young People,CYP,Transport Related,CCA,06.11.2012,11-13631,1751,Arrow Specialised Transport Ltd,,,,,,,,,,
Nottinghamshire County Council,1111/1001,Children and Young People,CYP,Transport Related,CCA,06.11.2012,11-13632,1828.8,Arrow Specialised Transport Ltd,,,,,,,,,,
Nottinghamshire County Council,1111/1001,Children and Young People,CYP,Transport Related,CCA,06.11.2012,11-13633,876.6,Arrow Specialised Transport Ltd,,,,,,,,,,
Nottinghamshire County Council,1111/1001,Children and Young People,CYP,Transport Related,CCA,06.11.2012,11-13634,1294.2,Arrow Specialised Transport Ltd,,,,,,,,,,
Nottinghamshire County Council,1111/1001,Children and Young People,CYP,Transport Related,CCA,06.11.2012,11-13635,1656,Arrow Specialised Transport Ltd,,,,,,,,,,
Nottinghamshire County Council,1111/1001,Children and Young People,CYP,Transport Related,CCA,06.11.2012,11-13636,1537.92,Arrow Specialised Transport Ltd,,,,,,,,,,
Nottinghamshire County Council,1111/1001,Children and Young People,CYP,Transport Related,CCA,06.11.2012,11-13637,2334.6,Arrow Specialised Transport Ltd,,,,,,,,,,
Nottinghamshire County Council,1111/1001,Children and Young People,CYP,Transport Related,CCA,06.11.2012,11-13638,2214,Arrow Specialised Transport Ltd,,,,,,,,,,
Nottinghamshire County Council,1111/1001,Children and Young People,CYP,Transport Related,CCA,06.11.2012,11-13639,1764,Arrow Specialised Transport Ltd,,,,,,,,,,
Nottinghamshire County Council,1111/1001,Children and Young People,CYP,Transport Related,CCA,06.11.2012,11-13640,2127.55,Arrow Specialised Transport Ltd,,,,,,,,,,
Nottinghamshire County Council,1111/1001,Children and Young People,CYP,Transport Related,CCA,06.11.2012,11-13641,1740,Arrow Specialised Transport Ltd,,,,,,,,,,
Nottinghamshire County Council,1111/1001,Children and Young People,CYP,Transport Related,CCA,06.11.2012,11-13642,1242,Arrow Specialised Transport Ltd,,,,,,,,,,
Nottinghamshire County Council,1111/1001,Children and Young People,CYP,Transport Related,CCA,06.11.2012,11-13643,1222.5,Arrow Specialised Transport Ltd,,,,,,,,,,
Nottinghamshire County Council,1111/1001,Children and Young People,CYP,Transport Related,CCA,06.11.2012,11-13644,8452.4,Arrow Specialised Transport Ltd,,,,,,,,,,
Nottinghamshire County Council,1111/1001,Children and Young People,CYP,Transport Related,CCA,06.11.2012,11-13645,2430,Arrow Specialised Transport Ltd,,,,,,,,,,
Nottinghamshire County Council,1111/1001,Children and Young People,CYP,Transport Related,CCA,06.11.2012,11-13646,2145.4,Arrow Specialised Transport Ltd,,,,,,,,,,
Nottinghamshire County Council,1111/1001,Children and Young People,CYP,Transport Related,CCA,06.11.2012,11-13647,1700,Arrow Specialised Transport Ltd,,,,,,,,,,
Nottinghamshire County Council,1111/1001,Children and Young People,CYP,Transport Related,CCA,06.11.2012,11-13648,1428,Arrow Specialised Transport Ltd,,,,,,,,,,
Nottinghamshire County Council,1111/1001,Children and Young People,CYP,Transport Related,CCA,06.11.2012,11-13649,1717,Arrow Specialised Transport Ltd,,,,,,,,,,
Nottinghamshire County Council,1111/1001,Children and Young People,CYP,Transport Related,CCA,06.11.2012,11-13650,1139,Arrow Specialised Transport Ltd,,,,,,,,,,
Nottinghamshire County Council,1111/1001,Children and Young People,CYP,Transport Related,CCA,06.11.2012,11-13651,2271,Arrow Specialised Transport Ltd,,,,,,,,,,
Nottinghamshire County Council,1111/1001,Children and Young People,CYP,Transport Related,CCA,06.11.2012,11-13652,1164.5,Arrow Specialised Transport Ltd,,,,,,,,,,
Nottinghamshire County Council,1111/1001,Children and Young People,CYP,Transport Related,CCA,06.11.2012,11-13653,1224,Arrow Specialised Transport Ltd,,,,,,,,,,
Nottinghamshire County Council,1111/1001,Children and Young People,CYP,Transport Related,CCA,06.11.2012,11-13654,828.75,Arrow Specialised Transport Ltd,,,,,,,,,,
Nottinghamshire County Council,1111/1001,Children and Young People,CYP,Transport Related,CCA,06.11.2012,11-13655,1340.33,Arrow Specialised Transport Ltd,,,,,,,,,,
Nottinghamshire County Council,1111/1001,Children and Young People,CYP,Transport Related,CCA,06.11.2012,11-13656,1674,Arrow Specialised Transport Ltd,,,,,,,,,,
Nottinghamshire County Council,1111/1001,Children and Young People,CYP,Transport Related,CCA,06.11.2012,11-13657,1691.33,Arrow Specialised Transport Ltd,,,,,,,,,,
Nottinghamshire County Council,1111/1001,Children and Young People,CYP,Transport Related,CCA,06.11.2012,11-13658,1445,Arrow Specialised Transport Ltd,,,,,,,,,,
Nottinghamshire County Council,1111/1001,Children and Young People,CYP,Transport Related,CCA,06.11.2012,11-13659,1292,Arrow Specialised Transport Ltd,,,,,,,,,,
Nottinghamshire County Council,1111/1001,Children and Young People,CYP,Transport Related,CCA,06.11.2012,11-13660,1003,Arrow Specialised Transport Ltd,,,,,,,,,,
Nottinghamshire County Council,1111/1001,Children and Young People,CYP,Transport Related,CCA,06.11.2012,11-13661,1424.6,Arrow Specialised Transport Ltd,,,,,,,,,,
Nottinghamshire County Council,1111/1001,Children and Young People,CYP,Transport Related,CCA,06.11.2012,11-13662,1255.71,Arrow Specialised Transport Ltd,,,,,,,,,,
Nottinghamshire County Council,1111/1001,Children and Young People,CYP,Transport Related,CCA,06.11.2012,11-13663,1836,Arrow Specialised Transport Ltd,,,,,,,,,,
Nottinghamshire County Council,1111/1001,Children and Young People,CYP,Transport Related,CCA,06.11.2012,11-13664,1802,Arrow Specialised Transport Ltd,,,,,,,,,,
Nottinghamshire County Council,1111/1001,Children and Young People,CYP,Transport Related,CCA,06.11.2012,11-13665,1079.51,Arrow Specialised Transport Ltd,,,,,,,,,,
Nottinghamshire County Council,1111/1001,Children and Young People,CYP,Transport Related,CCA,06.11.2012,11-13666,1666,Arrow Specialised Transport Ltd,,,,,,,,,,
Nottinghamshire County Council,1111/1001,Children and Young People,CYP,Transport Related,CCA,06.11.2012,11-13667,533.5,Arrow Specialised Transport Ltd,,,,,,,,,,
Nottinghamshire County Council,1111/1001,Children and Young People,CYP,Transport Related,CCA,06.11.2012,11-13668,2085,Bridges Transport Services,,,,,,,,,,
Nottinghamshire County Council,1111/1001,Children and Young People,CYP,Transport Related,CCA,06.11.2012,11-13669,1115.2,Bridges Transport Services,,,,,,,,,,
Nottinghamshire County Council,1111/1001,Children and Young People,CYP,Transport Related,CCA,06.11.2012,11-13670,931.14,Bridges Transport Services,,,,,,,,,,
Nottinghamshire County Council,1111/1001,Children and Young People,CYP,Transport Related,CCA,06.11.2012,11-13671,1428.12,Bridges Transport Services,,,,,,,,,,
Nottinghamshire County Council,1111/1001,Children and Young People,CYP,Transport Related,CCA,06.11.2012,11-13672,1197,Bridges Transport Services,,,,,,,,,,
Nottinghamshire County Council,1111/1001,Children and Young People,CYP,Transport Related,CCA,06.11.2012,11-13673,1407.78,Bridges Transport Services,,,,,,,,,,
Nottinghamshire County Council,1111/1001,Children and Young People,CYP,Transport Related,CCA,06.11.2012,11-13674,660.14,Bridges Transport Services,,,,,,,,,,
Nottinghamshire County Council,1111/1001,Children and Young People,CYP,Transport Related,CCA,06.11.2012,11-13675,842.4,Bridges Transport Services,,,,,,,,,,
Nottinghamshire County Council,1111/1001,Children and Young People,CYP,Transport Related,CCA,06.11.2012,11-13676,1169.64,Bridges Transport Services,,,,,,,,,,
Nottinghamshire County Council,1111/1001,Children and Young People,CYP,Transport Related,CCA,06.11.2012,11-13677,1190,Bridges Transport Services,,,,,,,,,,
Nottinghamshire County Council,1111/1001,Children and Young People,CYP,Transport Related,CCA,06.11.2012,11-13678,2109.53,Bridges Transport Services,,,,,,,,,,
Nottinghamshire County Council,1111/1001,Children and Young People,CYP,Transport Related,CCA,06.11.2012,11-13679,893.44,Bridges Transport Services,,,,,,,,,,
Nottinghamshire County Council,1111/1001,Children and Young People,CYP,Transport Related,CCA,06.11.2012,11-13680,745.79,Bridges Transport Services,,,,,,,,,,
Nottinghamshire County Council,1111/1001,Children and Young People,CYP,Transport Related,CCA,06.11.2012,11-13683,540,Fozcabs Newark Taxis,,,,,,,,,,
Nottinghamshire County Council,1111/1001,Children and Young People,CYP,Transport Related,CCA,06.11.2012,11-13684,1105,Fozcabs Newark Taxis,,,,,,,,,,
Nottinghamshire County Council,1111/1001,Children and Young People,CYP,Transport Related,CCA,06.11.2012,11-13685,544,Fozcabs Newark Taxis,,,,,,,,,,
Nottinghamshire County Council,1111/1001,Children and Young People,CYP,Transport Related,CCA,06.11.2012,11-13686,1167.56,Fozcabs Newark Taxis,,,,,,,,,,
Nottinghamshire County Council,1111/1001,Children and Young People,CYP,Transport Related,CCA,06.11.2012,11-13689,1674,Headland Taxi Services,,,,,,,,,,
Nottinghamshire County Council,1111/1001,Children and Young People,CYP,Transport Related,CCA,06.11.2012,11-13690,1356,Headland Taxi Services,,,,,,,,,,
Nottinghamshire County Council,1111/1001,Children and Young People,CYP,Transport Related,CCA,06.11.2012,11-13691,2108,Ja Travel Ltd,,,,,,,,,,
Nottinghamshire County Council,1111/1001,Children and Young People,CYP,Transport Related,CCA,06.11.2012,11-13692,1411,Ja Travel Ltd,,,,,,,,,,
Nottinghamshire County Council,1111/1001,Children and Young People,CYP,Transport Related,CCA,06.11.2012,11-13693,2017.9,Ja Travel Ltd,,,,,,,,,,
Nottinghamshire County Council,1111/1001,Children and Young People,CYP,Transport Related,CCA,06.11.2012,11-13695,1877.8,Oasis Taxis Mansfield Ltd,,,,,,,,,,
Nottinghamshire County Council,1111/1001,Children and Young People,CYP,Transport Related,CCA,06.11.2012,11-13696,2356.8,Oasis Taxis Mansfield Ltd,,,,,,,,,,
Nottinghamshire County Council,1111/1001,Children and Young People,CYP,Transport Related,CCA,06.11.2012,11-13697,1344,Sprays Transport Ltd,,,,,,,,,,
Nottinghamshire County Council,1111/1001,Children and Young People,CYP,Transport Related,CCA,06.11.2012,11-13698,1360,Sprays Transport Ltd,,,,,,,,,,
Nottinghamshire County Council,1111/1001,Children and Young People,CYP,Transport Related,CCA,06.11.2012,11-13699,1632,Sprays Transport Ltd,,,,,,,,,,
Nottinghamshire County Council,1111/1001,Children and Young People,CYP,Transport Related,CCA,06.11.2012,11-13700,1598,Sprays Transport Ltd,,,,,,,,,,
Nottinghamshire County Council,1111/1001,Children and Young People,CYP,Transport Related,CCA,06.11.2012,11-13701,1248,Sprays Transport Ltd,,,,,,,,,,
Nottinghamshire County Council,1111/1001,Children and Young People,CYP,Transport Related,CCA,06.11.2012,11-13702,1445,Sprays Transport Ltd,,,,,,,,,,
Nottinghamshire County Council,1111/1001,Children and Young People,CYP,Transport Related,CCA,06.11.2012,11-13704,859.52,Sprays Transport Ltd,,,,,,,,,,
Nottinghamshire County Council,1111/1001,Children and Young People,CYP,Transport Related,CCA,06.11.2012,11-13705,1598,Sprays Transport Ltd,,,,,,,,,,
Nottinghamshire County Council,1111/1001,Children and Young People,CYP,Transport Related,CCA,06.11.2012,11-13706,1581,Sprays Transport Ltd,,,,,,,,,,
Nottinghamshire County Council,1111/1001,Children and Young People,CYP,Transport Related,CCA,06.11.2012,11-13707,1062,Sprays Transport Ltd,,,,,,,,,,
Nottinghamshire County Council,1111/1001,Children and Young People,CYP,Transport Related,CCA,06.11.2012,11-13708,1062,Sprays Transport Ltd,,,,,,,,,,
Nottinghamshire County Council,1111/1001,Children and Young People,CYP,Transport Related,CCA,06.11.2012,11-13709,1734,Sprays Transport Ltd,,,,,,,,,,
Nottinghamshire County Council,1111/1001,Children and Young People,CYP,Transport Related,CCA,06.11.2012,11-13710,1530,Sprays Transport Ltd,,,,,,,,,,
Nottinghamshire County Council,1111/1001,Children and Young People,CYP,Transport Related,CCA,06.11.2012,11-13711,1331.44,Sprays Transport Ltd,,,,,,,,,,
Nottinghamshire County Council,1111/1001,Children and Young People,CYP,Transport Related,CCA,06.11.2012,11-13713,1445,Sprays Transport Ltd,,,,,,,,,,
Nottinghamshire County Council,1111/1001,Children and Young People,CYP,Transport Related,CCA,06.11.2012,11-13714,1376.32,Sprays Transport Ltd,,,,,,,,,,
Nottinghamshire County Council,1111/1001,Children and Young People,CYP,Transport Related,CCA,06.11.2012,11-13715,1476,Sprays Transport Ltd,,,,,,,,,,
Nottinghamshire County Council,1111/1001,Children and Young People,CYP,Transport Related,CCA,06.11.2012,11-13716,1584,Sprays Transport Ltd,,,,,,,,,,
Nottinghamshire County Council,1111/1001,Children and Young People,CYP,Transport Related,CCA,06.11.2012,11-13717,1854,Sprays Transport Ltd,,,,,,,,,,
Nottinghamshire County Council,1111/1001,Children and Young People,CYP,Transport Related,CCA,06.11.2012,11-13718,1800,Sprays Transport Ltd,,,,,,,,,,
Nottinghamshire County Council,1111/1001,Children and Young People,CYP,Transport Related,CCA,06.11.2012,11-13719,1598,Sprays Transport Ltd,,,,,,,,,,
Nottinghamshire County Council,1111/1001,Children and Young People,CYP,Transport Related,CCA,06.11.2012,11-13720,1408,Sprays Transport Ltd,,,,,,,,,,
Nottinghamshire County Council,1111/1001,Children and Young People,CYP,Transport Related,CCA,06.11.2012,11-13721,1530,Sprays Transport Ltd,,,,,,,,,,
Nottinghamshire County Council,1111/1001,Children and Young People,CYP,Transport Related,CCA,06.11.2012,11-13725,1408,Goldstar Travel Nottm Ltd,,,,,,,,,,
Nottinghamshire County Council,1111/1001,Children and Young People,CYP,Transport Related,CCA,06.11.2012,11-13726,2320,Goldstar Travel Nottm Ltd,,,,,,,,,,
Nottinghamshire County Council,1111/1001,Children and Young People,CYP,Transport Related,CCA,06.11.2012,11-13727,1190,Goldstar Travel Nottm Ltd,,,,,,,,,,
Nottinghamshire County Council,1111/1001,Children and Young People,CYP,Transport Related,CCA,06.11.2012,11-13728,1786.24,Travelwise Coaches Ltd,,,,,,,,,,
Nottinghamshire County Council,1111/1001,Children and Young People,CYP,Transport Related,CCA,06.11.2012,11-13729,1951.26,Travelwise Coaches Ltd,,,,,,,,,,
Nottinghamshire County Council,1111/1001,Children and Young People,CYP,Transport Related,CCA,06.11.2012,11-13730,1836,Travelwise Coaches Ltd,,,,,,,,,,
Nottinghamshire County Council,1111/1001,Children and Young People,CYP,Transport Related,CCA,06.11.2012,11-13731,1586.44,Travelwise Coaches Ltd,,,,,,,,,,
Nottinghamshire County Council,1111/1001,Children and Young People,CYP,Transport Related,CCA,06.11.2012,11-13736,1545.3,Garys Coaches Ltd,,,,,,,,,,
Nottinghamshire County Council,1111/1001,Children and Young People,CYP,Transport Related,CCA,06.11.2012,11-13741,11563.2,Travel Wright Ltd,,,,,,,,,,
Nottinghamshire County Council,1111/1001,Children and Young People,CYP,Transport Related,CCA,06.11.2012,11-13747,2891,Freeway Coaches Ltd,,,,,,,,,,
Nottinghamshire County Council,1111/1001,Children and Young People,CYP,Transport Related,CCA,06.11.2012,11-13749,5706,Kettlewell Retford Ltd,,,,,,,,,,
Nottinghamshire County Council,1111/1001,Children and Young People,CYP,Transport Related,CCA,06.11.2012,11-13750,2679.84,C W Moxon Ltd,,,,,,,,,,
Nottinghamshire County Council,1111/1001,Children and Young People,CYP,Transport Related,CCA,06.11.2012,11-13751,2646,C W Moxon Ltd,,,,,,,,,,
Nottinghamshire County Council,1111/1001,Children and Young People,CYP,Transport Related,CCA,06.11.2012,11-13758,800.28,Rio Cabs,,,,,,,,,,
Nottinghamshire County Council,1111/1001,Children and Young People,CYP,Transport Related,CCA,06.11.2012,11-13760,660,Direct Cars (Lincoln) Ltd,,,,,,,,,,
Nottinghamshire County Council,1111/1001,Children and Young People,CYP,Transport Related,CCA,08.11.2012,11-13921,2370.6,Sharpes Of Nottingham,,,,,,,,,,
Nottinghamshire County Council,1111/1001,Children and Young People,CYP,Transport Related,CCA,08.11.2012,11-13925,2091.6,Sharpes Of Nottingham,,,,,,,,,,
Nottinghamshire County Council,1111/1001,Children and Young People,CYP,Transport Related,CCA,08.11.2012,11-13926,1187.25,Sharpes Of Nottingham,,,,,,,,,,
Nottinghamshire County Council,1111/1001,Children and Young People,CYP,Transport Related,CCA,08.11.2012,11-13927,595,Sharpes Of Nottingham,,,,,,,,,,
Nottinghamshire County Council,1111/1001,Children and Young People,CYP,Transport Related,CCA,08.11.2012,11-13933,883.36,Premiere Travel Ltd,,,,,,,,,,
Nottinghamshire County Council,1111/1001,Children and Young People,CYP,Transport Related,CCA,08.11.2012,11-13938,3106.07,Redfern Travel,,,,,,,,,,
Nottinghamshire County Council,1111/1001,Children and Young People,CYP,Transport Related,CCA,08.11.2012,11-13940,1454.4,Arrow Specialised Transport Ltd,,,,,,,,,,
Nottinghamshire County Council,1111/1001,Children and Young People,CYP,Transport Related,CCA,08.11.2012,11-13941,1880,Erewash Community Transport,,,,,,,,,,
Nottinghamshire County Council,1111/1001,Children and Young People,CYP,Transport Related,CCA,08.11.2012,11-13942,1501.44,Erewash Community Transport,,,,,,,,,,
Nottinghamshire County Council,1111/1001,Children and Young People,CYP,Transport Related,CCA,08.11.2012,11-13943,1389.28,Erewash Community Transport,,,,,,,,,,
Nottinghamshire County Council,1111/1001,Children and Young People,CYP,Transport Related,CCA,08.11.2012,11-13944,1715.04,Erewash Community Transport,,,,,,,,,,
Nottinghamshire County Council,1111/1001,Children and Young People,CYP,Transport Related,CCA,08.11.2012,11-13945,2080.98,Erewash Community Transport,,,,,,,,,,
Nottinghamshire County Council,1111/1001,Children and Young People,CYP,Transport Related,CCA,08.11.2012,11-13947,935,Sprays Transport Ltd,,,,,,,,,,
Nottinghamshire County Council,1111/1001,Children and Young People,CYP,Transport Related,CCA,08.11.2012,11-13948,1260.72,Sprays Transport Ltd,,,,,,,,,,
Nottinghamshire County Council,1111/1001,Children and Young People,CYP,Transport Related,CCA,08.11.2012,11-13949,1360,Sprays Transport Ltd,,,,,,,,,,
Nottinghamshire County Council,1111/1001,Children and Young People,CYP,Transport Related,CCA,08.11.2012,11-13959,2760.97,Marshalls Of Sutton On Trent Ltd,,,,,,,,,,
Nottinghamshire County Council,1111/1001,Children and Young People,CYP,Transport Related,CCA,08.11.2012,11-13966,931.86,Meden Travel,,,,,,,,,,
Nottinghamshire County Council,1111/1001,Children and Young People,CYP,Transport Related,CCA,08.11.2012,11-13998,1012.93,Stagecoach Services Ltd,,,,,,,,,,
Nottinghamshire County Council,1111/1001,Children and Young People,CYP,Transport Related,CCA,08.11.2012,11-14003,1587.46,Ashfield Travel,,,,,,,,,,
Nottinghamshire County Council,1111/1001,Children and Young People,CYP,Transport Related,CCA,08.11.2012,11-14006,910,Town Taxis Ltd,,,,,,,,,,
Nottinghamshire County Council,1111/1001,Children and Young People,CYP,Transport Related,CCA,08.11.2012,11-14007,1152,Town Taxis Ltd,,,,,,,,,,
Nottinghamshire County Council,1111/1001,Children and Young People,CYP,Transport Related,CCA,08.11.2012,11-14009,1918.5,Stubbsy Travel,,,,,,,,,,
Nottinghamshire County Council,1111/1001,Children and Young People,CYP,Transport Related,CCA,08.11.2012,11-14010,1260,Ace Cars,,,,,,,,,,
Nottinghamshire County Council,1111/1001,Children and Young People,CYP,Transport Related,CCA,12.11.2012,11-14274,1440,Central Cars Nottm Ltd,,,,,,,,,,
Nottinghamshire County Council,1111/1001,Children and Young People,CYP,Transport Related,CCA,12.11.2012,11-14275,630,Central Cars Nottm Ltd,,,,,,,,,,
Nottinghamshire County Council,1111/1001,Children and Young People,CYP,Transport Related,CCA,12.11.2012,11-14276,1190,Central Cars Nottm Ltd,,,,,,,,,,
Nottinghamshire County Council,1111/1001,Children and Young People,CYP,Transport Related,CCA,12.11.2012,11-14277,799.92,Central Cars Nottm Ltd,,,,,,,,,,
Nottinghamshire County Council,1111/1001,Children and Young People,CYP,Transport Related,CCA,12.11.2012,11-14278,1257.83,Central Cars Nottm Ltd,,,,,,,,,,
Nottinghamshire County Council,1111/1001,Children and Young People,CYP,Transport Related,CCA,12.11.2012,11-14279,1976,Central Cars Nottm Ltd,,,,,,,,,,
Nottinghamshire County Council,1111/1001,Children and Young People,CYP,Transport Related,CCA,12.11.2012,11-14280,1020,Central Cars Nottm Ltd,,,,,,,,,,
Nottinghamshire County Council,1111/1001,Children and Young People,CYP,Transport Related,CCA,12.11.2012,11-14281,710,Central Cars Nottm Ltd,,,,,,,,,,
Nottinghamshire County Council,1111/1001,Children and Young People,CYP,Transport Related,CCA,12.11.2012,11-14282,1260,Central Cars Nottm Ltd,,,,,,,,,,
Nottinghamshire County Council,1111/1001,Children and Young People,CYP,Transport Related,CCA,12.11.2012,11-14287,3360,Redfern Travel,,,,,,,,,,
Nottinghamshire County Council,1111/1001,Children and Young People,CYP,Transport Related,CCA,12.11.2012,11-14288,1300,Redfern Travel,,,,,,,,,,
Nottinghamshire County Council,1111/1001,Children and Young People,CYP,Transport Related,CCA,12.11.2012,11-14289,2160,Vale Travel,,,,,,,,,,
Nottinghamshire County Council,1111/1001,Children and Young People,CYP,Transport Related,CCA,12.11.2012,11-14290,504,CBC Taxis Ltd,,,,,,,,,,
Nottinghamshire County Council,1111/1001,Children and Young People,CYP,Transport Related,CCA,12.11.2012,11-14291,648,CBC Taxis Ltd,,,,,,,,,,
Nottinghamshire County Council,1111/1001,Children and Young People,CYP,Transport Related,CCA,12.11.2012,11-14294,2952,Butler Brothers Ltd,,,,,,,,,,
Nottinghamshire County Council,1111/1001,Children and Young People,CYP,Transport Related,CCA,12.11.2012,11-14295,510,D G Private Hire Ltd,,,,,,,,,,
Nottinghamshire County Council,1111/1001,Children and Young People,CYP,Transport Related,CCA,12.11.2012,11-14296,1332,D G Private Hire Ltd,,,,,,,,,,
Nottinghamshire County Council,1111/1001,Children and Young People,CYP,Transport Related,CCA,12.11.2012,11-14297,960,D G Private Hire Ltd,,,,,,,,,,
Nottinghamshire County Council,1111/1001,Children and Young People,CYP,Transport Related,CCA,12.11.2012,11-14298,6426,D G Private Hire Ltd,,,,,,,,,,
Nottinghamshire County Council,1111/1001,Children and Young People,CYP,Transport Related,CCA,12.11.2012,11-14299,896,D G Private Hire Ltd,,,,,,,,,,
Nottinghamshire County Council,1111/1001,Children and Young People,CYP,Transport Related,CCA,12.11.2012,11-14300,1875,D G Private Hire Ltd,,,,,,,,,,
Nottinghamshire County Council,1111/1001,Children and Young People,CYP,Transport Related,CCA,12.11.2012,11-14301,1080,D G Private Hire Ltd,,,,,,,,,,
Nottinghamshire County Council,1111/1001,Children and Young People,CYP,Transport Related,CCA,12.11.2012,11-14302,1428,D G Private Hire Ltd,,,,,,,,,,
Nottinghamshire County Council,1111/1001,Children and Young People,CYP,Transport Related,CCA,12.11.2012,11-14303,1350,D G Private Hire Ltd,,,,,,,,,,
Nottinghamshire County Council,1111/1001,Children and Young People,CYP,Transport Related,CCA,12.11.2012,11-14304,650,D G Private Hire Ltd,,,,,,,,,,
Nottinghamshire County Council,1111/1001,Children and Young People,CYP,Transport Related,CCA,12.11.2012,11-14305,2531.7,F & J Marriott T/A Unity Coaches,,,,,,,,,,
Nottinghamshire County Council,1111/1001,Children and Young People,CYP,Transport Related,CCA,12.11.2012,11-14306,2466,F & J Marriott T/A Unity Coaches,,,,,,,,,,
Nottinghamshire County Council,1111/1001,Children and Young People,CYP,Transport Related,CCA,12.11.2012,11-14307,2430,F & J Marriott T/A Unity Coaches,,,,,,,,,,
Nottinghamshire County Council,1111/1001,Children and Young People,CYP,Transport Related,CCA,12.11.2012,11-14312,3246.15,BN Gibson Ltd,,,,,,,,,,
Nottinghamshire County Council,1111/1001,Children and Young People,CYP,Transport Related,CCA,12.11.2012,11-14313,1530,BN Gibson Ltd,,,,,,,,,,
Nottinghamshire County Council,1111/1001,Children and Young People,CYP,Transport Related,CCA,12.11.2012,11-14314,3468.96,BN Gibson Ltd,,,,,,,,,,
Nottinghamshire County Council,1111/1001,Children and Young People,CYP,Transport Related,CCA,12.11.2012,11-14315,2915.1,BN Gibson Ltd,,,,,,,,,,
Nottinghamshire County Council,1111/1001,Children and Young People,CYP,Transport Related,CCA,12.11.2012,11-14316,3432.13,BN Gibson Ltd,,,,,,,,,,
Nottinghamshire County Council,1111/1001,Children and Young People,CYP,Transport Related,CCA,12.11.2012,11-14317,2700,BN Gibson Ltd,,,,,,,,,,
Nottinghamshire County Council,1111/1001,Children and Young People,CYP,Transport Related,CCA,12.11.2012,11-14318,4007.16,BN Gibson Ltd,,,,,,,,,,
Nottinghamshire County Council,1111/1001,Children and Young People,CYP,Transport Related,CCA,12.11.2012,11-14319,2915.82,BN Gibson Ltd,,,,,,,,,,
Nottinghamshire County Council,1111/1001,Children and Young People,CYP,Transport Related,CCA,12.11.2012,11-14320,3080.48,BN Gibson Ltd,,,,,,,,,,
Nottinghamshire County Council,1111/1001,Children and Young People,CYP,Transport Related,CCA,12.11.2012,11-14322,1984,BN Gibson Ltd,,,,,,,,,,
Nottinghamshire County Council,1111/1001,Children and Young People,CYP,Transport Related,CCA,12.11.2012,11-14323,2918.9,BN Gibson Ltd,,,,,,,,,,
Nottinghamshire County Council,1111/1001,Children and Young People,CYP,Transport Related,CCA,12.11.2012,11-14324,3168.8,BN Gibson Ltd,,,,,,,,,,
Nottinghamshire County Council,1111/1001,Children and Young People,CYP,Transport Related,CCA,12.11.2012,11-14325,2250,BN Gibson Ltd,,,,,,,,,,
Nottinghamshire County Council,1111/1001,Children and Young People,CYP,Transport Related,CCA,12.11.2012,11-14326,2597.4,BN Gibson Ltd,,,,,,,,,,
Nottinghamshire County Council,1111/1001,Children and Young People,CYP,Transport Related,CCA,12.11.2012,11-14327,2713.5,BN Gibson Ltd,,,,,,,,,,
Nottinghamshire County Council,1111/1001,Children and Young People,CYP,Transport Related,CCA,12.11.2012,11-14328,3443.4,BN Gibson Ltd,,,,,,,,,,
Nottinghamshire County Council,1111/1001,Children and Young People,CYP,Transport Related,CCA,12.11.2012,11-14329,2533,BN Gibson Ltd,,,,,,,,,,
Nottinghamshire County Council,1111/1001,Children and Young People,CYP,Transport Related,CCA,12.11.2012,11-14330,2210,BN Gibson Ltd,,,,,,,,,,
Nottinghamshire County Council,1111/1001,Children and Young People,CYP,Transport Related,CCA,12.11.2012,11-14333,1537.7,BN Gibson Ltd,,,,,,,,,,
Nottinghamshire County Council,1111/1001,Children and Young People,CYP,Transport Related,CCA,12.11.2012,11-14334,1554,D G Private Hire Ltd,,,,,,,,,,
Nottinghamshire County Council,1111/1001,Children and Young People,CYP,Transport Related,CCA,12.11.2012,11-14335,510,D G Private Hire Ltd,,,,,,,,,,
Nottinghamshire County Council,1111/1001,Children and Young People,CYP,Transport Related,CCA,12.11.2012,11-14336,2128,D G Private Hire Ltd,,,,,,,,,,
Nottinghamshire County Council,1111/1001,Children and Young People,CYP,Transport Related,CCA,12.11.2012,11-14339,700,Jb Tours Watnall Ltd,,,,,,,,,,
Nottinghamshire County Council,1111/1001,Children and Young People,CYP,Transport Related,CCA,12.11.2012,11-14340,1000,Jb Tours Watnall Ltd,,,,,,,,,,
Nottinghamshire County Council,1111/1001,Children and Young People,CYP,Transport Related,CCA,12.11.2012,11-14359,2575.5,Stagecoach Services Ltd,,,,,,,,,,
Nottinghamshire County Council,1111/1001,Children and Young People,CYP,Transport Related,CCA,12.11.2012,11-14360,2388.24,Travel Wright Ltd,,,,,,,,,,
Nottinghamshire County Council,1111/1001,Children and Young People,CYP,Transport Related,CCA,12.11.2012,11-14365,2661.35,Travel Wright Ltd,,,,,,,,,,
Nottinghamshire County Council,1111/1001,Children and Young People,CYP,Transport Related,CCA,12.11.2012,11-14368,1677.6,Rio Cabs,,,,,,,,,,
Nottinghamshire County Council,1111/1001,Children and Young People,CYP,Transport Related,CCA,12.11.2012,11-14369,885.6,Rio Cabs,,,,,,,,,,
Nottinghamshire County Council,1111/1001,Children and Young People,CYP,Transport Related,CCA,12.11.2012,11-14371,4466.2,Isle Coaches,,,,,,,,,,
Nottinghamshire County Council,1111/1001,Children and Young People,CYP,Transport Related,CCA,12.11.2012,11-14372,816,Ace Cars,,,,,,,,,,
Nottinghamshire County Council,1111/1001,Children and Young People,CYP,Transport Related,CCA,12.11.2012,11-14373,1518,Ace Cars,,,,,,,,,,
Nottinghamshire County Council,1111/1001,Children and Young People,CYP,Transport Related,CCA,12.11.2012,11-14374,2556.8,L A Travel,,,,,,,,,,
Nottinghamshire County Council,1111/1001,Children and Young People,CYP,Transport Related,CCA,13.11.2012,11-14721,883.36,Premiere Travel Ltd,,,,,,,,,,
Nottinghamshire County Council,1111/1001,Children and Young People,CYP,Transport Related,CCA,13.11.2012,11-14739,1005.12,Acorn Contracts,,,,,,,,,,
Nottinghamshire County Council,1111/1001,Children and Young People,CYP,Transport Related,CCA,13.11.2012,11-14746,2664,Arrow Specialised Transport Ltd,,,,,,,,,,
Nottinghamshire County Council,1111/1001,Children and Young People,CYP,Transport Related,CCA,13.11.2012,11-14757,1858.14,Sprays Transport Ltd,,,,,,,,,,
Nottinghamshire County Council,1111/1001,Children and Young People,CYP,Transport Related,CCA,13.11.2012,11-14758,1513,Trent Cars,,,,,,,,,,
Nottinghamshire County Council,1111/1001,Children and Young People,CYP,Transport Related,CCA,13.11.2012,11-14760,750,123 Taxis,,,,,,,,,,
Nottinghamshire County Council,1111/1001,Children and Young People,CYP,Transport Related,CCA,13.11.2012,11-14765,5494.4,Stagecoach Services Ltd,,,,,,,,,,
Nottinghamshire County Council,1111/1001,Children and Young People,CYP,Transport Related,CCA,13.11.2012,11-14770,2810.82,Tiger European Uk Ltd,,,,,,,,,,
Nottinghamshire County Council,1111/1001,Children and Young People,CYP,Transport Related,CCA,13.11.2012,11-14774,2006,Diamond Cars,,,,,,,,,,
Nottinghamshire County Council,1111/1001,Children and Young People,CYP,Transport Related,CCA,13.11.2012,11-14775,2443.32,Diamond Cars,,,,,,,,,,
Nottinghamshire County Council,1111/1001,Children and Young People,CYP,Transport Related,CCA,13.11.2012,11-14776,2023,Diamond Cars,,,,,,,,,,
Nottinghamshire County Council,1111/1001,Children and Young People,CYP,Transport Related,CCA,13.11.2012,11-14777,1632,Diamond Cars,,,,,,,,,,
Nottinghamshire County Council,1111/1001,Children and Young People,CYP,Transport Related,CCA,13.11.2012,11-14778,658,Town Taxis Ltd,,,,,,,,,,
Nottinghamshire County Council,1111/1001,Children and Young People,CYP,Transport Related,CCA,15.11.2012,11-14971,1788.32,Johnson Bros Tours Ltd,,,,,,,,,,
Nottinghamshire County Council,1111/1001,Children and Young People,CYP,Transport Related,CCA,15.11.2012,11-14985,1755.04,Sprays Transport Ltd,,,,,,,,,,
Nottinghamshire County Council,1111/1001,Children and Young People,CYP,Transport Related,CCA,15.11.2012,11-14986,707,Sprays Transport Ltd,,,,,,,,,,
Nottinghamshire County Council,1111/1001,Children and Young People,CYP,Transport Related,CCA,15.11.2012,11-14988,1606.87,BN Gibson Ltd,,,,,,,,,,
Nottinghamshire County Council,1111/1001,Children and Young People,CYP,Transport Related,CCA,15.11.2012,11-14989,1722.22,BN Gibson Ltd,,,,,,,,,,
Nottinghamshire County Council,1111/1001,Children and Young People,CYP,Transport Related,CCA,15.11.2012,11-14992,2842.24,AOT Coaches,,,,,,,,,,
Nottinghamshire County Council,1111/1001,Children and Young People,CYP,Transport Related,CCA,15.11.2012,11-14998,1575,AOT Coaches,,,,,,,,,,
Nottinghamshire County Council,1111/1001,Children and Young People,CYP,Transport Related,CCA,15.11.2012,11-14999,1710,AOT Coaches,,,,,,,,,,
Nottinghamshire County Council,1111/1001,Children and Young People,CYP,Transport Related,CCA,19.11.2012,11-15261,569.5,Mars Cars Ltd,,,,,,,,,,
Nottinghamshire County Council,1111/1001,Children and Young People,CYP,Transport Related,CCA,19.11.2012,11-15262,1183.68,Mars Cars Ltd,,,,,,,,,,
Nottinghamshire County Council,1111/1001,Children and Young People,CYP,Transport Related,CCA,19.11.2012,11-15263,1063.62,AAA Taxis,,,,,,,,,,
Nottinghamshire County Council,1111/1001,Children and Young People,CYP,Transport Related,CCA,19.11.2012,11-15264,929.74,AAA Taxis,,,,,,,,,,
Nottinghamshire County Council,1111/1001,Children and Young People,CYP,Transport Related,CCA,19.11.2012,11-15265,644.22,AAA Taxis,,,,,,,,,,
Nottinghamshire County Council,1111/1001,Children and Young People,CYP,Transport Related,CCA,19.11.2012,11-15266,588,AAA Taxis,,,,,,,,,,
Nottinghamshire County Council,1111/1001,Children and Young People,CYP,Transport Related,CCA,19.11.2012,11-15267,1995,AAA Taxis,,,,,,,,,,
Nottinghamshire County Council,1111/1001,Children and Young People,CYP,Transport Related,CCA,19.11.2012,11-15269,1941.2,AAA Taxis,,,,,,,,,,
Nottinghamshire County Council,1111/1001,Children and Young People,CYP,Transport Related,CCA,19.11.2012,11-15270,1224,AAA Taxis,,,,,,,,,,
Nottinghamshire County Council,1111/1001,Children and Young People,CYP,Transport Related,CCA,19.11.2012,11-15271,570,AAA Taxis,,,,,,,,,,
Nottinghamshire County Council,1111/1001,Children and Young People,CYP,Transport Related,CCA,19.11.2012,11-15272,1075.5,AAA Taxis,,,,,,,,,,
Nottinghamshire County Council,1111/1001,Children and Young People,CYP,Transport Related,CCA,20.11.2012,11-15486,720,Cem Muskham Ltd T/A Z Cars,,,,,,,,,,
Nottinghamshire County Council,1111/1001,Children and Young People,CYP,Transport Related,CCA,21.11.2012,11-17159,550,Silverdale Tours Nottm Ltd,,,,,,,,,,
Nottinghamshire County Council,1111/1001,Children and Young People,CYP,Transport Related,CCA,23.11.2012,11-16055,1211.05,Dial A Trip,,,,,,,,,,
Nottinghamshire County Council,1111/1001,Children and Young People,CYP,Transport Related,CCA,23.11.2012,11-16057,883.36,Premiere Travel Ltd,,,,,,,,,,
Nottinghamshire County Council,1111/1001,Children and Young People,CYP,Transport Related,CCA,30.11.2012,11-14375,1686.6,Srcl Ltd,,,,,,,,,,
Nottinghamshire County Council,1111/1001,Children and Young People,CYP,Transport Related,CCA,30.11.2012,11-14376,2336.76,Srcl Ltd,,,,,,,,,,
Nottinghamshire County Council,1111/1001,Children and Young People,CYP,Transport Related,CCA,30.11.2012,11-14377,1560.6,Srcl Ltd,,,,,,,,,,
Nottinghamshire County Council,1111/1001,Children and Young People,CYP,Transport Related,CCA,30.11.2012,11-14378,2241,Srcl Ltd,,,,,,,,,,
Nottinghamshire County Council,1111/1001,Children and Young People,CYP,Transport Related,CCA,30.11.2012,11-14379,2250,Srcl Ltd,,,,,,,,,,
Nottinghamshire County Council,1111/1001,Children and Young People,CYP,Transport Related,CCA,30.11.2012,11-14380,1856.52,Srcl Ltd,,,,,,,,,,
Nottinghamshire County Council,1111/1001,Children and Young People,CYP,Transport Related,CCA,30.11.2012,11-14381,2754,Srcl Ltd,,,,,,,,,,
Nottinghamshire County Council,1111/1001,Children and Young People,CYP,Transport Related,CCA,30.11.2012,11-14382,2037.78,Srcl Ltd,,,,,,,,,,
Nottinghamshire County Council,1111/1001,Children and Young People,CYP,Transport Related,CCA,30.11.2012,11-14383,2003.58,Srcl Ltd,,,,,,,,,,
Nottinghamshire County Council,1111/1001,Children and Young People,CYP,Transport Related,CCA,30.11.2012,11-14384,2023.92,Srcl Ltd,,,,,,,,,,
Nottinghamshire County Council,1111/1001,Children and Young People,CYP,Transport Related,CCA,30.11.2012,11-14385,1980,Srcl Ltd,,,,,,,,,,
Nottinghamshire County Council,1111/1001,Children and Young People,CYP,Transport Related,CCA,30.11.2012,11-14387,2215.62,Srcl Ltd,,,,,,,,,,
Nottinghamshire County Council,1111/1001,Children and Young People,CYP,Transport Related,CCA,30.11.2012,11-14388,2250,Srcl Ltd,,,,,,,,,,
Nottinghamshire County Council,1111/1001,Children and Young People,CYP,Transport Related,CCA,30.11.2012,11-14389,2233.62,Srcl Ltd,,,,,,,,,,
Nottinghamshire County Council,1111/1001,Children and Young People,CYP,Transport Related,CCA,30.11.2012,11-14390,1203.84,Srcl Ltd,,,,,,,,,,
Nottinghamshire County Council,1111/1001,Children and Young People,CYP,Transport Related,CCA,30.11.2012,11-14391,1201.14,Srcl Ltd,,,,,,,,,,
Nottinghamshire County Council,1111/1001,Children and Young People,CYP,Transport Related,CCA,30.11.2012,11-14392,3132,Srcl Ltd,,,,,,,,,,
Nottinghamshire County Council,1111/1001,Children and Young People,CYP,Transport Related,CDA,05.11.2012,11-10350,535.5,Arrow Specialised Transport Ltd,,,,,,,,,,
Nottinghamshire County Council,1111/1001,Children and Young People,CYP,Transport Related,CDA,05.11.2012,11-10351,125,Fozcabs Newark Taxis,,,,,,,,,,
Nottinghamshire County Council,1111/1001,Children and Young People,CYP,Transport Related,CDA,05.11.2012,11-10354,249.22,Fozcabs Newark Taxis,,,,,,,,,,
Nottinghamshire County Council,1111/1001,Children and Young People,CYP,Transport Related,CDA,05.11.2012,11-10355,510,Fozcabs Newark Taxis,,,,,,,,,,
Nottinghamshire County Council,1111/1001,Children and Young People,CYP,Transport Related,CDA,06.11.2012,11-13636,384.48,Arrow Specialised Transport Ltd,,,,,,,,,,
Nottinghamshire County Council,1111/1001,Children and Young People,CYP,Transport Related,CDA,06.11.2012,11-13654,276.25,Arrow Specialised Transport Ltd,,,,,,,,,,
Nottinghamshire County Council,1111/1001,Children and Young People,CYP,Transport Related,CDA,06.11.2012,11-13655,191.47,Arrow Specialised Transport Ltd,,,,,,,,,,
Nottinghamshire County Council,1111/1001,Children and Young People,CYP,Transport Related,CDA,06.11.2012,11-13662,1255.7,Arrow Specialised Transport Ltd,,,,,,,,,,
Nottinghamshire County Council,1111/1001,Children and Young People,CYP,Transport Related,CDA,06.11.2012,11-13665,1079.49,Arrow Specialised Transport Ltd,,,,,,,,,,
Nottinghamshire County Council,1111/1001,Children and Young People,CYP,Transport Related,CDA,06.11.2012,11-13704,859.52,Sprays Transport Ltd,,,,,,,,,,
Nottinghamshire County Council,1111/1001,Children and Young People,CYP,Transport Related,CDA,06.11.2012,11-13758,266.76,Rio Cabs,,,,,,,,,,
Nottinghamshire County Council,1111/1001,Children and Young People,CYP,Transport Related,CDA,12.11.2012,11-14313,1530,BN Gibson Ltd,,,,,,,,,,
Nottinghamshire County Council,1111/1001,Children and Young People,CYP,Transport Related,CDA,19.11.2012,11-15268,1691,AAA Taxis,,,,,,,,,,
Nottinghamshire County Council,1111/1001,Children and Young People,CYP,Transport Related,CEA,05.11.2012,11-10400,450,Making It! Enterprises Ltd,,,,,,,,,,
Nottinghamshire County Council,1111/1001,Children and Young People,CYP,Supplies & Services,DAA,02.11.2012,11-10077,61126.63,Rushcliffe School Academy Trust,,,,,,,,,,
Nottinghamshire County Council,1111/1001,Children and Young People,CYP,Supplies & Services,DAA,06.11.2012,11-16703,850,Wilson Electrics Ltd,,,,,,,,,,
Nottinghamshire County Council,1111/1001,Children and Young People,CYP,Supplies & Services,DAA,07.11.2012,11-10268,925,Aquinas Education Ltd,,,,,,,,,,
Nottinghamshire County Council,1111/1001,Children and Young People,CYP,Supplies & Services,DAA,07.11.2012,11-10269,925,Aquinas Education Ltd,,,,,,,,,,
Nottinghamshire County Council,1111/1001,Children and Young People,CYP,Supplies & Services,DAA,09.11.2012,11-13827,3617.89,Transform Schools,,,,,,,,,,
Nottinghamshire County Council,1111/1001,Children and Young People,CYP,Supplies & Services,DAA,09.11.2012,11-13828,20589,Transform Schools,,,,,,,,,,
Nottinghamshire County Council,1111/1001,Children and Young People,CYP,Supplies & Services,DAA,09.11.2012,11-13833,47705.31,Transform Schools,,,,,,,,,,
Nottinghamshire County Council,1111/1001,Children and Young People,CYP,Supplies & Services,DAA,09.11.2012,11-13834,35656.57,Transform Schools,,,,,,,,,,
Nottinghamshire County Council,1111/1001,Children and Young People,CYP,Supplies & Services,DAA,09.11.2012,11-13836,17130.2,East Leake Schools Ltd,,,,,,,,,,
Nottinghamshire County Council,1111/1001,Children and Young People,CYP,Supplies & Services,DAA,09.11.2012,11-14109,1482975.52,Transform Schools,,,,,,,,,,
Nottinghamshire County Council,1111/1001,Children and Young People,CYP,Supplies & Services,DAA,09.11.2012,11-14110,226916.84,East Leake Schools Ltd,,,,,,,,,,
Nottinghamshire County Council,1111/1001,Children and Young People,CYP,Supplies & Services,DAA,09.11.2012,11-14241,231048.96,Cotgrave Candleby Lane School,,,,,,,,,,
Nottinghamshire County Council,1111/1001,Children and Young People,CYP,Supplies & Services,DAA,09.11.2012,11-16827,638.5,Daleswear Ltd,,,,,,,,,,
Nottinghamshire County Council,1111/1001,Children and Young People,CYP,Supplies & Services,DAA,13.11.2012,11-16843,926.21,William Freer Limited,,,,,,,,,,
Nottinghamshire County Council,1111/1001,Children and Young People,CYP,Supplies & Services,DAA,15.11.2012,11-14845,5870,Crestline Printers Ltd,,,,,,,,,,
Nottinghamshire County Council,1111/1001,Children and Young People,CYP,Supplies & Services,DAA,20.11.2012,11-17098,3390,Genie Care Ltd,,,,,,,,,,
Nottinghamshire County Council,1111/1001,Children and Young People,CYP,Supplies & Services,DAA,21.11.2012,11-15537,1000,The Elizabethan Academy,,,,,,,,,,
Nottinghamshire County Council,1111/1001,Children and Young People,CYP,Supplies & Services,DAA,22.11.2012,11-16944,5508.95,Connevans Ltd,,,,,,,,,,
Nottinghamshire County Council,1111/1001,Children and Young People,CYP,Supplies & Services,DAA,26.11.2012,11-16099,625,The Wright Initiative Ltd,,,,,,,,,,
Nottinghamshire County Council,1111/1001,Children and Young People,CYP,Supplies & Services,DAA,26.11.2012,11-16105,720,Leicestershire County Council (Espo,,,,,,,,,,
Nottinghamshire County Council,1111/1001,Children and Young People,CYP,Supplies & Services,DAA,26.11.2012,11-16149,721.57,MBE Books Ltd,,,,,,,,,,
Nottinghamshire County Council,1111/1001,Children and Young People,CYP,Supplies & Services,DAA,27.11.2012,11-17348,1175,Slack & Co Floorcoverings,,,,,,,,,,
Nottinghamshire County Council,1111/1001,Children and Young People,CYP,Supplies & Services,DAA,28.11.2012,11-16365,1906,John Godber Centre,,,,,,,,,,
Nottinghamshire County Council,1111/1001,Children and Young People,CYP,Supplies & Services,DAA,29.11.2012,11-17392,2155.52,John Scheerer & Sons Ltd,,,,,,,,,,
Nottinghamshire County Council,1111/1001,Children and Young People,CYP,Supplies & Services,DAA,30.11.2012,11-16556,1906,John Godber Centre,,,,,,,,,,
Nottinghamshire County Council,1111/1001,Children and Young People,CYP,Supplies & Services,DBA,01.11.2012,11-10081,210.76,Arnold Dairies Ltd,,,,,,,,,,
Nottinghamshire County Council,1111/1001,Children and Young People,CYP,Supplies & Services,DBA,01.11.2012,11-10254,493.18,Brake Bros Ltd,,,,,,,,,,
Nottinghamshire County Council,1111/1001,Children and Young People,CYP,Supplies & Services,DBA,02.11.2012,11-10298,283.82,Brake Bros Ltd,,,,,,,,,,
Nottinghamshire County Council,1111/1001,Children and Young People,CYP,Supplies & Services,DBA,02.11.2012,11-10300,674.54,Brake Bros Ltd,,,,,,,,,,
Nottinghamshire County Council,1111/1001,Children and Young People,CYP,Supplies & Services,DBA,02.11.2012,11-10301,617.62,Brake Bros Ltd,,,,,,,,,,
Nottinghamshire County Council,1111/1001,Children and Young People,CYP,Supplies & Services,DBA,06.11.2012,11-13599,42.64,Brake Bros Ltd,,,,,,,,,,
Nottinghamshire County Council,1111/1001,Children and Young People,CYP,Supplies & Services,DBA,06.11.2012,11-13600,195.49,Brake Bros Ltd,,,,,,,,,,
Nottinghamshire County Council,1111/1001,Children and Young People,CYP,Supplies & Services,DBA,06.11.2012,11-13602,301.23,M Maloney Country Butchers & B Ltd,,,,,,,,,,
Nottinghamshire County Council,1111/1001,Children and Young People,CYP,Supplies & Services,DBA,07.11.2012,11-13815,397.69,Hallam Country Fresh Foods Ltd,,,,,,,,,,
Nottinghamshire County Council,1111/1001,Children and Young People,CYP,Supplies & Services,DBA,07.11.2012,11-13818,472.13,Brake Bros Ltd,,,,,,,,,,
Nottinghamshire County Council,1111/1001,Children and Young People,CYP,Supplies & Services,DBA,08.11.2012,11-14011,343.38,Brake Bros Ltd,,,,,,,,,,
Nottinghamshire County Council,1111/1001,Children and Young People,CYP,Supplies & Services,DBA,08.11.2012,11-14012,261.1,Brake Bros Ltd,,,,,,,,,,
Nottinghamshire County Council,1111/1001,Children and Young People,CYP,Supplies & Services,DBA,08.11.2012,11-14013,362,Brake Bros Ltd,,,,,,,,,,
Nottinghamshire County Council,1111/1001,Children and Young People,CYP,Supplies & Services,DBA,12.11.2012,11-14426,167.7,Arnold Dairies Ltd,,,,,,,,,,
Nottinghamshire County Council,1111/1001,Children and Young People,CYP,Supplies & Services,DBA,12.11.2012,11-14428,587.95,Brake Bros Ltd,,,,,,,,,,
Nottinghamshire County Council,1111/1001,Children and Young People,CYP,Supplies & Services,DBA,12.11.2012,11-14429,698.95,Brake Bros Ltd,,,,,,,,,,
Nottinghamshire County Council,1111/1001,Children and Young People,CYP,Supplies & Services,DBA,12.11.2012,11-14430,188.81,Brake Bros Ltd,,,,,,,,,,
Nottinghamshire County Council,1111/1001,Children and Young People,CYP,Supplies & Services,DBA,13.11.2012,11-14819,412.42,Hallam Country Fresh Foods Ltd,,,,,,,,,,
Nottinghamshire County Council,1111/1001,Children and Young People,CYP,Supplies & Services,DBA,14.11.2012,11-14944,416.64,Brake Bros Ltd,,,,,,,,,,
Nottinghamshire County Council,1111/1001,Children and Young People,CYP,Supplies & Services,DBA,14.11.2012,11-14946,251.69,Brake Bros Ltd,,,,,,,,,,
Nottinghamshire County Council,1111/1001,Children and Young People,CYP,Supplies & Services,DBA,14.11.2012,11-14947,615.02,Brake Bros Ltd,,,,,,,,,,
Nottinghamshire County Council,1111/1001,Children and Young People,CYP,Supplies & Services,DBA,15.11.2012,11-15129,417.63,Brake Bros Ltd,,,,,,,,,,
Nottinghamshire County Council,1111/1001,Children and Young People,CYP,Supplies & Services,DBA,21.11.2012,11-15528,208.47,Arnold Dairies Ltd,,,,,,,,,,
Nottinghamshire County Council,1111/1001,Children and Young People,CYP,Supplies & Services,DBA,21.11.2012,11-15535,316.03,Hallam Country Fresh Foods Ltd,,,,,,,,,,
Nottinghamshire County Council,1111/1001,Children and Young People,CYP,Supplies & Services,DBA,22.11.2012,11-15833,313.76,M Maloney Country Butchers & B Ltd,,,,,,,,,,
Nottinghamshire County Council,1111/1001,Children and Young People,CYP,Supplies & Services,DBA,22.11.2012,11-15834,291.95,M Maloney Country Butchers & B Ltd,,,,,,,,,,
Nottinghamshire County Council,1111/1001,Children and Young People,CYP,Supplies & Services,DBA,22.11.2012,11-15835,244.72,M Maloney Country Butchers & B Ltd,,,,,,,,,,
Nottinghamshire County Council,1111/1001,Children and Young People,CYP,Supplies & Services,DBA,27.11.2012,11-16281,604.57,Brake Bros Ltd,,,,,,,,,,
Nottinghamshire County Council,1111/1001,Children and Young People,CYP,Supplies & Services,DBA,27.11.2012,11-16283,559.73,Brake Bros Ltd,,,,,,,,,,
Nottinghamshire County Council,1111/1001,Children and Young People,CYP,Supplies & Services,DBA,27.11.2012,11-16284,559.12,Brake Bros Ltd,,,,,,,,,,
Nottinghamshire County Council,1111/1001,Children and Young People,CYP,Supplies & Services,DBA,27.11.2012,11-16285,221.56,Brake Bros Ltd,,,,,,,,,,
Nottinghamshire County Council,1111/1001,Children and Young People,CYP,Supplies & Services,DBA,27.11.2012,11-16286,401.47,Hallam Country Fresh Foods Ltd,,,,,,,,,,
Nottinghamshire County Council,1111/1001,Children and Young People,CYP,Supplies & Services,DBA,30.11.2012,11-16568,314.26,Brake Bros Ltd,,,,,,,,,,
Nottinghamshire County Council,1111/1001,Children and Young People,CYP,Supplies & Services,DBA,30.11.2012,11-16570,218.5,Arnold Dairies Ltd,,,,,,,,,,
Nottinghamshire County Council,1111/1001,Children and Young People,CYP,Supplies & Services,DBA,30.11.2012,11-16571,195.5,Arnold Dairies Ltd,,,,,,,,,,
Nottinghamshire County Council,1111/1001,Children and Young People,CYP,Supplies & Services,DDA,28.11.2012,11-16393,6990,DFPTV,,,,,,,,,,
Nottinghamshire County Council,1111/1001,Children and Young People,CYP,Supplies & Services,DDA,30.11.2012,11-16573,788.42,Konica Minolta,,,,,,,,,,
Nottinghamshire County Council,1111/1001,Children and Young People,CYP,Supplies & Services,DEA,02.11.2012,11-10046,526.5,Pre School Learning Alliance,,,,,,,,,,
Nottinghamshire County Council,1111/1001,Children and Young People,CYP,Supplies & Services,DEA,02.11.2012,11-10284,1720.83,West Bridgford Out Of School Care L,,,,,,,,,,
Nottinghamshire County Council,1111/1001,Children and Young People,CYP,Supplies & Services,DEA,06.11.2012,11-13761,875,Winners After School Club Ltd,,,,,,,,,,
Nottinghamshire County Council,1111/1001,Children and Young People,CYP,Supplies & Services,DEA,06.11.2012,11-13781,1400,Support 4 Futures,,,,,,,,,,
Nottinghamshire County Council,1111/1001,Children and Young People,CYP,Supplies & Services,DEA,08.11.2012,11-16823,6226.5,E Learning Team Ltd,,,,,,,,,,
Nottinghamshire County Council,1111/1001,Children and Young People,CYP,Supplies & Services,DEA,09.11.2012,11-16772,750,New College Nottingham,,,,,,,,,,
Nottinghamshire County Council,1111/1001,Children and Young People,CYP,Supplies & Services,DEA,09.11.2012,11-16773,750,New College Nottingham,,,,,,,,,,
Nottinghamshire County Council,1111/1001,Children and Young People,CYP,Supplies & Services,DEA,12.11.2012,11-14448,3750,West Notts College,,,,,,,,,,
Nottinghamshire County Council,1111/1001,Children and Young People,CYP,Supplies & Services,DEA,13.11.2012,11-14821,628,Tiny World Day Nursery,,,,,,,,,,
Nottinghamshire County Council,1111/1001,Children and Young People,CYP,Supplies & Services,DEA,14.11.2012,11-14943,2315.63,Pre School Learning Alliance,,,,,,,,,,
Nottinghamshire County Council,1111/1001,Children and Young People,CYP,Supplies & Services,DEA,14.11.2012,11-16904,27060,Bloodhound Project Ltd,,,,,,,,,,
Nottinghamshire County Council,1111/1001,Children and Young People,CYP,Supplies & Services,DEA,19.11.2012,11-15228,644,Ollerton Out Of School Care,,,,,,,,,,
Nottinghamshire County Council,1111/1001,Children and Young People,CYP,Supplies & Services,DEA,19.11.2012,11-15230,922.5,Pre School Learning Alliance,,,,,,,,,,
Nottinghamshire County Council,1111/1001,Children and Young People,CYP,Supplies & Services,DEA,19.11.2012,11-15239,630,The Grove School,,,,,,,,,,
Nottinghamshire County Council,1111/1001,Children and Young People,CYP,Supplies & Services,DEA,19.11.2012,11-16984,595.4,Broxtowe Borough Council,,,,,,,,,,
Nottinghamshire County Council,1111/1001,Children and Young People,CYP,Supplies & Services,DEA,20.11.2012,11-15480,1085,Hucknall National Out Of School Clu,,,,,,,,,,
Nottinghamshire County Council,1111/1001,Children and Young People,CYP,Supplies & Services,DEA,20.11.2012,11-17039,1910,Spring Technology Staffing Services,,,,,,,,,,
Nottinghamshire County Council,1111/1001,Children and Young People,CYP,Supplies & Services,DEA,20.11.2012,11-17089,7611.1,Peter Hook Associates,,,,,,,,,,
Nottinghamshire County Council,1111/1001,Children and Young People,CYP,Supplies & Services,DEA,21.11.2012,11-15571,1923,Nottingham City Council,,,,,,,,,,
Nottinghamshire County Council,1111/1001,Children and Young People,CYP,Supplies & Services,DEA,21.11.2012,11-15572,2324,National Academy,,,,,,,,,,
Nottinghamshire County Council,1111/1001,Children and Young People,CYP,Supplies & Services,DEA,21.11.2012,11-17103,63140,Bloodhound Project Ltd,,,,,,,,,,
Nottinghamshire County Council,1111/1001,Children and Young People,CYP,Supplies & Services,DEA,21.11.2012,11-17112,1849.5,Send Project,,,,,,,,,,
Nottinghamshire County Council,1111/1001,Children and Young People,CYP,Supplies & Services,DEA,22.11.2012,11-17173,2016.75,Government Actuary's Department,,,,,,,,,,
Nottinghamshire County Council,1111/1001,Children and Young People,CYP,Supplies & Services,DEA,23.11.2012,11-16776,3325.2,SSCYP (Strategic Services for child,,,,,,,,,,
Nottinghamshire County Council,1111/1001,Children and Young People,CYP,Supplies & Services,DEA,23.11.2012,11-17223,607.5,Open University Finance Division,,,,,,,,,,
Nottinghamshire County Council,1111/1001,Children and Young People,CYP,Supplies & Services,DEA,26.11.2012,11-16100,725,The Wright Initiative Ltd,,,,,,,,,,
Nottinghamshire County Council,1111/1001,Children and Young People,CYP,Supplies & Services,DEA,27.11.2012,11-16308,520,The Honey Bee Day Nursery,,,,,,,,,,
Nottinghamshire County Council,1111/1001,Children and Young People,CYP,Supplies & Services,DEA,27.11.2012,11-16310,2662.08,Learning Ladder Childcare Ltd,,,,,,,,,,
Nottinghamshire County Council,1111/1001,Children and Young People,CYP,Supplies & Services,DEA,27.11.2012,11-16942,1910,Spring Technology Staffing Services,,,,,,,,,,
Nottinghamshire County Council,1111/1001,Children and Young People,CYP,Supplies & Services,DEA,28.11.2012,11-17365,804,B Bradshaw Associates,,,,,,,,,,
Nottinghamshire County Council,1111/1001,Children and Young People,CYP,Supplies & Services,DEA,28.11.2012,11-17387,536,Landliefallow CIC,,,,,,,,,,
Nottinghamshire County Council,1111/1001,Children and Young People,CYP,Supplies & Services,DEA,29.11.2012,11-16309,1400,Derrymount School,,,,,,,,,,
Nottinghamshire County Council,1111/1001,Children and Young People,CYP,Supplies & Services,DEA,29.11.2012,11-16702,1824.03,Moving Services Group,,,,,,,,,,
Nottinghamshire County Council,1111/1001,Children and Young People,CYP,Supplies & Services,DEA,29.11.2012,11-16778,550,Vent Media,,,,,,,,,,
Nottinghamshire County Council,1111/1001,Children and Young People,CYP,Supplies & Services,DEA,30.11.2012,11-16631,4140,University Of Derby,,,,,,,,,,
Nottinghamshire County Council,1111/1001,Children and Young People,CYP,Supplies & Services,DEA,30.11.2012,11-16809,650,Independent Business Services Ltd,,,,,,,,,,
Nottinghamshire County Council,1111/1001,Children and Young People,CYP,Supplies & Services,DEA,30.11.2012,11-17330,3972.4,Browne Jacobson Llp,,,,,,,,,,
Nottinghamshire County Council,1111/1001,Children and Young People,CYP,Supplies & Services,DFA,05.11.2012,11-10400,643.62,Making It! Enterprises Ltd,,,,,,,,,,
Nottinghamshire County Council,1111/1001,Children and Young People,CYP,Supplies & Services,DFA,13.11.2012,11-14840,1359.85,Lantec Services Ltd,,,,,,,,,,
Nottinghamshire County Council,1111/1001,Children and Young People,CYP,Supplies & Services,DFA,14.11.2012,11-13763,10000,Cotgrave & Radcliffe Youth Work Tea,,,,,,,,,,
Nottinghamshire County Council,1111/1001,Children and Young People,CYP,Supplies & Services,DFA,14.11.2012,11-14879,600.05,Lantec Services Ltd,,,,,,,,,,
Nottinghamshire County Council,1111/1001,Children and Young People,CYP,Supplies & Services,DFA,16.11.2012,11-10294,591,Supply Service Etc Neopost Ltd,,,,,,,,,,
Nottinghamshire County Council,1111/1001,Children and Young People,CYP,Supplies & Services,DFA,20.11.2012,11-17070,1153.2,Nt Voice & Data Solutions,,,,,,,,,,
Nottinghamshire County Council,1111/1001,Children and Young People,CYP,Supplies & Services,DFA,22.11.2012,11-17215,967.6,Fp Executive Agency Ltd,,,,,,,,,,
Nottinghamshire County Council,1111/1001,Children and Young People,CYP,Supplies & Services,DFA,22.11.2012,11-17216,9005.76,Fp Teleset,,,,,,,,,,
Nottinghamshire County Council,1111/1001,Children and Young People,CYP,Supplies & Services,DFA,23.11.2012,11-17102,1703.18,Leasing Payments Only Neopost Fin L,,,,,,,,,,
Nottinghamshire County Council,1111/1001,Children and Young People,CYP,Supplies & Services,DGA,01.11.2012,11-10025,600,M Stimpson,,,,,,,,,,
Nottinghamshire County Council,1111/1001,Children and Young People,CYP,Supplies & Services,DGA,01.11.2012,11-10026,600,M Stimpson,,,,,,,,,,
Nottinghamshire County Council,1111/1001,Children and Young People,CYP,Supplies & Services,DGA,22.11.2012,11-17192,4665,Notts Assoc Of Governors,,,,,,,,,,
Nottinghamshire County Council,1111/1001,Children and Young People,CYP,Supplies & Services,DGA,30.11.2012,11-16853,550,Derek Blackman Training and Consult,,,,,,,,,,
Nottinghamshire County Council,1111/1001,Children and Young People,CYP,Supplies & Services,DHA,30.11.2012,11-10427,6351.41,Bronbury Services Ltd,,,,,,,,,,
Nottinghamshire County Council,1111/1001,Children and Young People,CYP,Supplies & Services,DKA,02.11.2012,11-10045,900,Wyn Training & Consultancy Ltd,,,,,,,,,,
Nottinghamshire County Council,1111/1001,Children and Young People,CYP,Supplies & Services,DKA,06.11.2012,11-13780,55873,The South Wolds Academy & Sixth For,,,,,,,,,,
Nottinghamshire County Council,1111/1001,Children and Young People,CYP,Supplies & Services,DKA,06.11.2012,11-13808,800,Swann Lettings,,,,,,,,,,
Nottinghamshire County Council,1111/1001,Children and Young People,CYP,Supplies & Services,DKA,06.11.2012,11-16725,655.38,Adoption Uk,,,,,,,,,,
Nottinghamshire County Council,1111/1001,Children and Young People,CYP,Supplies & Services,DKA,06.11.2012,11-16727,516.63,Adoption Uk,,,,,,,,,,
Nottinghamshire County Council,1111/1001,Children and Young People,CYP,Supplies & Services,DKA,07.11.2012,11-13832,1500,Horizon Social Housing Ltd,,,,,,,,,,
Nottinghamshire County Council,1111/1001,Children and Young People,CYP,Supplies & Services,DKA,07.11.2012,11-13839,1500,Horizon Social Housing Ltd,,,,,,,,,,
Nottinghamshire County Council,1111/1001,Children and Young People,CYP,Supplies & Services,DKA,08.11.2012,11-14022,1568,Framework Housing Assoc,,,,,,,,,,
Nottinghamshire County Council,1111/1001,Children and Young People,CYP,Supplies & Services,DKA,08.11.2012,11-14121,725,Steve Mills Associates Ltd,,,,,,,,,,
Nottinghamshire County Council,1111/1001,Children and Young People,CYP,Supplies & Services,DKA,09.11.2012,11-14224,48093,Carlton Le Willows Academy,,,,,,,,,,
Nottinghamshire County Council,1111/1001,Children and Young People,CYP,Supplies & Services,DKA,09.11.2012,11-14225,42768,Rushcliffe School Academy Trust,,,,,,,,,,
Nottinghamshire County Council,1111/1001,Children and Young People,CYP,Supplies & Services,DKA,09.11.2012,11-14239,3375,Retford Oaks Academy,,,,,,,,,,
Nottinghamshire County Council,1111/1001,Children and Young People,CYP,Supplies & Services,DKA,09.11.2012,11-14242,869,Steve Mills Associates Ltd,,,,,,,,,,
Nottinghamshire County Council,1111/1001,Children and Young People,CYP,Supplies & Services,DKA,09.11.2012,11-16834,2200,Horizon Social Housing Ltd,,,,,,,,,,
Nottinghamshire County Council,1111/1001,Children and Young People,CYP,Supplies & Services,DKA,12.11.2012,11-14446,1225,First Class Tailored Solutions Ltd,,,,,,,,,,
Nottinghamshire County Council,1111/1001,Children and Young People,CYP,Supplies & Services,DKA,12.11.2012,11-14447,525,First Class Tailored Solutions Ltd,,,,,,,,,,
Nottinghamshire County Council,1111/1001,Children and Young People,CYP,Supplies & Services,DKA,12.11.2012,11-14476,1751.84,Stepping Stones (factored),,,,,,,,,,
Nottinghamshire County Council,1111/1001,Children and Young People,CYP,Supplies & Services,DKA,12.11.2012,11-14477,750,Stepping Stones (factored),,,,,,,,,,
Nottinghamshire County Council,1111/1001,Children and Young People,CYP,Supplies & Services,DKA,12.11.2012,11-14478,750,Stepping Stones (factored),,,,,,,,,,
Nottinghamshire County Council,1111/1001,Children and Young People,CYP,Supplies & Services,DKA,12.11.2012,11-14479,750,Stepping Stones (factored),,,,,,,,,,
Nottinghamshire County Council,1111/1001,Children and Young People,CYP,Supplies & Services,DKA,12.11.2012,11-14480,750,Stepping Stones (factored),,,,,,,,,,
Nottinghamshire County Council,1111/1001,Children and Young People,CYP,Supplies & Services,DKA,12.11.2012,11-14481,750,Stepping Stones (factored),,,,,,,,,,
Nottinghamshire County Council,1111/1001,Children and Young People,CYP,Supplies & Services,DKA,12.11.2012,11-14482,750,Stepping Stones (factored),,,,,,,,,,
Nottinghamshire County Council,1111/1001,Children and Young People,CYP,Supplies & Services,DKA,12.11.2012,11-14484,750,Stepping Stones (factored),,,,,,,,,,
Nottinghamshire County Council,1111/1001,Children and Young People,CYP,Supplies & Services,DKA,13.11.2012,11-14518,525.14,Nottinghamshire Womens Aid Ltd-Dupl,,,,,,,,,,
Nottinghamshire County Council,1111/1001,Children and Young People,CYP,Supplies & Services,DKA,13.11.2012,11-14817,1500,Horizon Social Housing Ltd,,,,,,,,,,
Nottinghamshire County Council,1111/1001,Children and Young People,CYP,Supplies & Services,DKA,14.11.2012,11-14844,2392.8,Support 4 Futures,,,,,,,,,,
Nottinghamshire County Council,1111/1001,Children and Young People,CYP,Supplies & Services,DKA,15.11.2012,11-13838,1308.34,Bridleways Holiday Homes & Guest Ho,,,,,,,,,,
Nottinghamshire County Council,1111/1001,Children and Young People,CYP,Supplies & Services,DKA,15.11.2012,11-14949,20000,Abbey Primary School,,,,,,,,,,
Nottinghamshire County Council,1111/1001,Children and Young People,CYP,Supplies & Services,DKA,15.11.2012,11-15030,2200,Horizon Social Housing Ltd,,,,,,,,,,
Nottinghamshire County Council,1111/1001,Children and Young People,CYP,Supplies & Services,DKA,15.11.2012,11-15031,3747.2,Retford Oaks Academy,,,,,,,,,,
Nottinghamshire County Council,1111/1001,Children and Young People,CYP,Supplies & Services,DKA,15.11.2012,11-15167,1000,Thomas James Lettings,,,,,,,,,,
Nottinghamshire County Council,1111/1001,Children and Young People,CYP,Supplies & Services,DKA,16.11.2012,11-15166,875,Tudor Lodge Hotel,,,,,,,,,,
Nottinghamshire County Council,1111/1001,Children and Young People,CYP,Supplies & Services,DKA,16.11.2012,11-15181,1287,S & A Industrial Property,,,,,,,,,,
Nottinghamshire County Council,1111/1001,Children and Young People,CYP,Supplies & Services,DKA,19.11.2012,11-15240,2248.32,Toothill Academy,,,,,,,,,,
Nottinghamshire County Council,1111/1001,Children and Young People,CYP,Supplies & Services,DKA,19.11.2012,11-15309,906.15,Framework Housing Association,,,,,,,,,,
Nottinghamshire County Council,1111/1001,Children and Young People,CYP,Supplies & Services,DKA,20.11.2012,11-15452,4326,Retford Oaks Academy,,,,,,,,,,
Nottinghamshire County Council,1111/1001,Children and Young People,CYP,Supplies & Services,DKA,20.11.2012,11-15465,525,First Class Tailored Solutions Ltd,,,,,,,,,,
Nottinghamshire County Council,1111/1001,Children and Young People,CYP,Supplies & Services,DKA,20.11.2012,11-15466,525,First Class Tailored Solutions Ltd,,,,,,,,,,
Nottinghamshire County Council,1111/1001,Children and Young People,CYP,Supplies & Services,DKA,20.11.2012,11-15482,750,Stepping Stones (factored),,,,,,,,,,
Nottinghamshire County Council,1111/1001,Children and Young People,CYP,Supplies & Services,DKA,22.11.2012,11-15666,1498.88,Quarrydale Academy,,,,,,,,,,
Nottinghamshire County Council,1111/1001,Children and Young People,CYP,Supplies & Services,DKA,22.11.2012,11-15667,2248.32,Carlton Le Willows Academy,,,,,,,,,,
Nottinghamshire County Council,1111/1001,Children and Young People,CYP,Supplies & Services,DKA,22.11.2012,11-15686,1268.61,Framework Housing Association,,,,,,,,,,
Nottinghamshire County Council,1111/1001,Children and Young People,CYP,Supplies & Services,DKA,22.11.2012,11-15709,43664,George Spencer Academy,,,,,,,,,,
Nottinghamshire County Council,1111/1001,Children and Young People,CYP,Supplies & Services,DKA,23.11.2012,11-16046,700,Huntcliff School,,,,,,,,,,
Nottinghamshire County Council,1111/1001,Children and Young People,CYP,Supplies & Services,DKA,23.11.2012,11-16052,28000,Holy Trinity Catholic School,,,,,,,,,,
Nottinghamshire County Council,1111/1001,Children and Young People,CYP,Supplies & Services,DKA,23.11.2012,11-16053,525.14,Nottinghamshire Womens Aid Ltd-DUPL,,,,,,,,,,
Nottinghamshire County Council,1111/1001,Children and Young People,CYP,Supplies & Services,DKA,23.11.2012,11-16054,1389.64,Framework Housing Association,,,,,,,,,,
Nottinghamshire County Council,1111/1001,Children and Young People,CYP,Supplies & Services,DKA,26.11.2012,11-16154,3375,University of Lincoln,,,,,,,,,,
Nottinghamshire County Council,1111/1001,Children and Young People,CYP,Supplies & Services,DKA,26.11.2012,11-17179,510,A Pinkerton,,,,,,,,,,
Nottinghamshire County Council,1111/1001,Children and Young People,CYP,Supplies & Services,DKA,27.11.2012,11-16302,3747.2,The Brunts Academy,,,,,,,,,,
Nottinghamshire County Council,1111/1001,Children and Young People,CYP,Supplies & Services,DKA,27.11.2012,11-16311,595.52,The Kirkby Trust,,,,,,,,,,
Nottinghamshire County Council,1111/1001,Children and Young People,CYP,Supplies & Services,DKA,28.11.2012,11-16366,1350.16,Ncha Orchard Street,,,,,,,,,,
Nottinghamshire County Council,1111/1001,Children and Young People,CYP,Supplies & Services,DKA,28.11.2012,11-16403,882.88,Hyde Housing Association Ltd,,,,,,,,,,
Nottinghamshire County Council,1111/1001,Children and Young People,CYP,Supplies & Services,DKA,28.11.2012,11-17375,3465,Sheffield Hallam Univ Enterprises L,,,,,,,,,,
Nottinghamshire County Council,1111/1001,Children and Young People,CYP,Supplies & Services,DKA,29.11.2012,11-14240,5750,Outwood Academy Portland,,,,,,,,,,
Nottinghamshire County Council,1111/1001,Children and Young People,CYP,Supplies & Services,DKA,29.11.2012,11-16303,749.58,Leverton C Of E Academy,,,,,,,,,,
Nottinghamshire County Council,1111/1001,Children and Young People,CYP,Supplies & Services,DKA,29.11.2012,11-16447,14400,Chetwynd Road Primary Academy,,,,,,,,,,
Nottinghamshire County Council,1111/1001,Children and Young People,CYP,Supplies & Services,DKA,29.11.2012,11-16449,640,The South Wolds Academy & Sixth For,,,,,,,,,,
Nottinghamshire County Council,1111/1001,Children and Young People,CYP,Supplies & Services,DKA,29.11.2012,11-17397,2500,Futureminds Social Enterprise Ltd,,,,,,,,,,
Nottinghamshire County Council,1111/1001,Children and Young People,CYP,Supplies & Services,DKA,30.11.2012,11-14226,1350,Outwood Academy Portland,,,,,,,,,,
Nottinghamshire County Council,1111/1001,Children and Young People,CYP,Supplies & Services,DKA,30.11.2012,11-14893,749.44,Rushcliffe School Academy Trust,,,,,,,,,,
Nottinghamshire County Council,1111/1001,Children and Young People,CYP,Supplies & Services,DKA,30.11.2012,11-15453,3000,Rushcliffe School Academy Trust,,,,,,,,,,
Nottinghamshire County Council,1111/1001,Children and Young People,CYP,Third Party Payments,EBA,08.11.2012,11-14140,26092.85,Home Group Limited,,,,,,,,,,
Nottinghamshire County Council,1111/1001,Children and Young People,CYP,Third Party Payments,EBA,08.11.2012,11-14141,6290.41,The Kirkby Trust,,,,,,,,,,
Nottinghamshire County Council,1111/1001,Children and Young People,CYP,Third Party Payments,EBA,08.11.2012,11-14146,11172.23,Nacro Community Enterprises Limited,,,,,,,,,,
Nottinghamshire County Council,1111/1001,Children and Young People,CYP,Third Party Payments,EBA,08.11.2012,11-14151,2638.6,Metropolitan Support Trust,,,,,,,,,,
Nottinghamshire County Council,1111/1001,Children and Young People,CYP,Third Party Payments,EBA,08.11.2012,11-14155,10923.99,Framework Housing Association,,,,,,,,,,
Nottinghamshire County Council,1111/1001,Children and Young People,CYP,Third Party Payments,EBA,08.11.2012,11-14158,22488.61,Newark Emmaus Trust,,,,,,,,,,
Nottinghamshire County Council,1111/1001,Children and Young People,CYP,Third Party Payments,EBA,08.11.2012,11-14160,56141.09,Nottingham Community Housing Associ,,,,,,,,,,
Nottinghamshire County Council,1111/1001,Children and Young People,CYP,Third Party Payments,EBA,20.11.2012,11-15457,96578.5,Nottinghamshire Healthcare Nhs,,,,,,,,,,
Nottinghamshire County Council,1111/1001,Children and Young People,CYP,Third Party Payments,EBA,26.11.2012,11-17186,927.5,The Appropriate Adult Service Ltd,,,,,,,,,,
Nottinghamshire County Council,1111/1001,Children and Young People,CYP,Third Party Payments,EBA,29.11.2012,11-16448,1878.66,Leeds City Council,,,,,,,,,,
Nottinghamshire County Council,1111/1001,Children and Young People,CYP,Third Party Payments,EBA,29.11.2012,11-17415,191686.5,Nottm & Notts Futures Ltd,,,,,,,,,,
Nottinghamshire County Council,1111/1001,Children and Young People,CYP,Third Party Payments,ECA,20.11.2012,11-15215,28764.66,Nottinghamshire Healthcare NHS Trus,,,,,,,,,,
Nottinghamshire County Council,1111/1001,Children and Young People,CYP,Third Party Payments,ECA,22.11.2012,11-14014,323955.9,Nottinghamshire Healthcare Nhs,,,,,,,,,,
Nottinghamshire County Council,1111/1001,Children and Young People,CYP,Third Party Payments,EFA,01.11.2012,11-10027,500,M Stimpson,,,,,,,,,,
Nottinghamshire County Council,1111/1001,Children and Young People,CYP,Third Party Payments,EFA,01.11.2012,11-10030,8245,Mary Hare School,,,,,,,,,,
Nottinghamshire County Council,1111/1001,Children and Young People,CYP,Third Party Payments,EFA,01.11.2012,11-10033,1250,M Stimpson,,,,,,,,,,
Nottinghamshire County Council,1111/1001,Children and Young People,CYP,Third Party Payments,EFA,01.11.2012,11-10034,8245,Mary Hare School,,,,,,,,,,
Nottinghamshire County Council,1111/1001,Children and Young People,CYP,Third Party Payments,EFA,01.11.2012,11-10035,1214,Mary Hare School,,,,,,,,,,
Nottinghamshire County Council,1111/1001,Children and Young People,CYP,Third Party Payments,EFA,06.11.2012,11-10440,6339,Joseph Whittaker Academy,,,,,,,,,,
Nottinghamshire County Council,1111/1001,Children and Young People,CYP,Third Party Payments,EFA,06.11.2012,11-10441,6339,Redhill Academy,,,,,,,,,,
Nottinghamshire County Council,1111/1001,Children and Young People,CYP,Third Party Payments,EFA,06.11.2012,11-10443,6339,Retford Oaks Academy,,,,,,,,,,
Nottinghamshire County Council,1111/1001,Children and Young People,CYP,Third Party Payments,EFA,06.11.2012,11-10444,6339,Carlton Le Willows Academy,,,,,,,,,,
Nottinghamshire County Council,1111/1001,Children and Young People,CYP,Third Party Payments,EFA,09.11.2012,11-14212,780,Unique Coffee Bar,,,,,,,,,,
Nottinghamshire County Council,1111/1001,Children and Young People,CYP,Third Party Payments,EFA,09.11.2012,11-14229,22213.33,High Grange Specialist School,,,,,,,,,,
Nottinghamshire County Council,1111/1001,Children and Young People,CYP,Third Party Payments,EFA,13.11.2012,11-14818,537.16,Nottingham City Council,,,,,,,,,,
Nottinghamshire County Council,1111/1001,Children and Young People,CYP,Third Party Payments,EFA,14.11.2012,11-14926,2880,The Carlton Academy,,,,,,,,,,
Nottinghamshire County Council,1111/1001,Children and Young People,CYP,Third Party Payments,EFA,14.11.2012,11-14929,2747,The Carlton Academy,,,,,,,,,,
Nottinghamshire County Council,1111/1001,Children and Young People,CYP,Third Party Payments,EFA,14.11.2012,11-14930,4648,The Carlton Academy,,,,,,,,,,
Nottinghamshire County Council,1111/1001,Children and Young People,CYP,Third Party Payments,EFA,19.11.2012,11-16983,6480,Educational Wellbeing,,,,,,,,,,
Nottinghamshire County Council,1111/1001,Children and Young People,CYP,Third Party Payments,EFA,20.11.2012,11-15454,11137.09,High Grange Specialist School,,,,,,,,,,
Nottinghamshire County Council,1111/1001,Children and Young People,CYP,Third Party Payments,EFA,22.11.2012,11-15710,22213.33,High Grange Specialist School,,,,,,,,,,
Nottinghamshire County Council,1111/1001,Children and Young People,CYP,Third Party Payments,EFA,22.11.2012,11-15711,22213.33,High Grange Specialist School,,,,,,,,,,
Nottinghamshire County Council,1111/1001,Children and Young People,CYP,Third Party Payments,EFA,22.11.2012,11-15712,9030.55,I Can Services Ltd,,,,,,,,,,
Nottinghamshire County Council,1111/1001,Children and Young People,CYP,Third Party Payments,EFA,22.11.2012,11-15713,8772.25,I Can Services Ltd,,,,,,,,,,
Nottinghamshire County Council,1111/1001,Children and Young People,CYP,Third Party Payments,EFA,22.11.2012,11-15714,8772.25,I Can Services Ltd,,,,,,,,,,
Nottinghamshire County Council,1111/1001,Children and Young People,CYP,Third Party Payments,EFA,22.11.2012,11-15715,5557.26,I Can Services Ltd,,,,,,,,,,
Nottinghamshire County Council,1111/1001,Children and Young People,CYP,Third Party Payments,EFA,22.11.2012,11-15716,8772.25,I Can Services Ltd,,,,,,,,,,
Nottinghamshire County Council,1111/1001,Children and Young People,CYP,Third Party Payments,EFA,22.11.2012,11-17189,11000,Real Education Ltd,,,,,,,,,,
Nottinghamshire County Council,1111/1001,Children and Young People,CYP,Third Party Payments,EFA,23.11.2012,11-14227,15657.67,Senad Ltd,,,,,,,,,,
Nottinghamshire County Council,1111/1001,Children and Young People,CYP,Third Party Payments,EFA,23.11.2012,11-14228,25461.87,Senad Ltd,,,,,,,,,,
Nottinghamshire County Council,1111/1001,Children and Young People,CYP,Third Party Payments,EFA,23.11.2012,11-15455,16654.4,Senad Ltd,,,,,,,,,,
Nottinghamshire County Council,1111/1001,Children and Young People,CYP,Third Party Payments,EFA,26.11.2012,11-16103,797.3,Stepping Stones (factored),,,,,,,,,,
Nottinghamshire County Council,1111/1001,Children and Young People,CYP,Third Party Payments,EFA,26.11.2012,11-16155,724.92,Framework Housing Association,,,,,,,,,,
Nottinghamshire County Council,1111/1001,Children and Young People,CYP,Third Party Payments,EFA,26.11.2012,11-17315,10920,West Bridgford Equestrian Centre,,,,,,,,,,
Nottinghamshire County Council,1111/1001,Children and Young People,CYP,Third Party Payments,EFA,29.11.2012,11-17242,1625,Stone Soup Academy,,,,,,,,,,
Nottinghamshire County Council,1111/1001,Children and Young People,CYP,Third Party Payments,EFA,29.11.2012,11-17398,1100,Groundwork Creswell Ashf & Mansf,,,,,,,,,,
Nottinghamshire County Council,1111/1001,Children and Young People,CYP,Third Party Payments,EFA,29.11.2012,11-17402,3468,Rural Community Action Notts,,,,,,,,,,
Nottinghamshire County Council,1111/1001,Children and Young People,CYP,Third Party Payments,EFA,30.11.2012,11-10437,9219,The Kimberley School (Academy),,,,,,,,,,
Nottinghamshire County Council,1111/1001,Children and Young People,CYP,Third Party Payments,EFA,30.11.2012,11-10438,3592,Sherwood E-ACT Academy,,,,,,,,,,
Nottinghamshire County Council,1111/1001,Children and Young People,CYP,Third Party Payments,EFA,30.11.2012,11-10439,9219,Samworth Academy,,,,,,,,,,
Nottinghamshire County Council,1111/1001,Children and Young People,CYP,Third Party Payments,EFA,30.11.2012,11-10442,11525,Tuxford Academy,,,,,,,,,,
Nottinghamshire County Council,1111/1001,Children and Young People,CYP,Third Party Payments,EFA,30.11.2012,11-10445,3592,Sherwood E-ACT Academy,,,,,,,,,,
Nottinghamshire County Council,1111/1001,Children and Young People,CYP,Third Party Payments,EFA,30.11.2012,11-13604,11525,Tuxford Academy,,,,,,,,,,
Nottinghamshire County Council,1111/1001,Children and Young People,CYP,Third Party Payments,EFA,30.11.2012,11-13605,9219,Samworth Academy,,,,,,,,,,
Nottinghamshire County Council,1111/1001,Children and Young People,CYP,Third Party Payments,EFA,30.11.2012,11-14923,3592,Outwood Academy - Valley,,,,,,,,,,
Nottinghamshire County Council,1111/1001,Children and Young People,CYP,Third Party Payments,EFA,30.11.2012,11-14924,6339,Kirkby College,,,,,,,,,,
Nottinghamshire County Council,1111/1001,Children and Young People,CYP,Third Party Payments,EFA,30.11.2012,11-14925,6456,Southwolds Community School,,,,,,,,,,
Nottinghamshire County Council,1111/1001,Children and Young People,CYP,Third Party Payments,EFA,30.11.2012,11-14927,11525,Serlby Park Academy,,,,,,,,,,
Nottinghamshire County Council,1111/1001,Children and Young People,CYP,Third Party Payments,EFA,30.11.2012,11-14928,3592,Outwood Academy - Valley,,,,,,,,,,
Nottinghamshire County Council,1111/1001,Children and Young People,CYP,Third Party Payments,EFA,30.11.2012,11-16574,584,Complement Genomics Ltd,,,,,,,,,,
Nottinghamshire County Council,1111/1001,Children and Young People,CYP,Third Party Payments,EGA,01.11.2012,11-10020,509.25,Pre School Learning Alliance,,,,,,,,,,
Nottinghamshire County Council,1111/1001,Children and Young People,CYP,Third Party Payments,EGA,01.11.2012,11-10021,984.55,HOOSC-Heathlands Out Of School Club,,,,,,,,,,
Nottinghamshire County Council,1111/1001,Children and Young People,CYP,Third Party Payments,EGA,01.11.2012,11-10022,509.25,The Grove Pre-school,,,,,,,,,,
Nottinghamshire County Council,1111/1001,Children and Young People,CYP,Third Party Payments,EGA,01.11.2012,11-10023,509.25,Springfield Pre-School,,,,,,,,,,
Nottinghamshire County Council,1111/1001,Children and Young People,CYP,Third Party Payments,EGA,01.11.2012,11-10039,11203.5,G4S Care & Justice Services (UK) Li,,,,,,,,,,
Nottinghamshire County Council,1111/1001,Children and Young People,CYP,Third Party Payments,EGA,01.11.2012,11-10097,11576.95,G4S Care & Justice Services (UK) Li,,,,,,,,,,
Nottinghamshire County Council,1111/1001,Children and Young People,CYP,Third Party Payments,EGA,01.11.2012,11-10098,13740.13,Scope,,,,,,,,,,
Nottinghamshire County Council,1111/1001,Children and Young People,CYP,Third Party Payments,EGA,01.11.2012,11-10099,11203.5,G4S Care & Justice Services (UK) Li,,,,,,,,,,
Nottinghamshire County Council,1111/1001,Children and Young People,CYP,Third Party Payments,EGA,01.11.2012,11-10100,11203.5,G4S Care & Justice Services (UK) Li,,,,,,,,,,
Nottinghamshire County Council,1111/1001,Children and Young People,CYP,Third Party Payments,EGA,01.11.2012,11-10241,3764.28,Pathway Care Solutions Ltd,,,,,,,,,,
Nottinghamshire County Council,1111/1001,Children and Young People,CYP,Third Party Payments,EGA,01.11.2012,11-10242,14056.28,Pathway Care Solutions Ltd,,,,,,,,,,
Nottinghamshire County Council,1111/1001,Children and Young People,CYP,Third Party Payments,EGA,01.11.2012,11-10243,8161.71,Pathway Care Solutions Ltd,,,,,,,,,,
Nottinghamshire County Council,1111/1001,Children and Young People,CYP,Third Party Payments,EGA,01.11.2012,11-10244,13602.85,Pathway Care Solutions Ltd,,,,,,,,,,
Nottinghamshire County Council,1111/1001,Children and Young People,CYP,Third Party Payments,EGA,01.11.2012,11-10245,2720.57,Pathway Care Solutions Ltd,,,,,,,,,,
Nottinghamshire County Council,1111/1001,Children and Young People,CYP,Third Party Payments,EGA,01.11.2012,11-10246,8690,Pathway Care Solutions Ltd,,,,,,,,,,
Nottinghamshire County Council,1111/1001,Children and Young People,CYP,Third Party Payments,EGA,01.11.2012,11-10247,11850,Pathway Care Solutions Ltd,,,,,,,,,,
Nottinghamshire County Council,1111/1001,Children and Young People,CYP,Third Party Payments,EGA,01.11.2012,11-10248,4080.85,Pathway Care Solutions Ltd,,,,,,,,,,
Nottinghamshire County Council,1111/1001,Children and Young People,CYP,Third Party Payments,EGA,01.11.2012,11-10249,13602.85,Pathway Care Solutions Ltd,,,,,,,,,,
Nottinghamshire County Council,1111/1001,Children and Young People,CYP,Third Party Payments,EGA,02.11.2012,11-10029,1018.5,Serendipity Day Nursery,,,,,,,,,,
Nottinghamshire County Council,1111/1001,Children and Young People,CYP,Third Party Payments,EGA,02.11.2012,11-10040,2677.5,Safe Haven Day Nursery,,,,,,,,,,
Nottinghamshire County Council,1111/1001,Children and Young People,CYP,Third Party Payments,EGA,02.11.2012,11-10041,525,Pre School Learning Alliance,,,,,,,,,,
Nottinghamshire County Council,1111/1001,Children and Young People,CYP,Third Party Payments,EGA,02.11.2012,11-10101,2940,Abronah Care,,,,,,,,,,
Nottinghamshire County Council,1111/1001,Children and Young People,CYP,Third Party Payments,EGA,02.11.2012,11-10276,509.25,Mattersey Playgroup,,,,,,,,,,
Nottinghamshire County Council,1111/1001,Children and Young People,CYP,Third Party Payments,EGA,02.11.2012,11-10277,950.6,Carousel Under 5'S Playgroup,,,,,,,,,,
Nottinghamshire County Council,1111/1001,Children and Young People,CYP,Third Party Payments,EGA,02.11.2012,11-10278,882.7,Pelham Pre-School,,,,,,,,,,
Nottinghamshire County Council,1111/1001,Children and Young People,CYP,Third Party Payments,EGA,02.11.2012,11-10279,886.1,Hucknall Pre-School Playgroup,,,,,,,,,,
Nottinghamshire County Council,1111/1001,Children and Young People,CYP,Third Party Payments,EGA,05.11.2012,11-10436,1018.5,Arnold St Mary'S Pre-School,,,,,,,,,,
Nottinghamshire County Council,1111/1001,Children and Young People,CYP,Third Party Payments,EGA,06.11.2012,11-16740,665.76,Scope Central Trading,,,,,,,,,,
Nottinghamshire County Council,1111/1001,Children and Young People,CYP,Third Party Payments,EGA,06.11.2012,11-16741,1845.26,Scope Central Trading,,,,,,,,,,
Nottinghamshire County Council,1111/1001,Children and Young People,CYP,Third Party Payments,EGA,09.11.2012,11-10421,2940,Abronah Care,,,,,,,,,,
Nottinghamshire County Council,1111/1001,Children and Young People,CYP,Third Party Payments,EGA,09.11.2012,11-14222,695.98,Lilliput Day Nursery (The Canch),,,,,,,,,,
Nottinghamshire County Council,1111/1001,Children and Young People,CYP,Third Party Payments,EGA,09.11.2012,11-14223,509.25,Kegworth Village Hall Pre-School,,,,,,,,,,
Nottinghamshire County Council,1111/1001,Children and Young People,CYP,Third Party Payments,EGA,09.11.2012,11-14252,14000,Blue Mountain Homes Ltd,,,,,,,,,,
Nottinghamshire County Council,1111/1001,Children and Young People,CYP,Third Party Payments,EGA,09.11.2012,11-14253,11514.33,Broadwood Educational Services Ltd,,,,,,,,,,
Nottinghamshire County Council,1111/1001,Children and Young People,CYP,Third Party Payments,EGA,09.11.2012,11-14254,10714.2,Care Today,,,,,,,,,,
Nottinghamshire County Council,1111/1001,Children and Young People,CYP,Third Party Payments,EGA,09.11.2012,11-14255,18399.92,Active8 Care Ltd,,,,,,,,,,
Nottinghamshire County Council,1111/1001,Children and Young People,CYP,Third Party Payments,EGA,12.11.2012,11-14256,3125.31,Team Fostering,,,,,,,,,,
Nottinghamshire County Council,1111/1001,Children and Young People,CYP,Third Party Payments,EGA,12.11.2012,11-14257,3680.32,Archway Care Ltd,,,,,,,,,,
Nottinghamshire County Council,1111/1001,Children and Young People,CYP,Third Party Payments,EGA,12.11.2012,11-14260,41254.25,Eastwood Grange Priory,,,,,,,,,,
Nottinghamshire County Council,1111/1001,Children and Young People,CYP,Third Party Payments,EGA,12.11.2012,11-14261,3545.83,Team Fostering,,,,,,,,,,
Nottinghamshire County Council,1111/1001,Children and Young People,CYP,Third Party Payments,EGA,12.11.2012,11-14262,5930.64,Treehouse Care Fostering Solutions,,,,,,,,,,
Nottinghamshire County Council,1111/1001,Children and Young People,CYP,Third Party Payments,EGA,12.11.2012,11-14263,2793.92,Treehouse Care Fostering Solutions,,,,,,,,,,
Nottinghamshire County Council,1111/1001,Children and Young People,CYP,Third Party Payments,EGA,12.11.2012,11-14264,5930.64,Treehouse Care Fostering Solutions,,,,,,,,,,
Nottinghamshire County Council,1111/1001,Children and Young People,CYP,Third Party Payments,EGA,12.11.2012,11-14497,50668.8,Cotgrave Candleby Lane School,,,,,,,,,,
Nottinghamshire County Council,1111/1001,Children and Young People,CYP,Third Party Payments,EGA,13.11.2012,11-14493,34495.5,Serlby Park Academy,,,,,,,,,,
Nottinghamshire County Council,1111/1001,Children and Young People,CYP,Third Party Payments,EGA,13.11.2012,11-14494,26126.1,Mansfield Primary Academy,,,,,,,,,,
Nottinghamshire County Council,1111/1001,Children and Young People,CYP,Third Party Payments,EGA,13.11.2012,11-14495,30876.3,Norbridge Academy Trust,,,,,,,,,,
Nottinghamshire County Council,1111/1001,Children and Young People,CYP,Third Party Payments,EGA,13.11.2012,11-14496,43543.5,Barnby Road Academy Prim & Nursery,,,,,,,,,,
Nottinghamshire County Council,1111/1001,Children and Young People,CYP,Third Party Payments,EGA,13.11.2012,11-14822,1105.8,Nottinghamshire Healthcare NHS Trus,,,,,,,,,,
Nottinghamshire County Council,1111/1001,Children and Young People,CYP,Third Party Payments,EGA,13.11.2012,11-16868,7331.25,Fostering Network,,,,,,,,,,
Nottinghamshire County Council,1111/1001,Children and Young People,CYP,Third Party Payments,EGA,13.11.2012,11-16879,511,At Your Service Care Ltd,,,,,,,,,,
Nottinghamshire County Council,1111/1001,Children and Young People,CYP,Third Party Payments,EGA,13.11.2012,11-16880,532,At Your Service Care Ltd,,,,,,,,,,
Nottinghamshire County Council,1111/1001,Children and Young People,CYP,Third Party Payments,EGA,14.11.2012,11-14919,525,Fernwood Day Nursery Ltd,,,,,,,,,,
Nottinghamshire County Council,1111/1001,Children and Young People,CYP,Third Party Payments,EGA,14.11.2012,11-14920,630,Alphabet House Nursery,,,,,,,,,,
Nottinghamshire County Council,1111/1001,Children and Young People,CYP,Third Party Payments,EGA,14.11.2012,11-14921,630,Carlton Kids Club,,,,,,,,,,
Nottinghamshire County Council,1111/1001,Children and Young People,CYP,Third Party Payments,EGA,16.11.2012,11-15169,8857.2,Bettercare Keys Ltd,,,,,,,,,,
Nottinghamshire County Council,1111/1001,Children and Young People,CYP,Third Party Payments,EGA,16.11.2012,11-15170,2340,Broadwood Educational Services Ltd,,,,,,,,,,
Nottinghamshire County Council,1111/1001,Children and Young People,CYP,Third Party Payments,EGA,16.11.2012,11-15171,13444,Total Care Matters Ltd,,,,,,,,,,
Nottinghamshire County Council,1111/1001,Children and Young People,CYP,Third Party Payments,EGA,16.11.2012,11-15172,3545.84,Team Fostering,,,,,,,,,,
Nottinghamshire County Council,1111/1001,Children and Young People,CYP,Third Party Payments,EGA,16.11.2012,11-15173,3545.83,Team Fostering,,,,,,,,,,
Nottinghamshire County Council,1111/1001,Children and Young People,CYP,Third Party Payments,EGA,16.11.2012,11-15174,3424.2,Parallel Parents,,,,,,,,,,
Nottinghamshire County Council,1111/1001,Children and Young People,CYP,Third Party Payments,EGA,16.11.2012,11-15175,3424.2,Parallel Parents,,,,,,,,,,
Nottinghamshire County Council,1111/1001,Children and Young People,CYP,Third Party Payments,EGA,16.11.2012,11-15176,11071.34,Broadwood Educational Services Ltd,,,,,,,,,,
Nottinghamshire County Council,1111/1001,Children and Young People,CYP,Third Party Payments,EGA,16.11.2012,11-15177,11347.59,Scope,,,,,,,,,,
Nottinghamshire County Council,1111/1001,Children and Young People,CYP,Third Party Payments,EGA,16.11.2012,11-15178,3538.34,Parallel Parents,,,,,,,,,,
Nottinghamshire County Council,1111/1001,Children and Young People,CYP,Third Party Payments,EGA,16.11.2012,11-15179,3538.34,Parallel Parents,,,,,,,,,,
Nottinghamshire County Council,1111/1001,Children and Young People,CYP,Third Party Payments,EGA,16.11.2012,11-15180,3520.67,Parallel Parents,,,,,,,,,,
Nottinghamshire County Council,1111/1001,Children and Young People,CYP,Third Party Payments,EGA,16.11.2012,11-15184,15256.42,Pathway Care Solutions Ltd,,,,,,,,,,
Nottinghamshire County Council,1111/1001,Children and Young People,CYP,Third Party Payments,EGA,16.11.2012,11-15191,3407.1,Parallel Parents,,,,,,,,,,
Nottinghamshire County Council,1111/1001,Children and Young People,CYP,Third Party Payments,EGA,19.11.2012,11-15250,976.5,North Notts Crossroads Care,,,,,,,,,,
Nottinghamshire County Council,1111/1001,Children and Young People,CYP,Third Party Payments,EGA,20.11.2012,11-15450,509.25,Beeston Nursery,,,,,,,,,,
Nottinghamshire County Council,1111/1001,Children and Young People,CYP,Third Party Payments,EGA,20.11.2012,11-15477,2940,Abronah Care,,,,,,,,,,
Nottinghamshire County Council,1111/1001,Children and Young People,CYP,Third Party Payments,EGA,20.11.2012,11-15478,9450,Real Education Ltd,,,,,,,,,,
Nottinghamshire County Council,1111/1001,Children and Young People,CYP,Third Party Payments,EGA,20.11.2012,11-15479,2793.92,Treehouse Care Fostering Solutions,,,,,,,,,,
Nottinghamshire County Council,1111/1001,Children and Young People,CYP,Third Party Payments,EGA,20.11.2012,11-17043,71171.66,The National Fostering Agency,,,,,,,,,,
Nottinghamshire County Council,1111/1001,Children and Young People,CYP,Third Party Payments,EGA,20.11.2012,11-17048,7179.6,Foster Care Associates Ltd,,,,,,,,,,
Nottinghamshire County Council,1111/1001,Children and Young People,CYP,Third Party Payments,EGA,20.11.2012,11-17094,26527.32,Heronridge Homes Ltd,,,,,,,,,,
Nottinghamshire County Council,1111/1001,Children and Young People,CYP,Third Party Payments,EGA,20.11.2012,11-17095,12125.02,Jani Homes,,,,,,,,,,
Nottinghamshire County Council,1111/1001,Children and Young People,CYP,Third Party Payments,EGA,20.11.2012,11-17100,11387.42,Hillcrest Care Ltd,,,,,,,,,,
Nottinghamshire County Council,1111/1001,Children and Young People,CYP,Third Party Payments,EGA,21.11.2012,11-15524,4331.73,Tiny World Mansfield,,,,,,,,,,
Nottinghamshire County Council,1111/1001,Children and Young People,CYP,Third Party Payments,EGA,21.11.2012,11-15527,4896.48,Children's House Nursery School,,,,,,,,,,
Nottinghamshire County Council,1111/1001,Children and Young People,CYP,Third Party Payments,EGA,21.11.2012,11-15529,7380.91,Discovery Day Nursery,,,,,,,,,,
Nottinghamshire County Council,1111/1001,Children and Young People,CYP,Third Party Payments,EGA,21.11.2012,11-15536,4376.97,Edwalton Day Nursery,,,,,,,,,,
Nottinghamshire County Council,1111/1001,Children and Young People,CYP,Third Party Payments,EGA,21.11.2012,11-15538,1696.5,Elston Pre-school Playgroup Newark,,,,,,,,,,
Nottinghamshire County Council,1111/1001,Children and Young People,CYP,Third Party Payments,EGA,21.11.2012,11-15539,3579.99,Leahurst Road Pre-School,,,,,,,,,,
Nottinghamshire County Council,1111/1001,Children and Young People,CYP,Third Party Payments,EGA,21.11.2012,11-15545,4291.01,Serendipitys Day Nursery Cotgrave,,,,,,,,,,
Nottinghamshire County Council,1111/1001,Children and Young People,CYP,Third Party Payments,EGA,21.11.2012,11-15546,9115.63,Staunton Nursery School,,,,,,,,,,
Nottinghamshire County Council,1111/1001,Children and Young People,CYP,Third Party Payments,EGA,21.11.2012,11-15547,6597.5,West Bridgford Out Of School Care L,,,,,,,,,,
Nottinghamshire County Council,1111/1001,Children and Young People,CYP,Third Party Payments,EGA,21.11.2012,11-15548,1300.65,Willow Pre-School Playgroup,,,,,,,,,,
Nottinghamshire County Council,1111/1001,Children and Young People,CYP,Third Party Payments,EGA,21.11.2012,11-15549,6335.86,Plumtree School,,,,,,,,,,
Nottinghamshire County Council,1111/1001,Children and Young People,CYP,Third Party Payments,EGA,21.11.2012,11-15550,5684.41,Prebend Pre-School Playgroup,,,,,,,,,,
Nottinghamshire County Council,1111/1001,Children and Young People,CYP,Third Party Payments,EGA,21.11.2012,11-15551,1915.91,Serendipitys Day Nursery & Pre-Scho,,,,,,,,,,
Nottinghamshire County Council,1111/1001,Children and Young People,CYP,Third Party Payments,EGA,21.11.2012,11-15552,5225.22,Southfields Pre-School,,,,,,,,,,
Nottinghamshire County Council,1111/1001,Children and Young People,CYP,Third Party Payments,EGA,21.11.2012,11-15553,1811.4,Speckled Frogs Pre-School,,,,,,,,,,
Nottinghamshire County Council,1111/1001,Children and Young People,CYP,Third Party Payments,EGA,21.11.2012,11-15554,1836.74,Stapleford Day Nursery,,,,,,,,,,
Nottinghamshire County Council,1111/1001,Children and Young People,CYP,Third Party Payments,EGA,21.11.2012,11-15555,13063.05,The Rocking Horse Child Care Centre,,,,,,,,,,
Nottinghamshire County Council,1111/1001,Children and Young People,CYP,Third Party Payments,EGA,21.11.2012,11-15558,3245.97,Wollaton Village Day Nurseries Limi,,,,,,,,,,
Nottinghamshire County Council,1111/1001,Children and Young People,CYP,Third Party Payments,EGA,21.11.2012,11-15617,6750,Turnaround,,,,,,,,,,
Nottinghamshire County Council,1111/1001,Children and Young People,CYP,Third Party Payments,EGA,21.11.2012,11-15618,3545.7,Team Fostering,,,,,,,,,,
Nottinghamshire County Council,1111/1001,Children and Young People,CYP,Third Party Payments,EGA,21.11.2012,11-15619,15000,Halliwell Homes,,,,,,,,,,
Nottinghamshire County Council,1111/1001,Children and Young People,CYP,Third Party Payments,EGA,21.11.2012,11-15621,2940,Abronah Care,,,,,,,,,,
Nottinghamshire County Council,1111/1001,Children and Young People,CYP,Third Party Payments,EGA,21.11.2012,11-15622,12975.67,Independent Childcare Group Of Schs,,,,,,,,,,
Nottinghamshire County Council,1111/1001,Children and Young People,CYP,Third Party Payments,EGA,21.11.2012,11-15623,10075,Independent Childcare Group Of Schs,,,,,,,,,,
Nottinghamshire County Council,1111/1001,Children and Young People,CYP,Third Party Payments,EGA,21.11.2012,11-15641,4928.57,DMR Services,,,,,,,,,,
Nottinghamshire County Council,1111/1001,Children and Young People,CYP,Third Party Payments,EGA,21.11.2012,11-15642,3573.99,Anglia Fostering Agency,,,,,,,,,,
Nottinghamshire County Council,1111/1001,Children and Young People,CYP,Third Party Payments,EGA,21.11.2012,11-15643,2909.66,Parallel Parents,,,,,,,,,,
Nottinghamshire County Council,1111/1001,Children and Young People,CYP,Third Party Payments,EGA,21.11.2012,11-15644,11071.34,Care Today,,,,,,,,,,
Nottinghamshire County Council,1111/1001,Children and Young People,CYP,Third Party Payments,EGA,21.11.2012,11-15645,3478.2,Anglia Fostering Agency,,,,,,,,,,
Nottinghamshire County Council,1111/1001,Children and Young People,CYP,Third Party Payments,EGA,21.11.2012,11-15646,3229.49,Team Fostering,,,,,,,,,,
Nottinghamshire County Council,1111/1001,Children and Young People,CYP,Third Party Payments,EGA,21.11.2012,11-15647,3522.53,Team Fostering,,,,,,,,,,
Nottinghamshire County Council,1111/1001,Children and Young People,CYP,Third Party Payments,EGA,21.11.2012,11-15648,10285.71,Northerncare,,,,,,,,,,
Nottinghamshire County Council,1111/1001,Children and Young People,CYP,Third Party Payments,EGA,21.11.2012,11-15649,11347.59,Scope,,,,,,,,,,
Nottinghamshire County Council,1111/1001,Children and Young People,CYP,Third Party Payments,EGA,21.11.2012,11-15650,11142.86,Prestige Adolescent Care & Educatio,,,,,,,,,,
Nottinghamshire County Council,1111/1001,Children and Young People,CYP,Third Party Payments,EGA,21.11.2012,11-15651,653.42,Independent Childcare Group Of Schs,,,,,,,,,,
Nottinghamshire County Council,1111/1001,Children and Young People,CYP,Third Party Payments,EGA,21.11.2012,11-17113,9585.69,Acorn Fostering Services Ltd,,,,,,,,,,
Nottinghamshire County Council,1111/1001,Children and Young People,CYP,Third Party Payments,EGA,21.11.2012,11-17122,1507.38,North Notts Crossroads Care,,,,,,,,,,
Nottinghamshire County Council,1111/1001,Children and Young People,CYP,Third Party Payments,EGA,21.11.2012,11-17125,41244.74,Fostering Solutions Ltd,,,,,,,,,,
Nottinghamshire County Council,1111/1001,Children and Young People,CYP,Third Party Payments,EGA,21.11.2012,11-17126,12277.43,Acorn Fostering Services Ltd,,,,,,,,,,
Nottinghamshire County Council,1111/1001,Children and Young People,CYP,Third Party Payments,EGA,21.11.2012,11-17127,36054.02,Hope Fostering Services Ltd,,,,,,,,,,
Nottinghamshire County Council,1111/1001,Children and Young People,CYP,Third Party Payments,EGA,21.11.2012,11-17161,16821.24,Tbr Care Ltd,,,,,,,,,,
Nottinghamshire County Council,1111/1001,Children and Young People,CYP,Third Party Payments,EGA,21.11.2012,11-17170,90234.47,Nottinghamshire Healthcare Nhs,,,,,,,,,,
Nottinghamshire County Council,1111/1001,Children and Young People,CYP,Third Party Payments,EGA,22.11.2012,11-15653,800,Blue Mountain Homes Ltd,,,,,,,,,,
Nottinghamshire County Council,1111/1001,Children and Young People,CYP,Third Party Payments,EGA,22.11.2012,11-15831,15000,Halliwell Homes,,,,,,,,,,
Nottinghamshire County Council,1111/1001,Children and Young People,CYP,Third Party Payments,EGA,22.11.2012,11-15845,4793.93,Treetops Nurseries Ltd,,,,,,,,,,
Nottinghamshire County Council,1111/1001,Children and Young People,CYP,Third Party Payments,EGA,22.11.2012,11-15846,3144.18,Nottinghamshire Healthcare NHS Trus,,,,,,,,,,
Nottinghamshire County Council,1111/1001,Children and Young People,CYP,Third Party Payments,EGA,22.11.2012,11-15848,5436.34,Rainbow Day Nursery,,,,,,,,,,
Nottinghamshire County Council,1111/1001,Children and Young People,CYP,Third Party Payments,EGA,22.11.2012,11-15849,633.36,Early Years Playgroup,,,,,,,,,,
Nottinghamshire County Council,1111/1001,Children and Young People,CYP,Third Party Payments,EGA,22.11.2012,11-15850,5455.19,Daisies Day Nursery,,,,,,,,,,
Nottinghamshire County Council,1111/1001,Children and Young People,CYP,Third Party Payments,EGA,22.11.2012,11-15851,9827.64,Little Millers Day Nursery,,,,,,,,,,
Nottinghamshire County Council,1111/1001,Children and Young People,CYP,Third Party Payments,EGA,22.11.2012,11-15852,6148.87,Cherubs Childrens Centre Wynndale,,,,,,,,,,
Nottinghamshire County Council,1111/1001,Children and Young People,CYP,Third Party Payments,EGA,22.11.2012,11-15853,6103.63,Woodthorpe Day Nursery Ltd,,,,,,,,,,
Nottinghamshire County Council,1111/1001,Children and Young People,CYP,Third Party Payments,EGA,22.11.2012,11-15854,3026.93,Woodborough Village Pre School,,,,,,,,,,
Nottinghamshire County Council,1111/1001,Children and Young People,CYP,Third Party Payments,EGA,22.11.2012,11-15855,5481.73,Wishing Well Day Nursery,,,,,,,,,,
Nottinghamshire County Council,1111/1001,Children and Young People,CYP,Third Party Payments,EGA,22.11.2012,11-15856,3176.45,Windmill Kindergarten Playgroup,,,,,,,,,,
Nottinghamshire County Council,1111/1001,Children and Young People,CYP,Third Party Payments,EGA,22.11.2012,11-15857,2781.51,Willow Brook Pre-School,,,,,,,,,,
Nottinghamshire County Council,1111/1001,Children and Young People,CYP,Third Party Payments,EGA,22.11.2012,11-15858,1095.18,Willoughby On The Wolds Playgroup,,,,,,,,,,
Nottinghamshire County Council,1111/1001,Children and Young People,CYP,Third Party Payments,EGA,22.11.2012,11-15859,11811.86,Whitehouse Day Nursery,,,,,,,,,,
Nottinghamshire County Council,1111/1001,Children and Young People,CYP,Third Party Payments,EGA,22.11.2012,11-15860,10040.58,Westdale Pre School,,,,,,,,,,
Nottinghamshire County Council,1111/1001,Children and Young People,CYP,Third Party Payments,EGA,22.11.2012,11-15861,4609.61,Wellow House School,,,,,,,,,,
Nottinghamshire County Council,1111/1001,Children and Young People,CYP,Third Party Payments,EGA,22.11.2012,11-15862,7484.2,Walesby School Playgroup,,,,,,,,,,
Nottinghamshire County Council,1111/1001,Children and Young People,CYP,Third Party Payments,EGA,22.11.2012,11-15863,6143.59,Village Day Nursery,,,,,,,,,,
Nottinghamshire County Council,1111/1001,Children and Young People,CYP,Third Party Payments,EGA,22.11.2012,11-15865,3596.21,Treetops Nursery,,,,,,,,,,
Nottinghamshire County Council,1111/1001,Children and Young People,CYP,Third Party Payments,EGA,22.11.2012,11-15866,6001.1,Tollerton Playgroup,,,,,,,,,,
Nottinghamshire County Council,1111/1001,Children and Young People,CYP,Third Party Payments,EGA,22.11.2012,11-17193,16428.79,Barnardos Family Placement Unit,,,,,,,,,,
Nottinghamshire County Council,1111/1001,Children and Young People,CYP,Third Party Payments,EGA,23.11.2012,11-15652,2940,Abronah Care,,,,,,,,,,
Nottinghamshire County Council,1111/1001,Children and Young People,CYP,Third Party Payments,EGA,23.11.2012,11-15847,2224.3,North Notts College,,,,,,,,,,
Nottinghamshire County Council,1111/1001,Children and Young People,CYP,Third Party Payments,EGA,23.11.2012,11-15867,2454.27,Tiny Talkers Day Nursery,,,,,,,,,,
Nottinghamshire County Council,1111/1001,Children and Young People,CYP,Third Party Payments,EGA,23.11.2012,11-15868,1757.57,The Wolds Day Nursery,,,,,,,,,,
Nottinghamshire County Council,1111/1001,Children and Young People,CYP,Third Party Payments,EGA,23.11.2012,11-15869,3999.22,The Secret Garden Private Day Nurse,,,,,,,,,,
Nottinghamshire County Council,1111/1001,Children and Young People,CYP,Third Party Payments,EGA,23.11.2012,11-15870,4331.73,The Learning Tree Nursery,,,,,,,,,,
Nottinghamshire County Council,1111/1001,Children and Young People,CYP,Third Party Payments,EGA,23.11.2012,11-15871,4868.96,The Grange Nursery Ltd,,,,,,,,,,
Nottinghamshire County Council,1111/1001,Children and Young People,CYP,Third Party Payments,EGA,23.11.2012,11-15872,1864.64,Sutton Bonington Playgroup,,,,,,,,,,
Nottinghamshire County Council,1111/1001,Children and Young People,CYP,Third Party Payments,EGA,23.11.2012,11-15873,6365.27,St Johns Playgroup,,,,,,,,,,
Nottinghamshire County Council,1111/1001,Children and Young People,CYP,Third Party Payments,EGA,23.11.2012,11-15874,3458.7,Anglia Fostering Agency,,,,,,,,,,
Nottinghamshire County Council,1111/1001,Children and Young People,CYP,Third Party Payments,EGA,23.11.2012,11-15875,2916.09,Smarties Private Day Nursery,,,,,,,,,,
Nottinghamshire County Council,1111/1001,Children and Young People,CYP,Third Party Payments,EGA,23.11.2012,11-15876,2865.95,Shaping Futures Ltd,,,,,,,,,,
Nottinghamshire County Council,1111/1001,Children and Young People,CYP,Third Party Payments,EGA,23.11.2012,11-15877,6412.77,Serendipity's Day Nursery & Pre-Sch,,,,,,,,,,
Nottinghamshire County Council,1111/1001,Children and Young People,CYP,Third Party Payments,EGA,23.11.2012,11-15878,1076.71,Serendipitys Day Nursery & Pre Scho,,,,,,,,,,
Nottinghamshire County Council,1111/1001,Children and Young People,CYP,Third Party Payments,EGA,23.11.2012,11-15879,2035.8,Scotts Wood Private Day Nursery,,,,,,,,,,
Nottinghamshire County Council,1111/1001,Children and Young People,CYP,Third Party Payments,EGA,23.11.2012,11-15880,1187.55,Sconce Hills Pre-School Playgroup,,,,,,,,,,
Nottinghamshire County Council,1111/1001,Children and Young People,CYP,Third Party Payments,EGA,23.11.2012,11-15881,4750.2,Saville House School,,,,,,,,,,
Nottinghamshire County Council,1111/1001,Children and Young People,CYP,Third Party Payments,EGA,23.11.2012,11-15882,4755.48,Rushcliffe Pre-School Cic,,,,,,,,,,
Nottinghamshire County Council,1111/1001,Children and Young People,CYP,Third Party Payments,EGA,23.11.2012,11-15883,3800.16,Ranskill Nursery,,,,,,,,,,
Nottinghamshire County Council,1111/1001,Children and Young People,CYP,Third Party Payments,EGA,23.11.2012,11-15884,2875.57,Woodard Schs Notts Ltd Ranby Schola,,,,,,,,,,
Nottinghamshire County Council,1111/1001,Children and Young People,CYP,Third Party Payments,EGA,23.11.2012,11-15885,1307.81,DUPLICATE - Rainbows Day Nursery,,,,,,,,,,
Nottinghamshire County Council,1111/1001,Children and Young People,CYP,Third Party Payments,EGA,23.11.2012,11-15886,791.7,Rainbow Day Nursery,,,,,,,,,,
Nottinghamshire County Council,1111/1001,Children and Young People,CYP,Third Party Payments,EGA,23.11.2012,11-15887,5673.85,Railway Children Playgroup,,,,,,,,,,
Nottinghamshire County Council,1111/1001,Children and Young People,CYP,Third Party Payments,EGA,23.11.2012,11-15888,5779.42,Puddleducks Pre-School,,,,,,,,,,
Nottinghamshire County Council,1111/1001,Children and Young People,CYP,Third Party Payments,EGA,23.11.2012,11-15889,4921.75,Pre-School 345,,,,,,,,,,
Nottinghamshire County Council,1111/1001,Children and Young People,CYP,Third Party Payments,EGA,23.11.2012,11-15890,815.45,Phoenix Farm Pre School,,,,,,,,,,
Nottinghamshire County Council,1111/1001,Children and Young People,CYP,Third Party Payments,EGA,23.11.2012,11-15891,9636.12,Pelham Pre-School,,,,,,,,,,
Nottinghamshire County Council,1111/1001,Children and Young People,CYP,Third Party Payments,EGA,23.11.2012,11-15892,2163.98,Pea Pod Day Nursery Ltd,,,,,,,,,,
Nottinghamshire County Council,1111/1001,Children and Young People,CYP,Third Party Payments,EGA,23.11.2012,11-15893,4134.18,Papplewick Pre-School Playgroup,,,,,,,,,,
Nottinghamshire County Council,1111/1001,Children and Young People,CYP,Third Party Payments,EGA,23.11.2012,11-15894,8392.02,Papermoon Day Nursery,,,,,,,,,,
Nottinghamshire County Council,1111/1001,Children and Young People,CYP,Third Party Payments,EGA,23.11.2012,11-15895,10876.45,Papermoon Day Nursery,,,,,,,,,,
Nottinghamshire County Council,1111/1001,Children and Young People,CYP,Third Party Payments,EGA,23.11.2012,11-15896,5052.55,Orchard School Nursery,,,,,,,,,,
Nottinghamshire County Council,1111/1001,Children and Young People,CYP,Third Party Payments,EGA,23.11.2012,11-15897,8380.71,The Orchard Day Nursery,,,,,,,,,,
Nottinghamshire County Council,1111/1001,Children and Young People,CYP,Third Party Payments,EGA,23.11.2012,11-15898,3918.91,Montessori Care Ltd,,,,,,,,,,
Nottinghamshire County Council,1111/1001,Children and Young People,CYP,Third Party Payments,EGA,23.11.2012,11-15899,2612.61,Misson Pre-School,,,,,,,,,,
Nottinghamshire County Council,1111/1001,Children and Young People,CYP,Third Party Payments,EGA,23.11.2012,11-15900,3557.37,Millfield Nursery School,,,,,,,,,,
Nottinghamshire County Council,1111/1001,Children and Young People,CYP,Third Party Payments,EGA,23.11.2012,11-15902,5911.36,Lowater Street Playgroup,,,,,,,,,,
Nottinghamshire County Council,1111/1001,Children and Young People,CYP,Third Party Payments,EGA,23.11.2012,11-15903,5621.07,Longdale Nursery School,,,,,,,,,,
Nottinghamshire County Council,1111/1001,Children and Young People,CYP,Third Party Payments,EGA,23.11.2012,11-15904,1715.35,Little Rascals Pre-School,,,,,,,,,,
Nottinghamshire County Council,1111/1001,Children and Young People,CYP,Third Party Payments,EGA,23.11.2012,11-15905,12680.39,Little Oaks Nursery,,,,,,,,,,
Nottinghamshire County Council,1111/1001,Children and Young People,CYP,Third Party Payments,EGA,23.11.2012,11-15906,7930.19,Little Nippers Pre-School,,,,,,,,,,
Nottinghamshire County Council,1111/1001,Children and Young People,CYP,Third Party Payments,EGA,23.11.2012,11-15907,791.7,Little Kites Pre-School,,,,,,,,,,
Nottinghamshire County Council,1111/1001,Children and Young People,CYP,Third Party Payments,EGA,23.11.2012,11-15908,4512.69,Little Bears Day Nursery,,,,,,,,,,
Nottinghamshire County Council,1111/1001,Children and Young People,CYP,Third Party Payments,EGA,23.11.2012,11-15909,1781.32,Little Friends Day Nursery,,,,,,,,,,
Nottinghamshire County Council,1111/1001,Children and Young People,CYP,Third Party Payments,EGA,23.11.2012,11-15910,4386.02,Little Acorns Pre School,,,,,,,,,,
Nottinghamshire County Council,1111/1001,Children and Young People,CYP,Third Party Payments,EGA,23.11.2012,11-15911,5489.12,Little Acorns Shireoaks,,,,,,,,,,
Nottinghamshire County Council,1111/1001,Children and Young People,CYP,Third Party Payments,EGA,23.11.2012,11-15917,5028.43,Leo's Childrens Nurseries Ltd,,,,,,,,,,
Nottinghamshire County Council,1111/1001,Children and Young People,CYP,Third Party Payments,EGA,23.11.2012,11-15918,2860.68,Leoschildrens Nurseries Ltd,,,,,,,,,,
Nottinghamshire County Council,1111/1001,Children and Young People,CYP,Third Party Payments,EGA,23.11.2012,11-15919,11748.83,Leen Mills Pre School Playgroup,,,,,,,,,,
Nottinghamshire County Council,1111/1001,Children and Young People,CYP,Third Party Payments,EGA,23.11.2012,11-15920,5996.33,Learning Ladder Childcare Ltd,,,,,,,,,,
Nottinghamshire County Council,1111/1001,Children and Young People,CYP,Third Party Payments,EGA,23.11.2012,11-15921,1655.03,Lambley Day Nursery Ltd,,,,,,,,,,
Nottinghamshire County Council,1111/1001,Children and Young People,CYP,Third Party Payments,EGA,23.11.2012,11-15922,2229.95,Kneesall Pre School Learning Allian,,,,,,,,,,
Nottinghamshire County Council,1111/1001,Children and Young People,CYP,Third Party Payments,EGA,23.11.2012,11-15923,1008.1,Kimberley Pre-School Playgroup,,,,,,,,,,
Nottinghamshire County Council,1111/1001,Children and Young People,CYP,Third Party Payments,EGA,23.11.2012,11-15924,6120.55,Killisick Pre-School,,,,,,,,,,
Nottinghamshire County Council,1111/1001,Children and Young People,CYP,Third Party Payments,EGA,23.11.2012,11-15925,712.53,Jubilee House Christian School,,,,,,,,,,
Nottinghamshire County Council,1111/1001,Children and Young People,CYP,Third Party Payments,EGA,23.11.2012,11-15926,1504.23,Inham Park Pre School Playgroup,,,,,,,,,,
Nottinghamshire County Council,1111/1001,Children and Young People,CYP,Third Party Payments,EGA,23.11.2012,11-15927,3008.46,Huthwaite Children's Centre,,,,,,,,,,
Nottinghamshire County Council,1111/1001,Children and Young People,CYP,Third Party Payments,EGA,23.11.2012,11-15928,1240.33,Hucknall Day Nursery,,,,,,,,,,
Nottinghamshire County Council,1111/1001,Children and Young People,CYP,Third Party Payments,EGA,23.11.2012,11-15929,4009.16,Horsendale Playgroup,,,,,,,,,,
Nottinghamshire County Council,1111/1001,Children and Young People,CYP,Third Party Payments,EGA,23.11.2012,11-15930,3087.63,Honey Pot Day Private Day Nursery L,,,,,,,,,,
Nottinghamshire County Council,1111/1001,Children and Young People,CYP,Third Party Payments,EGA,23.11.2012,11-15935,2370.95,Quinton Day Nurseries T/A Honey Bee,,,,,,,,,,
Nottinghamshire County Council,1111/1001,Children and Young People,CYP,Third Party Payments,EGA,23.11.2012,11-15939,5340.02,Homestead Day Nursery,,,,,,,,,,
Nottinghamshire County Council,1111/1001,Children and Young People,CYP,Third Party Payments,EGA,23.11.2012,11-15941,1807.71,Hollies Day Nurseries Limited,,,,,,,,,,
Nottinghamshire County Council,1111/1001,Children and Young People,CYP,Third Party Payments,EGA,23.11.2012,11-15945,818.09,Highfields School & Nursery,,,,,,,,,,
Nottinghamshire County Council,1111/1001,Children and Young People,CYP,Third Party Payments,EGA,23.11.2012,11-15950,7037.78,Hazel Hurst School,,,,,,,,,,
Nottinghamshire County Council,1111/1001,Children and Young People,CYP,Third Party Payments,EGA,23.11.2012,11-15951,2480.66,Haywood Road Pre-School Playgroup,,,,,,,,,,
Nottinghamshire County Council,1111/1001,Children and Young People,CYP,Third Party Payments,EGA,23.11.2012,11-15954,5663.75,Good Shepherd Pre-School,,,,,,,,,,
Nottinghamshire County Council,1111/1001,Children and Young People,CYP,Third Party Payments,EGA,23.11.2012,11-15961,6782.23,Good Foundations Day Nursery,,,,,,,,,,
Nottinghamshire County Council,1111/1001,Children and Young People,CYP,Third Party Payments,EGA,23.11.2012,11-15962,1900.08,Foxy Creek Pre-School Playgroup,,,,,,,,,,
Nottinghamshire County Council,1111/1001,Children and Young People,CYP,Third Party Payments,EGA,23.11.2012,11-15963,2037.68,Fosse Paddock Kindergarten,,,,,,,,,,
Nottinghamshire County Council,1111/1001,Children and Young People,CYP,Third Party Payments,EGA,23.11.2012,11-15964,9922.64,Fernwood Day Nursery Ltd,,,,,,,,,,
Nottinghamshire County Council,1111/1001,Children and Young People,CYP,Third Party Payments,EGA,23.11.2012,11-15965,5607.5,Farnsfield Pre-School,,,,,,,,,,
Nottinghamshire County Council,1111/1001,Children and Young People,CYP,Third Party Payments,EGA,23.11.2012,11-15966,2770.95,Farndon St Peters Early Years,,,,,,,,,,
Nottinghamshire County Council,1111/1001,Children and Young People,CYP,Third Party Payments,EGA,23.11.2012,11-15974,1325.53,Edwinstowe Pre-School Playgroup,,,,,,,,,,
Nottinghamshire County Council,1111/1001,Children and Young People,CYP,Third Party Payments,EGA,23.11.2012,11-15976,3867.42,East Leake Pre-School Playgroup,,,,,,,,,,
Nottinghamshire County Council,1111/1001,Children and Young People,CYP,Third Party Payments,EGA,23.11.2012,11-15977,7515.87,East Leake Day Nursery & Pre-School,,,,,,,,,,
Nottinghamshire County Council,1111/1001,Children and Young People,CYP,Third Party Payments,EGA,23.11.2012,11-15978,2205.45,Duncroft Day Nursery,,,,,,,,,,
Nottinghamshire County Council,1111/1001,Children and Young People,CYP,Third Party Payments,EGA,23.11.2012,11-15980,3641.82,Daisies Day Nursery,,,,,,,,,,
Nottinghamshire County Council,1111/1001,Children and Young People,CYP,Third Party Payments,EGA,23.11.2012,11-15981,3705.16,Dagfa House School,,,,,,,,,,
Nottinghamshire County Council,1111/1001,Children and Young People,CYP,Third Party Payments,EGA,23.11.2012,11-15983,11184.08,Cropwell Bishop Pre-School Playgrou,,,,,,,,,,
Nottinghamshire County Council,1111/1001,Children and Young People,CYP,Third Party Payments,EGA,23.11.2012,11-15986,2612.61,Cranmer Pre-School,,,,,,,,,,
Nottinghamshire County Council,1111/1001,Children and Young People,CYP,Third Party Payments,EGA,23.11.2012,11-15988,5541.9,Coteswood House School,,,,,,,,,,
Nottinghamshire County Council,1111/1001,Children and Young People,CYP,Third Party Payments,EGA,23.11.2012,11-15989,4164.34,Colwick Pre School Playgroup,,,,,,,,,,
Nottinghamshire County Council,1111/1001,Children and Young People,CYP,Third Party Payments,EGA,23.11.2012,11-15991,4127.4,Collingham & District Pre-School,,,,,,,,,,
Nottinghamshire County Council,1111/1001,Children and Young People,CYP,Third Party Payments,EGA,23.11.2012,11-15992,1087.27,Claremont House Nursery School,,,,,,,,,,
Nottinghamshire County Council,1111/1001,Children and Young People,CYP,Third Party Payments,EGA,23.11.2012,11-15993,6921.72,Church House Day Nursery,,,,,,,,,,
Nottinghamshire County Council,1111/1001,Children and Young People,CYP,Third Party Payments,EGA,23.11.2012,11-15994,3619.67,Christchurch Hall Pre-School Playgr,,,,,,,,,,
Nottinghamshire County Council,1111/1001,Children and Young People,CYP,Third Party Payments,EGA,23.11.2012,11-15996,2058.42,Children 1st @ Breedon House,,,,,,,,,,
Nottinghamshire County Council,1111/1001,Children and Young People,CYP,Third Party Payments,EGA,23.11.2012,11-15999,10574.85,Childrens Corner Day Nursery,,,,,,,,,,
Nottinghamshire County Council,1111/1001,Children and Young People,CYP,Third Party Payments,EGA,23.11.2012,11-16001,4444.83,Chetwynd Barracks Pre-School,,,,,,,,,,
Nottinghamshire County Council,1111/1001,Children and Young People,CYP,Third Party Payments,EGA,23.11.2012,11-16002,2124.39,Cherubs Ryton Park,,,,,,,,,,
Nottinghamshire County Council,1111/1001,Children and Young People,CYP,Third Party Payments,EGA,23.11.2012,11-16003,3245.97,Cherubs Childrens Centre Pleasley,,,,,,,,,,
Nottinghamshire County Council,1111/1001,Children and Young People,CYP,Third Party Payments,EGA,23.11.2012,11-16004,7139.55,Carnarvon Pre-School,,,,,,,,,,
Nottinghamshire County Council,1111/1001,Children and Young People,CYP,Third Party Payments,EGA,23.11.2012,11-16005,1736.46,Carlton Hill Playgroup,,,,,,,,,,
Nottinghamshire County Council,1111/1001,Children and Young People,CYP,Third Party Payments,EGA,23.11.2012,11-16006,2617.89,Butterflies Nursery (West Notts Col,,,,,,,,,,
Nottinghamshire County Council,1111/1001,Children and Young People,CYP,Third Party Payments,EGA,23.11.2012,11-16008,10490.02,Buttercross Pre School,,,,,,,,,,
Nottinghamshire County Council,1111/1001,Children and Young People,CYP,Third Party Payments,EGA,23.11.2012,11-16009,2047.86,Busy Bees Pre-School,,,,,,,,,,
Nottinghamshire County Council,1111/1001,Children and Young People,CYP,Third Party Payments,EGA,23.11.2012,11-16010,3895.16,Busy Bees Playgroup,,,,,,,,,,
Nottinghamshire County Council,1111/1001,Children and Young People,CYP,Third Party Payments,EGA,23.11.2012,11-16011,2818.45,Burnside Hall Playgroup,,,,,,,,,,
Nottinghamshire County Council,1111/1001,Children and Young People,CYP,Third Party Payments,EGA,23.11.2012,11-16012,712.53,Bumble Bee Children's Day Nursery L,,,,,,,,,,
Nottinghamshire County Council,1111/1001,Children and Young People,CYP,Third Party Payments,EGA,23.11.2012,11-16013,5083.84,Brooklyn Day Nursery,,,,,,,,,,
Nottinghamshire County Council,1111/1001,Children and Young People,CYP,Third Party Payments,EGA,23.11.2012,11-16014,5187.52,Brookhill House Day Nursery,,,,,,,,,,
Nottinghamshire County Council,1111/1001,Children and Young People,CYP,Third Party Payments,EGA,23.11.2012,11-16015,1662.57,Bright Stars Childcare,,,,,,,,,,
Nottinghamshire County Council,1111/1001,Children and Young People,CYP,Third Party Payments,EGA,23.11.2012,11-16016,1834.1,Bright Sparks Day Nursery,,,,,,,,,,
Nottinghamshire County Council,1111/1001,Children and Young People,CYP,Third Party Payments,EGA,23.11.2012,11-16017,2792.07,Blyth Pre-School Playgroup,,,,,,,,,,
Nottinghamshire County Council,1111/1001,Children and Young People,CYP,Third Party Payments,EGA,23.11.2012,11-16018,4723.81,Bizzy Kidz,,,,,,,,,,
Nottinghamshire County Council,1111/1001,Children and Young People,CYP,Third Party Payments,EGA,23.11.2012,11-16019,5225.22,Bircotes Pre-School,,,,,,,,,,
Nottinghamshire County Council,1111/1001,Children and Young People,CYP,Third Party Payments,EGA,23.11.2012,11-16021,1029.21,Beeston Nursery,,,,,,,,,,
Nottinghamshire County Council,1111/1001,Children and Young People,CYP,Third Party Payments,EGA,23.11.2012,11-16022,1675.76,Balderton Village Day Nursery,,,,,,,,,,
Nottinghamshire County Council,1111/1001,Children and Young People,CYP,Third Party Payments,EGA,23.11.2012,11-16023,15293.01,Balderton Pre-School,,,,,,,,,,
Nottinghamshire County Council,1111/1001,Children and Young People,CYP,Third Party Payments,EGA,23.11.2012,11-16025,1725.91,Abacus Pre-School,,,,,,,,,,
Nottinghamshire County Council,1111/1001,Children and Young People,CYP,Third Party Payments,EGA,23.11.2012,11-16026,1176.24,All Aboard Day Nursery,,,,,,,,,,
Nottinghamshire County Council,1111/1001,Children and Young People,CYP,Third Party Payments,EGA,23.11.2012,11-16028,4116.84,Alphabet House Day Nursery,,,,,,,,,,
Nottinghamshire County Council,1111/1001,Children and Young People,CYP,Third Party Payments,EGA,23.11.2012,11-16035,6853.86,Alphabet House Day Nursery Worksop,,,,,,,,,,
Nottinghamshire County Council,1111/1001,Children and Young People,CYP,Third Party Payments,EGA,23.11.2012,11-16040,10487.45,Weaverthorpe Pre-School Playgroup,,,,,,,,,,
Nottinghamshire County Council,1111/1001,Children and Young People,CYP,Third Party Payments,EGA,23.11.2012,11-16065,8363.75,Breedon House Nurseries Ltd,,,,,,,,,,
Nottinghamshire County Council,1111/1001,Children and Young People,CYP,Third Party Payments,EGA,23.11.2012,11-16066,7600.32,Papermoon Day Nursery,,,,,,,,,,
Nottinghamshire County Council,1111/1001,Children and Young People,CYP,Third Party Payments,EGA,23.11.2012,11-16067,2913.46,Trowell Pre School,,,,,,,,,,
Nottinghamshire County Council,1111/1001,Children and Young People,CYP,Third Party Payments,EGA,23.11.2012,11-16068,4019.73,Southwell Pre-School,,,,,,,,,,
Nottinghamshire County Council,1111/1001,Children and Young People,CYP,Third Party Payments,EGA,23.11.2012,11-16069,6509.36,Ravenshead Pre-School Playgroup,,,,,,,,,,
Nottinghamshire County Council,1111/1001,Children and Young People,CYP,Third Party Payments,EGA,23.11.2012,11-16070,5937.75,Nurseryworld & Friends Nursery & Pr,,,,,,,,,,
Nottinghamshire County Council,1111/1001,Children and Young People,CYP,Third Party Payments,EGA,23.11.2012,11-16071,1504.23,North Muskham Playgroup,,,,,,,,,,
Nottinghamshire County Council,1111/1001,Children and Young People,CYP,Third Party Payments,EGA,23.11.2012,11-16072,6724.93,Lowdham & Epperstone Pre-School,,,,,,,,,,
Nottinghamshire County Council,1111/1001,Children and Young People,CYP,Third Party Payments,EGA,23.11.2012,11-16074,5589.4,Hucknall Pre-School Playgroup,,,,,,,,,,
Nottinghamshire County Council,1111/1001,Children and Young People,CYP,Third Party Payments,EGA,23.11.2012,11-16076,1666.57,Fledglings Playgroup,,,,,,,,,,
Nottinghamshire County Council,1111/1001,Children and Young People,CYP,Third Party Payments,EGA,23.11.2012,11-16077,2058.42,Costock Pre School,,,,,,,,,,
Nottinghamshire County Council,1111/1001,Children and Young People,CYP,Third Party Payments,EGA,23.11.2012,11-16078,1979.25,Colston Bassett Preparatory School,,,,,,,,,,
Nottinghamshire County Council,1111/1001,Children and Young People,CYP,Third Party Payments,EGA,23.11.2012,11-16082,15852.85,Burton Joyce Wraparound Care Group,,,,,,,,,,
Nottinghamshire County Council,1111/1001,Children and Young People,CYP,Third Party Payments,EGA,23.11.2012,11-16083,5489.12,Beacon Hill Day Nursery,,,,,,,,,,
Nottinghamshire County Council,1111/1001,Children and Young People,CYP,Third Party Payments,EGA,23.11.2012,11-16084,1293.11,Awsworth Schoolhouse Day Nursery,,,,,,,,,,
Nottinghamshire County Council,1111/1001,Children and Young People,CYP,Third Party Payments,EGA,23.11.2012,11-16085,6275.54,Attenborough Church Pre-School,,,,,,,,,,
Nottinghamshire County Council,1111/1001,Children and Young People,CYP,Third Party Payments,EGA,23.11.2012,11-16086,2024.49,Ashfield Plaza Day Nursery,,,,,,,,,,
Nottinghamshire County Council,1111/1001,Children and Young People,CYP,Third Party Payments,EGA,23.11.2012,11-16087,3427.16,Arnold House Day Nursery,,,,,,,,,,
Nottinghamshire County Council,1111/1001,Children and Young People,CYP,Third Party Payments,EGA,23.11.2012,11-16088,1187.55,Appleton Day Nursery,,,,,,,,,,
Nottinghamshire County Council,1111/1001,Children and Young People,CYP,Third Party Payments,EGA,23.11.2012,11-17077,37288.37,Keys 16Plus Independent Living Serv,,,,,,,,,,
Nottinghamshire County Council,1111/1001,Children and Young People,CYP,Third Party Payments,EGA,23.11.2012,11-17207,2891.14,Mencap Accounts Region 2,,,,,,,,,,
Nottinghamshire County Council,1111/1001,Children and Young People,CYP,Third Party Payments,EGA,23.11.2012,11-17225,30389.3,Fosterplus Ltd,,,,,,,,,,
Nottinghamshire County Council,1111/1001,Children and Young People,CYP,Third Party Payments,EGA,23.11.2012,11-17233,4013,Fostering People Ltd,,,,,,,,,,
Nottinghamshire County Council,1111/1001,Children and Young People,CYP,Third Party Payments,EGA,26.11.2012,11-14823,509.25,Cherubs Day Nursery,,,,,,,,,,
Nottinghamshire County Council,1111/1001,Children and Young People,CYP,Third Party Payments,EGA,26.11.2012,11-16000,9536.21,Cherubs Day Nursery,,,,,,,,,,
Nottinghamshire County Council,1111/1001,Children and Young People,CYP,Third Party Payments,EGA,26.11.2012,11-16020,6390.15,Bingham Day Nursery & Pre School,,,,,,,,,,
Nottinghamshire County Council,1111/1001,Children and Young People,CYP,Third Party Payments,EGA,26.11.2012,11-16075,3148.33,Gotham Pre-School Playgroup,,,,,,,,,,
Nottinghamshire County Council,1111/1001,Children and Young People,CYP,Third Party Payments,EGA,26.11.2012,11-16081,3351.53,Carlton & Gedling Day Nursery,,,,,,,,,,
Nottinghamshire County Council,1111/1001,Children and Young People,CYP,Third Party Payments,EGA,26.11.2012,11-16110,584.36,Wellin Lane Playgroup,,,,,,,,,,
Nottinghamshire County Council,1111/1001,Children and Young People,CYP,Third Party Payments,EGA,26.11.2012,11-16111,1688.96,Sutton Centre Under 5'S Playgroup,,,,,,,,,,
Nottinghamshire County Council,1111/1001,Children and Young People,CYP,Third Party Payments,EGA,26.11.2012,11-16112,2477.95,St Giles Playgroup,,,,,,,,,,
Nottinghamshire County Council,1111/1001,Children and Young People,CYP,Third Party Payments,EGA,26.11.2012,11-16113,2757.75,South Nottingham College Nursery,,,,,,,,,,
Nottinghamshire County Council,1111/1001,Children and Young People,CYP,Third Party Payments,EGA,26.11.2012,11-16114,2137.59,Scottswood Pdn Ltd,,,,,,,,,,
Nottinghamshire County Council,1111/1001,Children and Young People,CYP,Third Party Payments,EGA,26.11.2012,11-16115,1764.36,Portland Place Pre-School,,,,,,,,,,
Nottinghamshire County Council,1111/1001,Children and Young People,CYP,Third Party Payments,EGA,26.11.2012,11-16116,5350.01,Oceans Day Nursery,,,,,,,,,,
Nottinghamshire County Council,1111/1001,Children and Young People,CYP,Third Party Payments,EGA,26.11.2012,11-16117,533.08,Kirkby Cross Playgroup,,,,,,,,,,
Nottinghamshire County Council,1111/1001,Children and Young People,CYP,Third Party Payments,EGA,26.11.2012,11-16118,1219.22,Breedon House Nursery,,,,,,,,,,
Nottinghamshire County Council,1111/1001,Children and Young People,CYP,Third Party Payments,EGA,26.11.2012,11-16119,1481.61,Cherubs Childcare Centre (Mansfield,,,,,,,,,,
Nottinghamshire County Council,1111/1001,Children and Young People,CYP,Third Party Payments,EGA,26.11.2012,11-16120,9790.69,Applegarth Day Nursery,,,,,,,,,,
Nottinghamshire County Council,1111/1001,Children and Young People,CYP,Third Party Payments,EGA,26.11.2012,11-16121,8312.85,Alphabet House Nursery,,,,,,,,,,
Nottinghamshire County Council,1111/1001,Children and Young People,CYP,Third Party Payments,EGA,26.11.2012,11-16162,2134,Alphabet House Day Nursery Worksop,,,,,,,,,,
Nottinghamshire County Council,1111/1001,Children and Young People,CYP,Third Party Payments,EGA,26.11.2012,11-16164,1309.5,The Learning Tree Day Nursery 2,,,,,,,,,,
Nottinghamshire County Council,1111/1001,Children and Young People,CYP,Third Party Payments,EGA,26.11.2012,11-16165,1091.25,Kidzgrove,,,,,,,,,,
Nottinghamshire County Council,1111/1001,Children and Young People,CYP,Third Party Payments,EGA,26.11.2012,11-16166,567.45,North Notts College,,,,,,,,,,
Nottinghamshire County Council,1111/1001,Children and Young People,CYP,Third Party Payments,EGA,26.11.2012,11-17317,1133.65,Mencap Accounts Region 2,,,,,,,,,,
Nottinghamshire County Council,1111/1001,Children and Young People,CYP,Third Party Payments,EGA,26.11.2012,11-17319,3475.1,Jay Fostering,,,,,,,,,,
Nottinghamshire County Council,1111/1001,Children and Young People,CYP,Third Party Payments,EGA,27.11.2012,11-17351,37415.25,Compass Services For Children Ltd,,,,,,,,,,
Nottinghamshire County Council,1111/1001,Children and Young People,CYP,Third Party Payments,EGA,28.11.2012,11-16336,1240.33,Stepping Stones II,,,,,,,,,,
Nottinghamshire County Council,1111/1001,Children and Young People,CYP,Third Party Payments,EGA,28.11.2012,11-16337,7917,Ruddington Nursery And Pre-School,,,,,,,,,,
Nottinghamshire County Council,1111/1001,Children and Young People,CYP,Third Party Payments,EGA,28.11.2012,11-16338,3760.57,Radcliffe On Trent Day Nursery,,,,,,,,,,
Nottinghamshire County Council,1111/1001,Children and Young People,CYP,Third Party Payments,EGA,28.11.2012,11-16339,4946.24,Hickory House Day Nursery,,,,,,,,,,
Nottinghamshire County Council,1111/1001,Children and Young People,CYP,Third Party Payments,EGA,28.11.2012,11-16340,904.8,SPBC Day Care Ltd,,,,,,,,,,
Nottinghamshire County Council,1111/1001,Children and Young People,CYP,Third Party Payments,EGA,28.11.2012,11-16341,3567.4,Crossdale Busy Bees Pre-School,,,,,,,,,,
Nottinghamshire County Council,1111/1001,Children and Young People,CYP,Third Party Payments,EGA,28.11.2012,11-16940,825,New College Nottingham,,,,,,,,,,
Nottinghamshire County Council,1111/1001,Children and Young People,CYP,Third Party Payments,EGA,29.11.2012,11-14265,11576.95,G4S Care & Justice Services (UK) Li,,,,,,,,,,
Nottinghamshire County Council,1111/1001,Children and Young People,CYP,Third Party Payments,EGA,29.11.2012,11-15290,11576.95,G4S Care & Justice Services (UK) Li,,,,,,,,,,
Nottinghamshire County Council,1111/1001,Children and Young People,CYP,Third Party Payments,EGA,29.11.2012,11-16406,4581.3,Salterford House School,,,,,,,,,,
Nottinghamshire County Council,1111/1001,Children and Young People,CYP,Third Party Payments,EGA,29.11.2012,11-16407,5673.85,Kingfisher Day Nursery,,,,,,,,,,
Nottinghamshire County Council,1111/1001,Children and Young People,CYP,Third Party Payments,EGA,29.11.2012,11-16408,3325.14,Shaping Futures Oakham Day Nursery,,,,,,,,,,
Nottinghamshire County Council,1111/1001,Children and Young People,CYP,Third Party Payments,EGA,29.11.2012,11-16409,2850.12,Shaping Futures Ltd,,,,,,,,,,
Nottinghamshire County Council,1111/1001,Children and Young People,CYP,Third Party Payments,EGA,29.11.2012,11-16410,909.51,Sunbeams Pre-School,,,,,,,,,,
Nottinghamshire County Council,1111/1001,Children and Young People,CYP,Third Party Payments,EGA,29.11.2012,11-16411,1187.55,Kidzgrove,,,,,,,,,,
Nottinghamshire County Council,1111/1001,Children and Young People,CYP,Third Party Payments,EGA,29.11.2012,11-16417,3545.83,Team Fostering,,,,,,,,,,
Nottinghamshire County Council,1111/1001,Children and Young People,CYP,Third Party Payments,EGA,29.11.2012,11-16418,3777.35,Team Fostering,,,,,,,,,,
Nottinghamshire County Council,1111/1001,Children and Young People,CYP,Third Party Payments,EGA,29.11.2012,11-16419,3664.03,Team Fostering,,,,,,,,,,
Nottinghamshire County Council,1111/1001,Children and Young People,CYP,Third Party Payments,EGA,29.11.2012,11-16420,3313.5,Five Rivers Child Care Ltd,,,,,,,,,,
Nottinghamshire County Council,1111/1001,Children and Young People,CYP,Third Party Payments,EGA,29.11.2012,11-16421,3777.35,Team Fostering,,,,,,,,,,
Nottinghamshire County Council,1111/1001,Children and Young People,CYP,Third Party Payments,EGA,29.11.2012,11-16422,3664.02,Team Fostering,,,,,,,,,,
Nottinghamshire County Council,1111/1001,Children and Young People,CYP,Third Party Payments,EGA,29.11.2012,11-16423,10285.71,Northerncare,,,,,,,,,,
Nottinghamshire County Council,1111/1001,Children and Young People,CYP,Third Party Payments,EGA,29.11.2012,11-16424,12857.1,Bettercare Keys Ltd,,,,,,,,,,
Nottinghamshire County Council,1111/1001,Children and Young People,CYP,Third Party Payments,EGA,29.11.2012,11-16425,3262.28,Youth Justice Board For England & W,,,,,,,,,,
Nottinghamshire County Council,1111/1001,Children and Young People,CYP,Third Party Payments,EGA,29.11.2012,11-16426,13296.9,Scope,,,,,,,,,,
Nottinghamshire County Council,1111/1001,Children and Young People,CYP,Third Party Payments,EGA,29.11.2012,11-16427,14000,Blue Mountain Homes Ltd,,,,,,,,,,
Nottinghamshire County Council,1111/1001,Children and Young People,CYP,Third Party Payments,EGA,29.11.2012,11-16428,4771.17,Banya Family Placement Agency Ltd,,,,,,,,,,
Nottinghamshire County Council,1111/1001,Children and Young People,CYP,Third Party Payments,EGA,29.11.2012,11-16430,14083.33,Fairview Only Total Care Matters Lt,,,,,,,,,,
Nottinghamshire County Council,1111/1001,Children and Young People,CYP,Third Party Payments,EGA,29.11.2012,11-16431,3985.71,By The Bridge,,,,,,,,,,
Nottinghamshire County Council,1111/1001,Children and Young People,CYP,Third Party Payments,EGA,29.11.2012,11-16433,2909.66,Parallel Parents,,,,,,,,,,
Nottinghamshire County Council,1111/1001,Children and Young People,CYP,Third Party Payments,EGA,29.11.2012,11-16434,3520.67,Parallel Parents,,,,,,,,,,
Nottinghamshire County Council,1111/1001,Children and Young People,CYP,Third Party Payments,EGA,29.11.2012,11-16435,762.5,John Fretwell Sporting Complex,,,,,,,,,,
Nottinghamshire County Council,1111/1001,Children and Young People,CYP,Third Party Payments,EGA,29.11.2012,11-16455,517.5,Quayside Care Ltd,,,,,,,,,,
Nottinghamshire County Council,1111/1001,Children and Young People,CYP,Third Party Payments,EGA,29.11.2012,11-16456,3538.34,Parallel Parents,,,,,,,,,,
Nottinghamshire County Council,1111/1001,Children and Young People,CYP,Third Party Payments,EGA,29.11.2012,11-16537,53630.4,Pathway Care Solutions Ltd,,,,,,,,,,
Nottinghamshire County Council,1111/1001,Children and Young People,CYP,Third Party Payments,EGA,29.11.2012,11-16538,53630.4,Pathway Care Solutions Ltd,,,,,,,,,,
Nottinghamshire County Council,1111/1001,Children and Young People,CYP,Third Party Payments,EGA,29.11.2012,11-16546,6175.26,Alphabet House Day Nursery WB,,,,,,,,,,
Nottinghamshire County Council,1111/1001,Children and Young People,CYP,Third Party Payments,EGA,29.11.2012,11-16547,923.65,Arnold View Pre-School,,,,,,,,,,
Nottinghamshire County Council,1111/1001,Children and Young People,CYP,Third Party Payments,EGA,29.11.2012,11-16548,2090.09,Attenborough Day Nursery & Pre-Sch,,,,,,,,,,
Nottinghamshire County Council,1111/1001,Children and Young People,CYP,Third Party Payments,EGA,29.11.2012,11-16549,1615.07,Old Cooperative Day Nursery,,,,,,,,,,
Nottinghamshire County Council,1111/1001,Children and Young People,CYP,Third Party Payments,EGA,29.11.2012,11-16550,2399.98,Pippins Pre-School,,,,,,,,,,
Nottinghamshire County Council,1111/1001,Children and Young People,CYP,Third Party Payments,EGA,29.11.2012,11-16551,8645.36,Safe Haven Day Nursery,,,,,,,,,,
Nottinghamshire County Council,1111/1001,Children and Young People,CYP,Third Party Payments,EGA,29.11.2012,11-16552,3472.92,Wollaton Village Day Nurseries Ltd.,,,,,,,,,,
Nottinghamshire County Council,1111/1001,Children and Young People,CYP,Third Party Payments,EGA,29.11.2012,11-16553,3008.46,Young Rascals Day Nursery,,,,,,,,,,
Nottinghamshire County Council,1111/1001,Children and Young People,CYP,Third Party Payments,EGA,29.11.2012,11-17394,1274.45,Norsaca Society Office,,,,,,,,,,
Nottinghamshire County Council,1111/1001,Children and Young People,CYP,Third Party Payments,EGA,29.11.2012,11-17396,4750,Futureminds Social Enterprise Ltd,,,,,,,,,,
Nottinghamshire County Council,1111/1001,Children and Young People,CYP,Third Party Payments,EGA,30.11.2012,11-14259,20371.34,Active8 Care Ltd,,,,,,,,,,
Nottinghamshire County Council,1111/1001,Children and Young People,CYP,Third Party Payments,EGA,30.11.2012,11-14917,892.5,Safe Haven Day Nursery,,,,,,,,,,
Nottinghamshire County Council,1111/1001,Children and Young People,CYP,Third Party Payments,EGA,30.11.2012,11-14918,525,Arnold House Day Nursery,,,,,,,,,,
Nottinghamshire County Council,1111/1001,Children and Young People,CYP,Third Party Payments,EGA,30.11.2012,11-14922,1071,Ravenshead Out Of School Club,,,,,,,,,,
Nottinghamshire County Council,1111/1001,Children and Young People,CYP,Third Party Payments,EGA,30.11.2012,11-15620,11576.95,G4S Care & Justice Services (UK) Li,,,,,,,,,,
Nottinghamshire County Council,1111/1001,Children and Young People,CYP,Third Party Payments,EGA,30.11.2012,11-15640,11142.9,Broadwood Educational Services Ltd,,,,,,,,,,
Nottinghamshire County Council,1111/1001,Children and Young People,CYP,Third Party Payments,EGA,30.11.2012,11-16429,10714.2,Broadwood Educational Services Ltd,,,,,,,,,,
Nottinghamshire County Council,1111/1001,Children and Young People,CYP,Third Party Payments,EGA,30.11.2012,11-16432,6200,Eccles Hall School Ltd,,,,,,,,,,
Nottinghamshire County Council,1111/1001,Children and Young People,CYP,Third Party Payments,EGA,30.11.2012,11-17426,12981.35,Capstone Foster Care Ltd,,,,,,,,,,
Nottinghamshire County Council,1111/1001,Children and Young People,CYP,Third Party Payments,EHA,16.11.2012,11-15205,1194,Faith In Families,,,,,,,,,,
Nottinghamshire County Council,1111/1001,Children and Young People,CYP,Third Party Payments,EHA,22.11.2012,11-15018,40000,CCS Adoption,,,,,,,,,,
Nottinghamshire County Council,1111/1001,Children and Young People,CYP,Third Party Payments,EHA,22.11.2012,11-15607,18000,Coram Adoption East Midlands,,,,,,,,,,
Nottinghamshire County Council,1111/1001,Children and Young People,CYP,Third Party Payments,EHA,28.11.2012,11-16326,17517.33,Nottingham City Council,,,,,,,,,,
Nottinghamshire County Council,1111/1001,Children and Young People,CYP,Support Services,HAA,01.11.2012,11-10212,2840.05,Premiere Travel Ltd,,,,,,,,,,
Nottinghamshire County Council,1111/1001,Children and Young People,CYP,Support Services,HAA,01.11.2012,11-10213,600,Premiere Travel Ltd,,,,,,,,,,
Nottinghamshire County Council,1111/1001,Children and Young People,CYP,Support Services,HAA,01.11.2012,11-10214,750,Premiere Travel Ltd,,,,,,,,,,
Nottinghamshire County Council,1111/1001,Children and Young People,CYP,Support Services,HAA,01.11.2012,11-10215,750,Premiere Travel Ltd,,,,,,,,,,
Nottinghamshire County Council,1111/1001,Children and Young People,CYP,Support Services,HAA,01.11.2012,11-10216,4729.67,Premiere Travel Ltd,,,,,,,,,,
Nottinghamshire County Council,1111/1001,Children and Young People,CYP,Support Services,HAA,01.11.2012,11-10218,2206.05,Lowes Coaches Ltd,,,,,,,,,,
Nottinghamshire County Council,1111/1001,Children and Young People,CYP,Support Services,HAA,01.11.2012,11-10223,1782,Kettlewell Retford Ltd,,,,,,,,,,
Nottinghamshire County Council,1111/1001,Children and Young People,CYP,Support Services,HAA,01.11.2012,11-10224,2023,Kettlewell Retford Ltd,,,,,,,,,,
Nottinghamshire County Council,1111/1001,Children and Young People,CYP,Support Services,HAA,01.11.2012,11-10225,2232,Kettlewell Retford Ltd,,,,,,,,,,
Nottinghamshire County Council,1111/1001,Children and Young People,CYP,Support Services,HAA,01.11.2012,11-10227,2560,Kettlewell Retford Ltd,,,,,,,,,,
Nottinghamshire County Council,1111/1001,Children and Young People,CYP,Support Services,HAA,05.11.2012,11-10370,4405.05,Freeway Coaches Ltd,,,,,,,,,,
Nottinghamshire County Council,1111/1001,Children and Young People,CYP,Support Services,HAA,05.11.2012,11-10371,6406.7,Freeway Coaches Ltd,,,,,,,,,,
Nottinghamshire County Council,1111/1001,Children and Young People,CYP,Support Services,HAA,05.11.2012,11-10372,2395.47,Freeway Coaches Ltd,,,,,,,,,,
Nottinghamshire County Council,1111/1001,Children and Young People,CYP,Support Services,HAA,05.11.2012,11-10373,2588.58,Freeway Coaches Ltd,,,,,,,,,,
Nottinghamshire County Council,1111/1001,Children and Young People,CYP,Support Services,HAA,06.11.2012,11-13616,1080,All Wayz Travel,,,,,,,,,,
Nottinghamshire County Council,1111/1001,Children and Young People,CYP,Support Services,HAA,06.11.2012,11-13617,1020,All Wayz Travel,,,,,,,,,,
Nottinghamshire County Council,1111/1001,Children and Young People,CYP,Support Services,HAA,06.11.2012,11-13681,630,Fozcabs Newark Taxis,,,,,,,,,,
Nottinghamshire County Council,1111/1001,Children and Young People,CYP,Support Services,HAA,06.11.2012,11-13682,1199,Fozcabs Newark Taxis,,,,,,,,,,
Nottinghamshire County Council,1111/1001,Children and Young People,CYP,Support Services,HAA,06.11.2012,11-13688,729,Hawkins Taxis & Transport,,,,,,,,,,
Nottinghamshire County Council,1111/1001,Children and Young People,CYP,Support Services,HAA,06.11.2012,11-13722,2240,F & J Marriott T/A Unity Coaches,,,,,,,,,,
Nottinghamshire County Council,1111/1001,Children and Young People,CYP,Support Services,HAA,06.11.2012,11-13723,2240,F & J Marriott T/A Unity Coaches,,,,,,,,,,
Nottinghamshire County Council,1111/1001,Children and Young People,CYP,Support Services,HAA,06.11.2012,11-13724,897.6,Elkingtons Park Garage,,,,,,,,,,
Nottinghamshire County Council,1111/1001,Children and Young People,CYP,Support Services,HAA,06.11.2012,11-13733,1529,Garys Coaches Ltd,,,,,,,,,,
Nottinghamshire County Council,1111/1001,Children and Young People,CYP,Support Services,HAA,06.11.2012,11-13734,1661,Garys Coaches Ltd,,,,,,,,,,
Nottinghamshire County Council,1111/1001,Children and Young People,CYP,Support Services,HAA,06.11.2012,11-13735,1981.62,Garys Coaches Ltd,,,,,,,,,,
Nottinghamshire County Council,1111/1001,Children and Young People,CYP,Support Services,HAA,06.11.2012,11-13737,1635.5,Gem Mini Travel Ltd,,,,,,,,,,
Nottinghamshire County Council,1111/1001,Children and Young People,CYP,Support Services,HAA,06.11.2012,11-13738,1125,K & R Cars,,,,,,,,,,
Nottinghamshire County Council,1111/1001,Children and Young People,CYP,Support Services,HAA,06.11.2012,11-13739,1485,Nottm Minibuses & Coaches,,,,,,,,,,
Nottinghamshire County Council,1111/1001,Children and Young People,CYP,Support Services,HAA,06.11.2012,11-13740,2688,Travel Wright Ltd,,,,,,,,,,
Nottinghamshire County Council,1111/1001,Children and Young People,CYP,Support Services,HAA,06.11.2012,11-13742,1552.31,Jc Coaches,,,,,,,,,,
Nottinghamshire County Council,1111/1001,Children and Young People,CYP,Support Services,HAA,06.11.2012,11-13743,6993,K & H Doyle Coaches Ltd,,,,,,,,,,
Nottinghamshire County Council,1111/1001,Children and Young People,CYP,Support Services,HAA,06.11.2012,11-13745,11000.56,K & H Doyle Coaches Ltd,,,,,,,,,,
Nottinghamshire County Council,1111/1001,Children and Young People,CYP,Support Services,HAA,06.11.2012,11-13748,1297.78,Freeway Coaches Ltd,,,,,,,,,,
Nottinghamshire County Council,1111/1001,Children and Young People,CYP,Support Services,HAA,06.11.2012,11-13752,2284,C W Moxon Ltd,,,,,,,,,,
Nottinghamshire County Council,1111/1001,Children and Young People,CYP,Support Services,HAA,06.11.2012,11-13753,2963.89,C W Moxon Ltd,,,,,,,,,,
Nottinghamshire County Council,1111/1001,Children and Young People,CYP,Support Services,HAA,06.11.2012,11-13754,1578.05,Dunn Motor Traction,,,,,,,,,,
Nottinghamshire County Council,1111/1001,Children and Young People,CYP,Support Services,HAA,06.11.2012,11-13755,2777.66,Dunn Motor Traction,,,,,,,,,,
Nottinghamshire County Council,1111/1001,Children and Young People,CYP,Support Services,HAA,06.11.2012,11-13756,3298.89,Dunn Motor Traction,,,,,,,,,,
Nottinghamshire County Council,1111/1001,Children and Young People,CYP,Support Services,HAA,06.11.2012,11-13757,5367.21,Dunn Motor Traction,,,,,,,,,,
Nottinghamshire County Council,1111/1001,Children and Young People,CYP,Support Services,HAA,08.11.2012,11-13922,2551.93,Sharpes Of Nottingham,,,,,,,,,,
Nottinghamshire County Council,1111/1001,Children and Young People,CYP,Support Services,HAA,08.11.2012,11-13923,2763.18,Sharpes Of Nottingham,,,,,,,,,,
Nottinghamshire County Council,1111/1001,Children and Young People,CYP,Support Services,HAA,08.11.2012,11-13924,2355.31,Sharpes Of Nottingham,,,,,,,,,,
Nottinghamshire County Council,1111/1001,Children and Young People,CYP,Support Services,HAA,08.11.2012,11-13928,2763.36,Sharpes Of Nottingham,,,,,,,,,,
Nottinghamshire County Council,1111/1001,Children and Young People,CYP,Support Services,HAA,08.11.2012,11-13929,2532.93,Sharpes Of Nottingham,,,,,,,,,,
Nottinghamshire County Council,1111/1001,Children and Young People,CYP,Support Services,HAA,08.11.2012,11-13930,2638.73,Sharpes Of Nottingham,,,,,,,,,,
Nottinghamshire County Council,1111/1001,Children and Young People,CYP,Support Services,HAA,08.11.2012,11-13931,1784.1,Premiere Travel Ltd,,,,,,,,,,
Nottinghamshire County Council,1111/1001,Children and Young People,CYP,Support Services,HAA,08.11.2012,11-13934,2681.8,Premiere Travel Ltd,,,,,,,,,,
Nottinghamshire County Council,1111/1001,Children and Young People,CYP,Support Services,HAA,08.11.2012,11-13936,17010.23,Redfern Travel,,,,,,,,,,
Nottinghamshire County Council,1111/1001,Children and Young People,CYP,Support Services,HAA,08.11.2012,11-13937,10374.44,Redfern Travel,,,,,,,,,,
Nottinghamshire County Council,1111/1001,Children and Young People,CYP,Support Services,HAA,08.11.2012,11-13939,2266.22,Redfern Travel,,,,,,,,,,
Nottinghamshire County Council,1111/1001,Children and Young People,CYP,Support Services,HAA,08.11.2012,11-13950,2021.95,Gem Mini Travel Ltd,,,,,,,,,,
Nottinghamshire County Council,1111/1001,Children and Young People,CYP,Support Services,HAA,08.11.2012,11-13951,1782,Marshalls Of Sutton On Trent Ltd,,,,,,,,,,
Nottinghamshire County Council,1111/1001,Children and Young People,CYP,Support Services,HAA,08.11.2012,11-13954,2053.82,Marshalls Of Sutton On Trent Ltd,,,,,,,,,,
Nottinghamshire County Council,1111/1001,Children and Young People,CYP,Support Services,HAA,08.11.2012,11-13961,2533,Marshalls Of Sutton On Trent Ltd,,,,,,,,,,
Nottinghamshire County Council,1111/1001,Children and Young People,CYP,Support Services,HAA,08.11.2012,11-13965,2430,Marshalls Of Sutton On Trent Ltd,,,,,,,,,,
Nottinghamshire County Council,1111/1001,Children and Young People,CYP,Support Services,HAA,08.11.2012,11-13967,990,Nottm Minibuses & Coaches,,,,,,,,,,
Nottinghamshire County Council,1111/1001,Children and Young People,CYP,Support Services,HAA,08.11.2012,11-13971,2310.24,Silverdale Tours Nottm Ltd,,,,,,,,,,
Nottinghamshire County Council,1111/1001,Children and Young People,CYP,Support Services,HAA,08.11.2012,11-13972,1466.76,Silverdale Tours Nottm Ltd,,,,,,,,,,
Nottinghamshire County Council,1111/1001,Children and Young People,CYP,Support Services,HAA,08.11.2012,11-13973,2544.3,Silverdale Tours Nottm Ltd,,,,,,,,,,
Nottinghamshire County Council,1111/1001,Children and Young People,CYP,Support Services,HAA,08.11.2012,11-13974,2475.2,Silverdale Tours Nottm Ltd,,,,,,,,,,
Nottinghamshire County Council,1111/1001,Children and Young People,CYP,Support Services,HAA,08.11.2012,11-13975,2104.2,Silverdale Tours Nottm Ltd,,,,,,,,,,
Nottinghamshire County Council,1111/1001,Children and Young People,CYP,Support Services,HAA,08.11.2012,11-13976,2792.8,Silverdale Tours Nottm Ltd,,,,,,,,,,
Nottinghamshire County Council,1111/1001,Children and Young People,CYP,Support Services,HAA,08.11.2012,11-13977,1880.9,Silverdale Tours Nottm Ltd,,,,,,,,,,
Nottinghamshire County Council,1111/1001,Children and Young People,CYP,Support Services,HAA,08.11.2012,11-13986,4061.65,Stagecoach Services Ltd,,,,,,,,,,
Nottinghamshire County Council,1111/1001,Children and Young People,CYP,Support Services,HAA,08.11.2012,11-13989,3431.11,Stagecoach Services Ltd,,,,,,,,,,
Nottinghamshire County Council,1111/1001,Children and Young People,CYP,Support Services,HAA,12.11.2012,11-14283,2354.49,Glenn Ryder Coaches,,,,,,,,,,
Nottinghamshire County Council,1111/1001,Children and Young People,CYP,Support Services,HAA,12.11.2012,11-14284,3058.2,Glenn Ryder Coaches,,,,,,,,,,
Nottinghamshire County Council,1111/1001,Children and Young People,CYP,Support Services,HAA,12.11.2012,11-14285,2520,Johnson Bros Tours Ltd,,,,,,,,,,
Nottinghamshire County Council,1111/1001,Children and Young People,CYP,Support Services,HAA,12.11.2012,11-14286,960,Kirkhams Coaches,,,,,,,,,,
Nottinghamshire County Council,1111/1001,Children and Young People,CYP,Support Services,HAA,12.11.2012,11-14292,1980,Arnold Acorn Travel,,,,,,,,,,
Nottinghamshire County Council,1111/1001,Children and Young People,CYP,Support Services,HAA,12.11.2012,11-14293,1914.4,Arnold Acorn Travel,,,,,,,,,,
Nottinghamshire County Council,1111/1001,Children and Young People,CYP,Support Services,HAA,12.11.2012,11-14337,1835.25,Jb Tours Watnall Ltd,,,,,,,,,,
Nottinghamshire County Council,1111/1001,Children and Young People,CYP,Support Services,HAA,12.11.2012,11-14338,2210.5,Jb Tours Watnall Ltd,,,,,,,,,,
Nottinghamshire County Council,1111/1001,Children and Young People,CYP,Support Services,HAA,12.11.2012,11-14342,4090.95,Stagecoach Services Ltd,,,,,,,,,,
Nottinghamshire County Council,1111/1001,Children and Young People,CYP,Support Services,HAA,12.11.2012,11-14361,3263.05,Travel Wright Ltd,,,,,,,,,,
Nottinghamshire County Council,1111/1001,Children and Young People,CYP,Support Services,HAA,12.11.2012,11-14362,2373.33,Travel Wright Ltd,,,,,,,,,,
Nottinghamshire County Council,1111/1001,Children and Young People,CYP,Support Services,HAA,12.11.2012,11-14363,2718.53,Travel Wright Ltd,,,,,,,,,,
Nottinghamshire County Council,1111/1001,Children and Young People,CYP,Support Services,HAA,12.11.2012,11-14364,2113.97,Travel Wright Ltd,,,,,,,,,,
Nottinghamshire County Council,1111/1001,Children and Young People,CYP,Support Services,HAA,12.11.2012,11-14366,120,Travel Wright Ltd,,,,,,,,,,
Nottinghamshire County Council,1111/1001,Children and Young People,CYP,Support Services,HAA,12.11.2012,11-14370,2498.33,Wallis Coachways,,,,,,,,,,
Nottinghamshire County Council,1111/1001,Children and Young People,CYP,Support Services,HAA,13.11.2012,11-14717,2493.58,Sharpes Of Nottingham,,,,,,,,,,
Nottinghamshire County Council,1111/1001,Children and Young People,CYP,Support Services,HAA,13.11.2012,11-14719,12101.42,Johnson Bros Tours Ltd,,,,,,,,,,
Nottinghamshire County Council,1111/1001,Children and Young People,CYP,Support Services,HAA,13.11.2012,11-14722,2681.8,Premiere Travel Ltd,,,,,,,,,,
Nottinghamshire County Council,1111/1001,Children and Young People,CYP,Support Services,HAA,13.11.2012,11-14723,633.15,Premiere Travel Ltd,,,,,,,,,,
Nottinghamshire County Council,1111/1001,Children and Young People,CYP,Support Services,HAA,13.11.2012,11-14767,5271.35,Tiger European Uk Ltd,,,,,,,,,,
Nottinghamshire County Council,1111/1001,Children and Young People,CYP,Support Services,HAA,13.11.2012,11-14768,2711,Tiger European Uk Ltd,,,,,,,,,,
Nottinghamshire County Council,1111/1001,Children and Young People,CYP,Support Services,HAA,13.11.2012,11-14769,2234.72,Tiger European Uk Ltd,,,,,,,,,,
Nottinghamshire County Council,1111/1001,Children and Young People,CYP,Support Services,HAA,13.11.2012,11-14771,1443,Tiger European Uk Ltd,,,,,,,,,,
Nottinghamshire County Council,1111/1001,Children and Young People,CYP,Support Services,HAA,13.11.2012,11-14772,4850.6,Paul S Winson Coaches,,,,,,,,,,
Nottinghamshire County Council,1111/1001,Children and Young People,CYP,Support Services,HAA,13.11.2012,11-14773,2812.95,Paul S Winson Coaches,,,,,,,,,,
Nottinghamshire County Council,1111/1001,Children and Young People,CYP,Support Services,HAA,13.11.2012,11-14782,2759.94,Nottm City Transport Ltd,,,,,,,,,,
